Organisation Name,Organisation Code,Effective Date,Directorate Where Expenditure Occurred,Supplier Name,Payment Date,Transaction Number, Gross Amount ,Purpose of Spend,Merchant Category,Card Transactions
WALSALL COUNCIL,http://opendatacommunities.org/id/metropolitan-district-council/walsall ,30/09/2022,CHILDRENS SERVICES,AMZNMKTPLACE,01/07/2022,H59620220702MDDKIMLRT-1, 152.58 ,ADMINISTRATIVE SUPPLIES-MATERIALS,MISCELLANEOUS AND SPECIALTY RETAIL STORES,GPC
WALSALL COUNCIL,http://opendatacommunities.org/id/metropolitan-district-council/walsall ,30/09/2022,RESOURCES AND TRANSFORMATION,FOREIGN EXCHANGE FEE,01/07/2022,H59620220702SBJDQFFLQ-1, 3.20 ,ONE SOURCE SUPPORT TEAM-SOFTWARE LICENCES,,GPC
WALSALL COUNCIL,http://opendatacommunities.org/id/metropolitan-district-council/walsall ,30/09/2022,CHILDRENS SERVICES,123 REG LTD 000550203,01/07/2022,H59620220702UOKWPWOQR-1, 11.99 ,ADMINISTRATIVE SUPPLIES-STATIONERY & GENERAL OFFICE SU,COMPUTER NETWORK/INFORMATION SERVICES,GPC
WALSALL COUNCIL,http://opendatacommunities.org/id/metropolitan-district-council/walsall ,30/09/2022,ECONOMY & ENVIRONMENT,WM MORRISONS STORE,01/07/2022,H59620220705AKMYGCPXV-1, 24.00 ,BLOXWICH LIBRARY-PURCHASE OF FURNITURE & EQUIPM,GROCERY STORES AND SUPERMARKETS,GPC
WALSALL COUNCIL,http://opendatacommunities.org/id/metropolitan-district-council/walsall ,30/09/2022,CHILDRENS SERVICES,WWW.SCREWFIX.COM,01/07/2022,H59620220705AYUQDJDUN-1, 19.99 ,WALSALL WOOD PRIMARY SCHOOL-OTHER EXPENSES,LUMBER & BUILDING MATERIALS STORES,GPC
WALSALL COUNCIL,http://opendatacommunities.org/id/metropolitan-district-council/walsall ,30/09/2022,CHILDRENS SERVICES,AMZNMKTPLACE,01/07/2022,H59620220705BYDVFTODD-1, 37.50 ,DT & ART-MATERIALS,MISCELLANEOUS AND SPECIALTY RETAIL STORES,GPC
WALSALL COUNCIL,http://opendatacommunities.org/id/metropolitan-district-council/walsall ,30/09/2022,ECONOMY & ENVIRONMENT,AMZNMKTPLACE,01/07/2022,H59620220705CFRWLYUVQ-1, 291.40 ,NAG - EXTERNALLY FUNDED PROJEC-MATERIALS,MISCELLANEOUS AND SPECIALTY RETAIL STORES,GPC
WALSALL COUNCIL,http://opendatacommunities.org/id/metropolitan-district-council/walsall ,30/09/2022,ECONOMY & ENVIRONMENT,AMZNMKTPLACE,01/07/2022,H59620220705CGOLVKGSN-1, 26.98 ,FLEET-MATERIALS,MISCELLANEOUS AND SPECIALTY RETAIL STORES,GPC
WALSALL COUNCIL,http://opendatacommunities.org/id/metropolitan-district-council/walsall ,30/09/2022,RESOURCES AND TRANSFORMATION,JOHAL DAIRIES LTD,01/07/2022,H59620220705CRTOKFWGA-1, 23.80 ,CATERING - SCHOOLS-FOOD & DRINK SUPPLIES,OTHER NONDURABLE GOODS,GPC
WALSALL COUNCIL,http://opendatacommunities.org/id/metropolitan-district-council/walsall ,30/09/2022,RESOURCES AND TRANSFORMATION,JOHAL DAIRIES LTD,01/07/2022,H59620220705DJYSGQCSP-1, 25.59 ,CATERING - SCHOOLS-FOOD & DRINK SUPPLIES,OTHER NONDURABLE GOODS,GPC
WALSALL COUNCIL,http://opendatacommunities.org/id/metropolitan-district-council/walsall ,30/09/2022,CHILDRENS SERVICES,AMZNMKTPLACE,01/07/2022,H59620220705DOBRXNHTJ-1, 9.15 ,E19-LIBRARY BOOKS,MISCELLANEOUS AND SPECIALTY RETAIL STORES,GPC
WALSALL COUNCIL,http://opendatacommunities.org/id/metropolitan-district-council/walsall ,30/09/2022,RESOURCES AND TRANSFORMATION,ARTHUR BRETT CATER,01/07/2022,H59620220705DRKGXCPLI-1, 15.22 ,CATERING - SCHOOLS-FOOD & DRINK SUPPLIES,MISCELLANEOUS FOOD STORES & CONVENIENCE STORES,GPC
WALSALL COUNCIL,http://opendatacommunities.org/id/metropolitan-district-council/walsall ,30/09/2022,ECONOMY & ENVIRONMENT,TAYLOR NEWS,01/07/2022,H59620220705DUBQAZBJR-1, 15.70 ,STREETLY LIBRARY-NEWSPAPERS/PERIODICALS/MAGAZIN,GROCERY STORES AND SUPERMARKETS,GPC
WALSALL COUNCIL,http://opendatacommunities.org/id/metropolitan-district-council/walsall ,30/09/2022,RESOURCES AND TRANSFORMATION,CHICKEN JOES LTD,01/07/2022,H59620220705DVMFWTMGE-1, 357.65 ,CATERING - SCHOOLS-FOOD & DRINK SUPPLIES,CATERERS,GPC
WALSALL COUNCIL,http://opendatacommunities.org/id/metropolitan-district-council/walsall ,30/09/2022,ECONOMY & ENVIRONMENT,AMAZON.CO.UK*2Y9N27E94,01/07/2022,H59620220705DXMQNPJVO-1, 28.75 ,BROWNHILLS LIBRARY-CLEANING MATERIALS,OTHER DIRECT MARKETING-OTHER DIRECT MARKETERS,GPC
WALSALL COUNCIL,http://opendatacommunities.org/id/metropolitan-district-council/walsall ,30/09/2022,CHILDRENS SERVICES,DECATHLON UK LIMITED,01/07/2022,H59620220705DZMLEXVTY-1, 39.98 ,PE RESOURCES-MATERIALS,SPORTING GOODS STORES,GPC
WALSALL COUNCIL,http://opendatacommunities.org/id/metropolitan-district-council/walsall ,30/09/2022,RESOURCES AND TRANSFORMATION,JOHAL DAIRIES LTD,01/07/2022,H59620220705ECAJUHBFF-1, 66.64 ,CATERING - SCHOOLS-FOOD & DRINK SUPPLIES,OTHER NONDURABLE GOODS,GPC
WALSALL COUNCIL,http://opendatacommunities.org/id/metropolitan-district-council/walsall ,30/09/2022,CHILDRENS SERVICES,AMZNMKTPLACE,01/07/2022,H59620220705EGOCFSIVP-1, 22.69 ,PUPIL PREMIUM-STATIONERY & GENERAL OFFICE SU,MISCELLANEOUS AND SPECIALTY RETAIL STORES,GPC
WALSALL COUNCIL,http://opendatacommunities.org/id/metropolitan-district-council/walsall ,30/09/2022,RESOURCES AND TRANSFORMATION,JOHAL DAIRIES LTD,01/07/2022,H59620220705EITKIIBQB-1, 8.50 ,CATERING - SCHOOLS-FOOD & DRINK SUPPLIES,OTHER NONDURABLE GOODS,GPC
WALSALL COUNCIL,http://opendatacommunities.org/id/metropolitan-district-council/walsall ,30/09/2022,CHILDRENS SERVICES,AMZNMKTPLACE,01/07/2022,H59620220705EUCKBCGTG-1, 47.76 ,PE RESOURCES-MATERIALS,MISCELLANEOUS AND SPECIALTY RETAIL STORES,GPC
WALSALL COUNCIL,http://opendatacommunities.org/id/metropolitan-district-council/walsall ,30/09/2022,CHILDRENS SERVICES,DUNELM LTD,01/07/2022,H59620220705EWBNCNMTH-1, 12.00 ,REDRUTH ROAD-PURCHASE OF FURNITURE & EQUIPM,"DRAPERY, UPHOLSTERY, AND WINDOW COVERINGS STORES",GPC
WALSALL COUNCIL,http://opendatacommunities.org/id/metropolitan-district-council/walsall ,30/09/2022,CHILDRENS SERVICES,AMAZON.CO.UK*2Y5265064,01/07/2022,H59620220705FLEVRXTXB-1, 7.99 ,LANGUAGES-MATERIALS,OTHER DIRECT MARKETING-OTHER DIRECT MARKETERS,GPC
WALSALL COUNCIL,http://opendatacommunities.org/id/metropolitan-district-council/walsall ,30/09/2022,CHILDRENS SERVICES,AMAZON.CO.UK*2Y6DU0ET4,01/07/2022,H59620220705FUYGXUNJM-1, 18.67 ,LITERACY-MATERIALS,OTHER DIRECT MARKETING-OTHER DIRECT MARKETERS,GPC
WALSALL COUNCIL,http://opendatacommunities.org/id/metropolitan-district-council/walsall ,30/09/2022,RESOURCES AND TRANSFORMATION,JOHAL DAIRIES LTD,01/07/2022,H59620220705GHCXBNOGY-1, 41.65 ,CATERING - SCHOOLS-FOOD & DRINK SUPPLIES,OTHER NONDURABLE GOODS,GPC
WALSALL COUNCIL,http://opendatacommunities.org/id/metropolitan-district-council/walsall ,30/09/2022,RESOURCES AND TRANSFORMATION,JOHAL DAIRIES LTD,01/07/2022,H59620220705GHOTGUTVC-1, 23.80 ,CATERING - SCHOOLS-FOOD & DRINK SUPPLIES,OTHER NONDURABLE GOODS,GPC
WALSALL COUNCIL,http://opendatacommunities.org/id/metropolitan-district-council/walsall ,30/09/2022,ECONOMY & ENVIRONMENT,CALDMORE TIMBER 09 LTD,01/07/2022,H59620220705GIYTJHKGK-1, 107.00 ,WALSALL ARENA AND ARTS CENTRE-MATERIALS,OTHER INDUSTRIAL SUPPLIES,GPC
WALSALL COUNCIL,http://opendatacommunities.org/id/metropolitan-district-council/walsall ,30/09/2022,ECONOMY & ENVIRONMENT,CALDMORE TIMBER 09 LTD,01/07/2022,H59620220705GIYTJHKGK-2, 8.50 ,WALSALL ARENA AND ARTS CENTRE-POSTAGES & COURIER SERVICES,OTHER INDUSTRIAL SUPPLIES,GPC
WALSALL COUNCIL,http://opendatacommunities.org/id/metropolitan-district-council/walsall ,30/09/2022,RESOURCES AND TRANSFORMATION,JOHAL DAIRIES LTD,01/07/2022,H59620220705HLXHXSGMH-1, 10.23 ,CATERING - SCHOOLS-FOOD & DRINK SUPPLIES,OTHER NONDURABLE GOODS,GPC
WALSALL COUNCIL,http://opendatacommunities.org/id/metropolitan-district-council/walsall ,30/09/2022,RESOURCES AND TRANSFORMATION,JOHAL DAIRIES LTD,01/07/2022,H59620220705HODXEYDBB-1, 40.63 ,CATERING - SCHOOLS-FOOD & DRINK SUPPLIES,OTHER NONDURABLE GOODS,GPC
WALSALL COUNCIL,http://opendatacommunities.org/id/metropolitan-district-council/walsall ,30/09/2022,RESOURCES AND TRANSFORMATION,AMZNMKTPLACE,01/07/2022,H59620220705IFXQETJBL-1, 13.99 ,HR ADMIN HUB-STATIONERY & GENERAL OFFICE SU,MISCELLANEOUS AND SPECIALTY RETAIL STORES,GPC
WALSALL COUNCIL,http://opendatacommunities.org/id/metropolitan-district-council/walsall ,30/09/2022,ECONOMY & ENVIRONMENT,AMZNMKTPLACE,01/07/2022,H59620220705IGHRVGBLW-1, 5.99 ,BLOXWICH ACTIVE LIVING CENTRE-STATIONERY & GENERAL OFFICE SU,MISCELLANEOUS AND SPECIALTY RETAIL STORES,GPC
WALSALL COUNCIL,http://opendatacommunities.org/id/metropolitan-district-council/walsall ,30/09/2022,CHILDRENS SERVICES,AMZNMKTPLACE,01/07/2022,H59620220705IGRTLPVQE-1, 7.58 ,ELMWOOD SCHOOL-MATERIALS,MISCELLANEOUS AND SPECIALTY RETAIL STORES,GPC
WALSALL COUNCIL,http://opendatacommunities.org/id/metropolitan-district-council/walsall ,30/09/2022,ECONOMY & ENVIRONMENT,AMZNMKTPLACE,01/07/2022,H59620220705IJMLIKVGM-1, 31.50 ,WALSALL OUTDOOR PURSUITS-STATIONERY & GENERAL OFFICE SU,MISCELLANEOUS AND SPECIALTY RETAIL STORES,GPC
WALSALL COUNCIL,http://opendatacommunities.org/id/metropolitan-district-council/walsall ,30/09/2022,ECONOMY & ENVIRONMENT,BACK CARE SOLUTIONS,01/07/2022,H59620220705IMLEGXPWS-1, 209.40 ,DARLASTON SWIMMING AND FITNESS-PURCHASE OF FURNITURE & EQUIPM,MISCELLANEOUS GENERAL MERCHANDISE,GPC
WALSALL COUNCIL,http://opendatacommunities.org/id/metropolitan-district-council/walsall ,30/09/2022,CHILDRENS SERVICES,HAMLEYS OF LONDON LIMITED,01/07/2022,H59620220705IOFMVFFMW-1, 98.00 ,HISTORY / GEOGRAPHY-MATERIALS,"GAME, TOY, AND HOBBY SHOPS",GPC
WALSALL COUNCIL,http://opendatacommunities.org/id/metropolitan-district-council/walsall ,30/09/2022,RESOURCES AND TRANSFORMATION,JOHAL DAIRIES LTD,01/07/2022,H59620220705IPXXTBEIA-1, 4.60 ,CATERING - SCHOOLS-FOOD & DRINK SUPPLIES,OTHER NONDURABLE GOODS,GPC
WALSALL COUNCIL,http://opendatacommunities.org/id/metropolitan-district-council/walsall ,30/09/2022,RESOURCES AND TRANSFORMATION,JOHAL DAIRIES LTD,01/07/2022,H59620220705IXMREHNWL-1,-8.50 ,CATERING - SCHOOLS-FOOD & DRINK SUPPLIES,OTHER NONDURABLE GOODS,GPC
WALSALL COUNCIL,http://opendatacommunities.org/id/metropolitan-district-council/walsall ,30/09/2022,RESOURCES AND TRANSFORMATION,ARTHUR BRETT CATER,01/07/2022,H59620220705JFDVDWTKO-1, 53.25 ,CATERING - SCHOOLS-FOOD & DRINK SUPPLIES,MISCELLANEOUS FOOD STORES & CONVENIENCE STORES,GPC
WALSALL COUNCIL,http://opendatacommunities.org/id/metropolitan-district-council/walsall ,30/09/2022,RESOURCES AND TRANSFORMATION,JOHAL DAIRIES LTD,01/07/2022,H59620220705JGKVGZZHY-1, 35.70 ,CATERING - SCHOOLS-FOOD & DRINK SUPPLIES,OTHER NONDURABLE GOODS,GPC
WALSALL COUNCIL,http://opendatacommunities.org/id/metropolitan-district-council/walsall ,30/09/2022,RESOURCES AND TRANSFORMATION,JOHAL DAIRIES LTD,01/07/2022,H59620220705KDZHOKGMU-1, 14.28 ,CATERING - SCHOOLS-FOOD & DRINK SUPPLIES,OTHER NONDURABLE GOODS,GPC
WALSALL COUNCIL,http://opendatacommunities.org/id/metropolitan-district-council/walsall ,30/09/2022,ECONOMY & ENVIRONMENT,WILKO RETAIL LIMITED,01/07/2022,H59620220705KFCMJECVB-1, 23.00 ,BLOXWICH LIBRARY-PURCHASE OF FURNITURE & EQUIPM,MISCELLANEOUS GENERAL MERCHANDISE,GPC
WALSALL COUNCIL,http://opendatacommunities.org/id/metropolitan-district-council/walsall ,30/09/2022,RESOURCES AND TRANSFORMATION,JOHAL DAIRIES LTD,01/07/2022,H59620220705KFNXGNYFQ-1, 11.90 ,CATERING - SCHOOLS-FOOD & DRINK SUPPLIES,OTHER NONDURABLE GOODS,GPC
WALSALL COUNCIL,http://opendatacommunities.org/id/metropolitan-district-council/walsall ,30/09/2022,CHILDRENS SERVICES,BEVERLEY HOTEL LTD - T,01/07/2022,H59620220705KJKZOQNEX-1, 162.00 ,BED & BREAKFAST PAYMENTS-BED & BREAKFAST PAYMENTS,"HOTELS, MOTELS, RESORTS",GPC
WALSALL COUNCIL,http://opendatacommunities.org/id/metropolitan-district-council/walsall ,30/09/2022,RESOURCES AND TRANSFORMATION,NOBISCO LIMITED,01/07/2022,H59620220705KMVFMUYMV-1, 125.50 ,CATERING - SCHOOLS-FOOD & DRINK SUPPLIES,OTHER INDUSTRIAL SUPPLIES,GPC
WALSALL COUNCIL,http://opendatacommunities.org/id/metropolitan-district-council/walsall ,30/09/2022,CHILDRENS SERVICES,ASDA SUPERSTORE,01/07/2022,H59620220705KSQSBHQDM-1, 10.85 ,REDRUTH ROAD-FOOD & DRINK SUPPLIES,GROCERY STORES AND SUPERMARKETS,GPC
WALSALL COUNCIL,http://opendatacommunities.org/id/metropolitan-district-council/walsall ,30/09/2022,CHILDRENS SERVICES,ASDA SUPERSTORE,01/07/2022,H59620220705KSQSBHQDM-2, 120.84 ,REDRUTH ROAD-FOOD & DRINK SUPPLIES,GROCERY STORES AND SUPERMARKETS,GPC
WALSALL COUNCIL,http://opendatacommunities.org/id/metropolitan-district-council/walsall ,30/09/2022,RESOURCES AND TRANSFORMATION,CHICKEN JOES LTD,01/07/2022,H59620220705KWOJNVFQI-1, 112.17 ,CATERING - SCHOOLS-FOOD & DRINK SUPPLIES,CATERERS,GPC
WALSALL COUNCIL,http://opendatacommunities.org/id/metropolitan-district-council/walsall ,30/09/2022,RESOURCES AND TRANSFORMATION,JOHAL DAIRIES LTD,01/07/2022,H59620220705LEBBYMMQV-1, 16.66 ,CATERING - SCHOOLS-FOOD & DRINK SUPPLIES,OTHER NONDURABLE GOODS,GPC
WALSALL COUNCIL,http://opendatacommunities.org/id/metropolitan-district-council/walsall ,30/09/2022,CHILDRENS SERVICES,AMAZON.CO.UK*2Y9PQ8AK4,01/07/2022,H59620220705LWHJUKGRE-1, 116.40 ,LITERACY-MATERIALS,OTHER DIRECT MARKETING-OTHER DIRECT MARKETERS,GPC
WALSALL COUNCIL,http://opendatacommunities.org/id/metropolitan-district-council/walsall ,30/09/2022,RESOURCES AND TRANSFORMATION,CHICKEN JOES LTD,01/07/2022,H59620220705MCMMKMYKQ-1, 97.10 ,CATERING - SCHOOLS-FOOD & DRINK SUPPLIES,CATERERS,GPC
WALSALL COUNCIL,http://opendatacommunities.org/id/metropolitan-district-council/walsall ,30/09/2022,RESOURCES AND TRANSFORMATION,JOHAL DAIRIES LTD,01/07/2022,H59620220705MCSABXECP-1, 28.50 ,CATERING - SCHOOLS-FOOD & DRINK SUPPLIES,OTHER NONDURABLE GOODS,GPC
WALSALL COUNCIL,http://opendatacommunities.org/id/metropolitan-district-council/walsall ,30/09/2022,RESOURCES AND TRANSFORMATION,JOHAL DAIRIES LTD,01/07/2022,H59620220705MGLPAYCSB-1, 41.65 ,CATERING - SCHOOLS-FOOD & DRINK SUPPLIES,OTHER NONDURABLE GOODS,GPC
WALSALL COUNCIL,http://opendatacommunities.org/id/metropolitan-district-council/walsall ,30/09/2022,CHILDRENS SERVICES,AMZNMKTPLACE,01/07/2022,H59620220705MGNFGZXYR-1, 38.80 ,LITERACY-MATERIALS,MISCELLANEOUS AND SPECIALTY RETAIL STORES,GPC
WALSALL COUNCIL,http://opendatacommunities.org/id/metropolitan-district-council/walsall ,30/09/2022,RESOURCES AND TRANSFORMATION,CHICKEN JOES LTD,01/07/2022,H59620220705MHBOCIVRG-1, 126.45 ,CATERING - SCHOOLS-FOOD & DRINK SUPPLIES,CATERERS,GPC
WALSALL COUNCIL,http://opendatacommunities.org/id/metropolitan-district-council/walsall ,30/09/2022,RESOURCES AND TRANSFORMATION,AMZNMKTPLACE,01/07/2022,H59620220705MIULEIHCU-1, 54.99 ,CLEANING - MANAGEMENT-STATIONERY & GENERAL OFFICE SU,MISCELLANEOUS AND SPECIALTY RETAIL STORES,GPC
WALSALL COUNCIL,http://opendatacommunities.org/id/metropolitan-district-council/walsall ,30/09/2022,RESOURCES AND TRANSFORMATION,JOHAL DAIRIES LTD,01/07/2022,H59620220705MUMEOFMVZ-1, 26.18 ,CATERING - SCHOOLS-FOOD & DRINK SUPPLIES,OTHER NONDURABLE GOODS,GPC
WALSALL COUNCIL,http://opendatacommunities.org/id/metropolitan-district-council/walsall ,30/09/2022,RESOURCES AND TRANSFORMATION,JOHAL DAIRIES LTD,01/07/2022,H59620220705MVWBNYHJP-1, 17.85 ,CATERING - SCHOOLS-FOOD & DRINK SUPPLIES,OTHER NONDURABLE GOODS,GPC
WALSALL COUNCIL,http://opendatacommunities.org/id/metropolitan-district-council/walsall ,30/09/2022,CHILDRENS SERVICES,WWW.EDUCARE.CO.UK,01/07/2022,H59620220705NCHWHFHII-1, 35.40 ,LEAMORE PRIMARY SCHOOL-EXTERNAL TRAINING,"COLLEGES, UNIVERSITIES, PROFESSIONAL SCHOOLS",GPC
WALSALL COUNCIL,http://opendatacommunities.org/id/metropolitan-district-council/walsall ,30/09/2022,RESOURCES AND TRANSFORMATION,CHICKEN JOES LTD,01/07/2022,H59620220705NKDASUFPS-1, 89.70 ,CATERING - SCHOOLS-FOOD & DRINK SUPPLIES,CATERERS,GPC
WALSALL COUNCIL,http://opendatacommunities.org/id/metropolitan-district-council/walsall ,30/09/2022,CHILDRENS SERVICES,AMAZON.CO.UK*2Y0747ES4,01/07/2022,H59620220705NORYPJXII-1, 7.28 ,LANGUAGES-MATERIALS,OTHER DIRECT MARKETING-OTHER DIRECT MARKETERS,GPC
WALSALL COUNCIL,http://opendatacommunities.org/id/metropolitan-district-council/walsall ,30/09/2022,CHILDRENS SERVICES,AMZNMKTPLACE,01/07/2022,H59620220705NSVBUVRNJ-1, 14.99 ,OLD HALL SCHOOL-MATERIALS,MISCELLANEOUS AND SPECIALTY RETAIL STORES,GPC
WALSALL COUNCIL,http://opendatacommunities.org/id/metropolitan-district-council/walsall ,30/09/2022,CHILDRENS SERVICES,AMAZON.CO.UK*2Y5PY0A84,01/07/2022,H59620220705NVQDUULLX-1, 77.80 ,LITERACY-MATERIALS,OTHER DIRECT MARKETING-OTHER DIRECT MARKETERS,GPC
WALSALL COUNCIL,http://opendatacommunities.org/id/metropolitan-district-council/walsall ,30/09/2022,RESOURCES AND TRANSFORMATION,JOHAL DAIRIES LTD,01/07/2022,H59620220705OMSFYRRUB-1, 11.90 ,CATERING - SCHOOLS-FOOD & DRINK SUPPLIES,OTHER NONDURABLE GOODS,GPC
WALSALL COUNCIL,http://opendatacommunities.org/id/metropolitan-district-council/walsall ,30/09/2022,CHILDRENS SERVICES,AMZNMKTPLACE,01/07/2022,H59620220705OXAFGSCXI-1, 5.02 ,E19-LIBRARY BOOKS,MISCELLANEOUS AND SPECIALTY RETAIL STORES,GPC
WALSALL COUNCIL,http://opendatacommunities.org/id/metropolitan-district-council/walsall ,30/09/2022,CHILDRENS SERVICES,MERCURE BARONS COURT HO,01/07/2022,H59620220705PAFYNKYEW-1, 136.80 ,BED & BREAKFAST PAYMENTS-BED & BREAKFAST PAYMENTS,"HOTELS, MOTELS, RESORTS",GPC
WALSALL COUNCIL,http://opendatacommunities.org/id/metropolitan-district-council/walsall ,30/09/2022,CHILDRENS SERVICES,MERCURE BARONS COURT HO,01/07/2022,H59620220705PAFYNKYEW-2, 34.20 ,BED & BREAKFAST PAYMENTS-BED & BREAKFAST PAYMENTS,"HOTELS, MOTELS, RESORTS",GPC
WALSALL COUNCIL,http://opendatacommunities.org/id/metropolitan-district-council/walsall ,30/09/2022,RESOURCES AND TRANSFORMATION,CHICKEN JOES LTD,01/07/2022,H59620220705PJMWVTQCQ-1, 78.56 ,CATERING - SCHOOLS-FOOD & DRINK SUPPLIES,CATERERS,GPC
WALSALL COUNCIL,http://opendatacommunities.org/id/metropolitan-district-council/walsall ,30/09/2022,CHILDRENS SERVICES,CARD FACTORY,01/07/2022,H59620220705PUCFEIYWH-1, 6.27 ,CARE LEAVER ENTITLEMENTS-CARE LEAVERS MISC EXPENSES,"CARD, GIFT, NOVELTY, AND SOUVENIR SHOPS",GPC
WALSALL COUNCIL,http://opendatacommunities.org/id/metropolitan-district-council/walsall ,30/09/2022,RESOURCES AND TRANSFORMATION,WWW.BANNERUK.COM,01/07/2022,H59620220705PVJTTBCIP-1, 2.69 ,LAW LIBRARY-STATIONERY & GENERAL OFFICE SU,"STATIONERY, OFFICE SUPPLIES AND WRITING PAPER",GPC
WALSALL COUNCIL,http://opendatacommunities.org/id/metropolitan-district-council/walsall ,30/09/2022,CHILDRENS SERVICES,FOXHILLS FISHERY LIMITED,01/07/2022,H59620220705PWDBJTMHT-1, 18.00 ,ENRICHMENT-MATERIALS,SPORTING GOODS STORES,GPC
WALSALL COUNCIL,http://opendatacommunities.org/id/metropolitan-district-council/walsall ,30/09/2022,RESOURCES AND TRANSFORMATION,CHICKEN JOES LTD,01/07/2022,H59620220705QMIJDHIHC-1, 142.42 ,CATERING - SCHOOLS-FOOD & DRINK SUPPLIES,CATERERS,GPC
WALSALL COUNCIL,http://opendatacommunities.org/id/metropolitan-district-council/walsall ,30/09/2022,RESOURCES AND TRANSFORMATION,WWW.BANNERUK.COM,01/07/2022,H59620220705QTOAQBGOH-1, 2.30 ,LAW LIBRARY-STATIONERY & GENERAL OFFICE SU,"STATIONERY, OFFICE SUPPLIES AND WRITING PAPER",GPC
WALSALL COUNCIL,http://opendatacommunities.org/id/metropolitan-district-council/walsall ,30/09/2022,RESOURCES AND TRANSFORMATION,WWW.BANNERUK.COM,01/07/2022,H59620220705RFKLGHPJF-1, 2.69 ,LAW LIBRARY-STATIONERY & GENERAL OFFICE SU,"STATIONERY, OFFICE SUPPLIES AND WRITING PAPER",GPC
WALSALL COUNCIL,http://opendatacommunities.org/id/metropolitan-district-council/walsall ,30/09/2022,ECONOMY & ENVIRONMENT,B & Q 1276,01/07/2022,H59620220705ROHVTDYOI-1, 184.40 ,INFRASTRUCTURE MAINTENANCE-PURCHASE OF FURNITURE & EQUIPM,HOME SUPPLY WAREHOUSE STORES,GPC
WALSALL COUNCIL,http://opendatacommunities.org/id/metropolitan-district-council/walsall ,30/09/2022,RESOURCES AND TRANSFORMATION,CHICKEN JOES LTD,01/07/2022,H59620220705RPWMFMXME-1, 92.16 ,CATERING - SCHOOLS-FOOD & DRINK SUPPLIES,CATERERS,GPC
WALSALL COUNCIL,http://opendatacommunities.org/id/metropolitan-district-council/walsall ,30/09/2022,CHILDRENS SERVICES,EBAY O*17-08813-39572,01/07/2022,H59620220705RTXYKVIOB-1, 7.98 ,CHUCKERY PRIMARY SCHOOL-MATERIALS,DEPARTMENT STORES,GPC
WALSALL COUNCIL,http://opendatacommunities.org/id/metropolitan-district-council/walsall ,30/09/2022,RESOURCES AND TRANSFORMATION,NOBISCO LIMITED,01/07/2022,H59620220705RUDDJSJYK-1, 76.04 ,CATERING - SCHOOLS-FOOD & DRINK SUPPLIES,OTHER INDUSTRIAL SUPPLIES,GPC
WALSALL COUNCIL,http://opendatacommunities.org/id/metropolitan-district-council/walsall ,30/09/2022,RESOURCES AND TRANSFORMATION,INDEED TEL+35312545907,01/07/2022,H59620220705SEKELMBQV-1, 332.82 ,SCHOOLS HR TRANSACTIONAL TEAM-ADVERTISING STAFF VACANCIES,OTHER BUSINESS SERVICES,GPC
WALSALL COUNCIL,http://opendatacommunities.org/id/metropolitan-district-council/walsall ,30/09/2022,RESOURCES AND TRANSFORMATION,JOHAL DAIRIES LTD,01/07/2022,H59620220705SLRAVWMUJ-1, 43.77 ,CATERING - SCHOOLS-FOOD & DRINK SUPPLIES,OTHER NONDURABLE GOODS,GPC
WALSALL COUNCIL,http://opendatacommunities.org/id/metropolitan-district-council/walsall ,30/09/2022,CHILDRENS SERVICES,AMZNMKTPLACE,01/07/2022,H59620220705SVJUSXBLJ-1, 69.99 ,FAMILY SAFEGUARDING CENTRAL AN-SECTION 1/17CHILD CARE ACT 198,MISCELLANEOUS AND SPECIALTY RETAIL STORES,GPC
WALSALL COUNCIL,http://opendatacommunities.org/id/metropolitan-district-council/walsall ,30/09/2022,CHILDRENS SERVICES,AMZNMKTPLACE,01/07/2022,H59620220705SZINHXLSB-1, 14.08 ,E19-LIBRARY BOOKS,MISCELLANEOUS AND SPECIALTY RETAIL STORES,GPC
WALSALL COUNCIL,http://opendatacommunities.org/id/metropolitan-district-council/walsall ,30/09/2022,ECONOMY & ENVIRONMENT,ASDA STORES,01/07/2022,H59620220705SZXEWTRUV-1, 20.75 ,STREETLY LIBRARY-FOOD & DRINK SUPPLIES,GROCERY STORES AND SUPERMARKETS,GPC
WALSALL COUNCIL,http://opendatacommunities.org/id/metropolitan-district-council/walsall ,30/09/2022,RESOURCES AND TRANSFORMATION,JOHAL DAIRIES LTD,01/07/2022,H59620220705TLTWYWOPX-1, 60.67 ,CATERING - SCHOOLS-FOOD & DRINK SUPPLIES,OTHER NONDURABLE GOODS,GPC
WALSALL COUNCIL,http://opendatacommunities.org/id/metropolitan-district-council/walsall ,30/09/2022,CHILDRENS SERVICES,AMZNMKTPLACE,01/07/2022,H59620220705TMQHBUUTU-1, 7.60 ,LITERACY-MATERIALS,MISCELLANEOUS AND SPECIALTY RETAIL STORES,GPC
WALSALL COUNCIL,http://opendatacommunities.org/id/metropolitan-district-council/walsall ,30/09/2022,RESOURCES AND TRANSFORMATION,JOHAL DAIRIES LTD,01/07/2022,H59620220705UCQDRELDP-1, 69.06 ,CATERING - SCHOOLS-FOOD & DRINK SUPPLIES,OTHER NONDURABLE GOODS,GPC
WALSALL COUNCIL,http://opendatacommunities.org/id/metropolitan-district-council/walsall ,30/09/2022,CHILDRENS SERVICES,BRITISH HEART FOUNDATION,01/07/2022,H59620220705USSKDMISB-1, 25.00 ,CARE LEAVER ENTITLEMENTS-SETTING UP HOME GRANT,"ORGANIZATIONS, CHARITABLE AND SOCIAL SERVICE",GPC
WALSALL COUNCIL,http://opendatacommunities.org/id/metropolitan-district-council/walsall ,30/09/2022,CHILDRENS SERVICES,BRITISH HEART FOUNDATION,01/07/2022,H59620220705USSKDMISB-2, 235.00 ,CARE LEAVER ENTITLEMENTS-SETTING UP HOME GRANT,"ORGANIZATIONS, CHARITABLE AND SOCIAL SERVICE",GPC
WALSALL COUNCIL,http://opendatacommunities.org/id/metropolitan-district-council/walsall ,30/09/2022,RESOURCES AND TRANSFORMATION,WWW.BANNERUK.COM,01/07/2022,H59620220705VABVAMSYS-1, 17.28 ,LAW LIBRARY-STATIONERY & GENERAL OFFICE SU,"STATIONERY, OFFICE SUPPLIES AND WRITING PAPER",GPC
WALSALL COUNCIL,http://opendatacommunities.org/id/metropolitan-district-council/walsall ,30/09/2022,CHILDRENS SERVICES,EASY FLORIST SUPPLIES,01/07/2022,H59620220705VBGDLRHWG-1, 8.45 ,CHUCKERY PRIMARY SCHOOL-MATERIALS,MISCELLANEOUS AND SPECIALTY RETAIL STORES,GPC
WALSALL COUNCIL,http://opendatacommunities.org/id/metropolitan-district-council/walsall ,30/09/2022,RESOURCES AND TRANSFORMATION,CHICKEN JOES LTD,01/07/2022,H59620220705VBYHPEHYX-1, 81.24 ,CATERING - SCHOOLS-FOOD & DRINK SUPPLIES,CATERERS,GPC
WALSALL COUNCIL,http://opendatacommunities.org/id/metropolitan-district-council/walsall ,30/09/2022,ECONOMY & ENVIRONMENT,WETRANSFER,01/07/2022,H59620220705VISDWLSTW-1, 8.68 ,NAG - ART GALLERY MARKETING-SUBSCRIPTIONS,"COMPUTER PROGRAM, SYSTEM DESIGN",GPC
WALSALL COUNCIL,http://opendatacommunities.org/id/metropolitan-district-council/walsall ,30/09/2022,ECONOMY & ENVIRONMENT,TFM FARM COUNTRY,01/07/2022,H59620220705VKEBFLXNR-1, 76.15 ,PARKS AND COUNTRYSIDE-MATERIALS,AGRICULTURAL COOPERATIVES,GPC
WALSALL COUNCIL,http://opendatacommunities.org/id/metropolitan-district-council/walsall ,30/09/2022,RESOURCES AND TRANSFORMATION,JOHAL DAIRIES LTD,01/07/2022,H59620220705VMFUECJNJ-1, 27.37 ,CATERING - SCHOOLS-FOOD & DRINK SUPPLIES,OTHER NONDURABLE GOODS,GPC
WALSALL COUNCIL,http://opendatacommunities.org/id/metropolitan-district-council/walsall ,30/09/2022,CHILDRENS SERVICES,APT ONLINE TRAINING,01/07/2022,H59620220705VODKCQHBF-1, 212.40 ,DAISY SERVICE PROGRAMME-PROFESSIONAL FEES & SERVICES,COMPUTER SOFTWARE STORES,GPC
WALSALL COUNCIL,http://opendatacommunities.org/id/metropolitan-district-council/walsall ,30/09/2022,CHILDRENS SERVICES,SPORTSDIRECT.COM,01/07/2022,H59620220705VPVDCXOIM-1, 770.25 ,PE RESOURCES-MATERIALS,"SPORTS APPAREL, RIDING APPAREL STORES",GPC
WALSALL COUNCIL,http://opendatacommunities.org/id/metropolitan-district-council/walsall ,30/09/2022,CHILDRENS SERVICES,SPORTSDIRECT.COM,01/07/2022,H59620220705VPVDCXOIM-2, 30.00 ,PE GRANT-MATERIALS,"SPORTS APPAREL, RIDING APPAREL STORES",GPC
WALSALL COUNCIL,http://opendatacommunities.org/id/metropolitan-district-council/walsall ,30/09/2022,CHILDRENS SERVICES,AMAZON.CO.UK*2Y3A03054,01/07/2022,H59620220705VZTJQWUTD-1, 11.88 ,LITERACY-MATERIALS,OTHER DIRECT MARKETING-OTHER DIRECT MARKETERS,GPC
WALSALL COUNCIL,http://opendatacommunities.org/id/metropolitan-district-council/walsall ,30/09/2022,RESOURCES AND TRANSFORMATION,JOHAL DAIRIES LTD,01/07/2022,H59620220705WFBBKDKYC-1, 9.20 ,CATERING - SCHOOLS-FOOD & DRINK SUPPLIES,OTHER NONDURABLE GOODS,GPC
WALSALL COUNCIL,http://opendatacommunities.org/id/metropolitan-district-council/walsall ,30/09/2022,RESOURCES AND TRANSFORMATION,CHICKEN JOES LTD,01/07/2022,H59620220705WHUPVSICQ-1, 122.08 ,CATERING - SCHOOLS-FOOD & DRINK SUPPLIES,CATERERS,GPC
WALSALL COUNCIL,http://opendatacommunities.org/id/metropolitan-district-council/walsall ,30/09/2022,RESOURCES AND TRANSFORMATION,JOHAL DAIRIES LTD,01/07/2022,H59620220705WIOAUYCIC-1, 17.34 ,CATERING - SCHOOLS-FOOD & DRINK SUPPLIES,OTHER NONDURABLE GOODS,GPC
WALSALL COUNCIL,http://opendatacommunities.org/id/metropolitan-district-council/walsall ,30/09/2022,RESOURCES AND TRANSFORMATION,CHICKEN JOES LTD,01/07/2022,H59620220705WRWKVFOGN-1, 124.34 ,CATERING - SCHOOLS-FOOD & DRINK SUPPLIES,CATERERS,GPC
WALSALL COUNCIL,http://opendatacommunities.org/id/metropolitan-district-council/walsall ,30/09/2022,CHILDRENS SERVICES,EDUCATION ELEPHANT,01/07/2022,H59620220705WYSBWZGXX-1, 615.10 ,SEN-STATIONERY & GENERAL OFFICE SU,OTHER SCHOOLS AND EDUCATIONAL SERVICES,GPC
WALSALL COUNCIL,http://opendatacommunities.org/id/metropolitan-district-council/walsall ,30/09/2022,CHILDRENS SERVICES,AMZNMKTPLACE,01/07/2022,H59620220705XYYUFAISO-1, 2.43 ,DT & ART-MATERIALS,MISCELLANEOUS AND SPECIALTY RETAIL STORES,GPC
WALSALL COUNCIL,http://opendatacommunities.org/id/metropolitan-district-council/walsall ,30/09/2022,CHILDRENS SERVICES,AMAZON.CO.UK*2Y9V72A74,01/07/2022,H59620220705YJKVHLYWS-1, 69.82 ,LITERACY-MATERIALS,OTHER DIRECT MARKETING-OTHER DIRECT MARKETERS,GPC
WALSALL COUNCIL,http://opendatacommunities.org/id/metropolitan-district-council/walsall ,30/09/2022,CHILDRENS SERVICES,AMZNMKTPLACE,01/07/2022,H59620220705ZGGNDWEXE-1, 10.20 ,LEARNING ENVIRONMENT-MATERIALS,MISCELLANEOUS AND SPECIALTY RETAIL STORES,GPC
WALSALL COUNCIL,http://opendatacommunities.org/id/metropolitan-district-council/walsall ,30/09/2022,CHILDRENS SERVICES,ARGOS LTD,01/07/2022,H59620220705ZIBFIONJJ-1, 29.99 ,FAMILY SAFEGUARDING NORTH LOCA-MATERIALS,DISCOUNT STORES,GPC
WALSALL COUNCIL,http://opendatacommunities.org/id/metropolitan-district-council/walsall ,30/09/2022,RESOURCES AND TRANSFORMATION,ARTHUR BRETT CATER,01/07/2022,H59620220705ZSBBBZDRJ-1, 105.22 ,CATERING - SCHOOLS-FOOD & DRINK SUPPLIES,MISCELLANEOUS FOOD STORES & CONVENIENCE STORES,GPC
WALSALL COUNCIL,http://opendatacommunities.org/id/metropolitan-district-council/walsall ,30/09/2022,RESOURCES AND TRANSFORMATION,ARTHUR BRETT CATER,01/07/2022,H59620220709XNZSZAUAR-1,-0.88 ,CATERING - SCHOOLS-FOOD & DRINK SUPPLIES,MISCELLANEOUS FOOD STORES & CONVENIENCE STORES,GPC
WALSALL COUNCIL,http://opendatacommunities.org/id/metropolitan-district-council/walsall ,30/09/2022,ECONOMY & ENVIRONMENT,AMZNMKTPLACE,02/07/2022,H59620220705ASTITVNBJ-1, 6.61 ,DARLASTON SWIMMING AND FITNESS-STATIONERY & GENERAL OFFICE SU,MISCELLANEOUS AND SPECIALTY RETAIL STORES,GPC
WALSALL COUNCIL,http://opendatacommunities.org/id/metropolitan-district-council/walsall ,30/09/2022,ECONOMY & ENVIRONMENT,AMZNMKTPLACE,02/07/2022,H59620220705ASTITVNBJ-2, 6.61 ,OAK PARK ACTIVE LIVING CENTRE-STATIONERY & GENERAL OFFICE SU,MISCELLANEOUS AND SPECIALTY RETAIL STORES,GPC
WALSALL COUNCIL,http://opendatacommunities.org/id/metropolitan-district-council/walsall ,30/09/2022,ECONOMY & ENVIRONMENT,AMZNMKTPLACE,02/07/2022,H59620220705ASTITVNBJ-3, 6.61 ,BLOXWICH ACTIVE LIVING CENTRE-STATIONERY & GENERAL OFFICE SU,MISCELLANEOUS AND SPECIALTY RETAIL STORES,GPC
WALSALL COUNCIL,http://opendatacommunities.org/id/metropolitan-district-council/walsall ,30/09/2022,ECONOMY & ENVIRONMENT,AMZNMKTPLACE,02/07/2022,H59620220705ASTITVNBJ-4, 6.62 ,WALSALL GALA SWIMMING AND FITN-STATIONERY & GENERAL OFFICE SU,MISCELLANEOUS AND SPECIALTY RETAIL STORES,GPC
WALSALL COUNCIL,http://opendatacommunities.org/id/metropolitan-district-council/walsall ,30/09/2022,CHILDRENS SERVICES,AMZNMKTPLACE,02/07/2022,H59620220705DBHRJXIER-1, 40.55 ,OLD HALL SCHOOL-MATERIALS,MISCELLANEOUS AND SPECIALTY RETAIL STORES,GPC
WALSALL COUNCIL,http://opendatacommunities.org/id/metropolitan-district-council/walsall ,30/09/2022,CHILDRENS SERVICES,B & Q 1276,02/07/2022,H59620220705ECKMUSNBD-1, 28.00 ,CONTINGENCY-MATERIALS,HOME SUPPLY WAREHOUSE STORES,GPC
WALSALL COUNCIL,http://opendatacommunities.org/id/metropolitan-district-council/walsall ,30/09/2022,CHILDRENS SERVICES,ASDA SUPERSTORE,02/07/2022,H59620220705FYQQYGSPW-1, 4.85 ,MARY ELLIOTT SCHOOL-FOOD & DRINK SUPPLIES,GROCERY STORES AND SUPERMARKETS,GPC
WALSALL COUNCIL,http://opendatacommunities.org/id/metropolitan-district-council/walsall ,30/09/2022,CHILDRENS SERVICES,HIE LICHFIELD,02/07/2022,H59620220705LODKFVOCH-1, 188.98 ,BED & BREAKFAST PAYMENTS-BED & BREAKFAST PAYMENTS,HOLIDAY INNS,GPC
WALSALL COUNCIL,http://opendatacommunities.org/id/metropolitan-district-council/walsall ,30/09/2022,CHILDRENS SERVICES,ADOBE ACROPRO SUBS,02/07/2022,H59620220705LWSPNVJKH-1, 15.17 ,ADMINISTRATIVE SUPPLIES-MATERIALS,COMPUTER SOFTWARE STORES,GPC
WALSALL COUNCIL,http://opendatacommunities.org/id/metropolitan-district-council/walsall ,30/09/2022,CHILDRENS SERVICES,DUNELM LTD,02/07/2022,H59620220705PLPEJIMMU-1, 13.00 ,REDRUTH ROAD-PURCHASE OF FURNITURE & EQUIPM,"DRAPERY, UPHOLSTERY, AND WINDOW COVERINGS STORES",GPC
WALSALL COUNCIL,http://opendatacommunities.org/id/metropolitan-district-council/walsall ,30/09/2022,CHILDRENS SERVICES,AMZNMKTPLACE,02/07/2022,H59620220705RIYHNOWEX-1, 12.96 ,OLD HALL SCHOOL-MATERIALS,MISCELLANEOUS AND SPECIALTY RETAIL STORES,GPC
WALSALL COUNCIL,http://opendatacommunities.org/id/metropolitan-district-council/walsall ,30/09/2022,ECONOMY & ENVIRONMENT,BOOTS THE CHEMIST,02/07/2022,H59620220705TODFKOCPO-1, 20.00 ,COMMUNITY LIAISON-MATERIALS,"DRUG STORES, PHARMACIES",GPC
WALSALL COUNCIL,http://opendatacommunities.org/id/metropolitan-district-council/walsall ,30/09/2022,CHILDRENS SERVICES,AMZNMKTPLACE,03/07/2022,H59620220705ALEGEWQKQ-1, 19.65 ,E19-LIBRARY BOOKS,MISCELLANEOUS AND SPECIALTY RETAIL STORES,GPC
WALSALL COUNCIL,http://opendatacommunities.org/id/metropolitan-district-council/walsall ,30/09/2022,CHILDRENS SERVICES,AMZNMKTPLACE,03/07/2022,H59620220705BURRQFNST-1, 3.49 ,ADMINISTRATIVE SUPPLIES-STATIONERY & GENERAL OFFICE SU,MISCELLANEOUS AND SPECIALTY RETAIL STORES,GPC
WALSALL COUNCIL,http://opendatacommunities.org/id/metropolitan-district-council/walsall ,30/09/2022,CHILDRENS SERVICES,AMAZON.CO.UK*2Y1T89VL4,03/07/2022,H59620220705DVPRGBXRP-1, 38.70 ,LITERACY-MATERIALS,OTHER DIRECT MARKETING-OTHER DIRECT MARKETERS,GPC
WALSALL COUNCIL,http://opendatacommunities.org/id/metropolitan-district-council/walsall ,30/09/2022,CHILDRENS SERVICES,AMZNMKTPLACE,03/07/2022,H59620220705FGLHWCTUI-1, 46.97 ,CONTACT SESSIONAL STAFF-PURCHASE OF FURNITURE & EQUIPM,MISCELLANEOUS AND SPECIALTY RETAIL STORES,GPC
WALSALL COUNCIL,http://opendatacommunities.org/id/metropolitan-district-council/walsall ,30/09/2022,CHILDRENS SERVICES,AMZNMKTPLACE,03/07/2022,H59620220705FUVBOYBDT-1, 31.50 ,LEARNING ENVIRONMENT-MATERIALS,MISCELLANEOUS AND SPECIALTY RETAIL STORES,GPC
WALSALL COUNCIL,http://opendatacommunities.org/id/metropolitan-district-council/walsall ,30/09/2022,CHILDRENS SERVICES,AMZNMKTPLACE,03/07/2022,H59620220705GMZJDBMOC-1, 7.99 ,LEARNING ENVIRONMENT-MATERIALS,MISCELLANEOUS AND SPECIALTY RETAIL STORES,GPC
WALSALL COUNCIL,http://opendatacommunities.org/id/metropolitan-district-council/walsall ,30/09/2022,CHILDRENS SERVICES,AMZNMKTPLACE,03/07/2022,H59620220705HBWGPWSHK-1, 39.95 ,PHYSICAL-MATERIALS,MISCELLANEOUS AND SPECIALTY RETAIL STORES,GPC
WALSALL COUNCIL,http://opendatacommunities.org/id/metropolitan-district-council/walsall ,30/09/2022,CHILDRENS SERVICES,TESCO STORES 6161,03/07/2022,H59620220705HYGOWIEGL-1, 4.20 ,FOOD TECHNOLOGY/HOSPITALITY-MATERIALS,GROCERY STORES AND SUPERMARKETS,GPC
WALSALL COUNCIL,http://opendatacommunities.org/id/metropolitan-district-council/walsall ,30/09/2022,CHILDRENS SERVICES,TESCO STORES 6161,03/07/2022,H59620220705HYGOWIEGL-2, 43.76 ,FOOD TECHNOLOGY/HOSPITALITY-MATERIALS,GROCERY STORES AND SUPERMARKETS,GPC
WALSALL COUNCIL,http://opendatacommunities.org/id/metropolitan-district-council/walsall ,30/09/2022,ECONOMY & ENVIRONMENT,AMZNMKTPLACE,03/07/2022,H59620220705JRCBSORVR-1, 240.99 ,WALSALL OUTDOOR PURSUITS-OPERATIONAL MAINTENANCE,MISCELLANEOUS AND SPECIALTY RETAIL STORES,GPC
WALSALL COUNCIL,http://opendatacommunities.org/id/metropolitan-district-council/walsall ,30/09/2022,CHILDRENS SERVICES,AMZNMKTPLACE,03/07/2022,H59620220705JXUCDGFKQ-1, 7.17 ,LEARNING ENVIRONMENT-MATERIALS,MISCELLANEOUS AND SPECIALTY RETAIL STORES,GPC
WALSALL COUNCIL,http://opendatacommunities.org/id/metropolitan-district-council/walsall ,30/09/2022,CHILDRENS SERVICES,W M MORRISONS.COM,03/07/2022,H59620220705KPSTBHQIN-1, 21.98 ,"43A HILTON ROAD, WILLENHALL-FOOD & DRINK SUPPLIES",GROCERY STORES AND SUPERMARKETS,GPC
WALSALL COUNCIL,http://opendatacommunities.org/id/metropolitan-district-council/walsall ,30/09/2022,CHILDRENS SERVICES,W M MORRISONS.COM,03/07/2022,H59620220705KPSTBHQIN-2, 71.69 ,"43A HILTON ROAD, WILLENHALL-FOOD & DRINK SUPPLIES",GROCERY STORES AND SUPERMARKETS,GPC
WALSALL COUNCIL,http://opendatacommunities.org/id/metropolitan-district-council/walsall ,30/09/2022,CHILDRENS SERVICES,SMARTY CO UK,03/07/2022,H59620220705LEHBHLGWR-1, 12.00 ,"43A HILTON ROAD, WILLENHALL-LANDLINE PHONES",TELECOMMUNICATION SERVICES,GPC
WALSALL COUNCIL,http://opendatacommunities.org/id/metropolitan-district-council/walsall ,30/09/2022,CHILDRENS SERVICES,AMZNMKTPLACE,03/07/2022,H59620220705LYFFBXYIE-1, 3.39 ,LEARNING ENVIRONMENT-MATERIALS,MISCELLANEOUS AND SPECIALTY RETAIL STORES,GPC
WALSALL COUNCIL,http://opendatacommunities.org/id/metropolitan-district-council/walsall ,30/09/2022,CHILDRENS SERVICES,AMAZON.CO.UK*2Y2OC0XC4,03/07/2022,H59620220705MQLROWHFG-1, 11.33 ,PHSE-LIBRARY BOOKS,OTHER DIRECT MARKETING-OTHER DIRECT MARKETERS,GPC
WALSALL COUNCIL,http://opendatacommunities.org/id/metropolitan-district-council/walsall ,30/09/2022,CHILDRENS SERVICES,AMZNMKTPLACE,03/07/2022,H59620220705MRALMQKKW-1, 44.99 ,CONTACT SESSIONAL STAFF-PURCHASE OF FURNITURE & EQUIPM,MISCELLANEOUS AND SPECIALTY RETAIL STORES,GPC
WALSALL COUNCIL,http://opendatacommunities.org/id/metropolitan-district-council/walsall ,30/09/2022,CHILDRENS SERVICES,EUROFLORIST UK LTD,03/07/2022,H59620220705MYTBMPUWD-1, 25.98 ,ADMINISTRATIVE SUPPLIES-STATIONERY & GENERAL OFFICE SU,FLORISTS,GPC
WALSALL COUNCIL,http://opendatacommunities.org/id/metropolitan-district-council/walsall ,30/09/2022,CHILDRENS SERVICES,AMZNMKTPLACE,03/07/2022,H59620220705NFIMSYUVN-1, 74.97 ,GENERAL SUPPLIES LH-MATERIALS,MISCELLANEOUS AND SPECIALTY RETAIL STORES,GPC
WALSALL COUNCIL,http://opendatacommunities.org/id/metropolitan-district-council/walsall ,30/09/2022,ECONOMY & ENVIRONMENT,AMZNMKTPLACE,03/07/2022,H59620220705OMDJCCTNE-1, 37.99 ,NAG - EDUCATION FORMAL-MATERIALS,MISCELLANEOUS AND SPECIALTY RETAIL STORES,GPC
WALSALL COUNCIL,http://opendatacommunities.org/id/metropolitan-district-council/walsall ,30/09/2022,CHILDRENS SERVICES,AMZNMKTPLACE,03/07/2022,H59620220705OTHOFOHQL-1, 41.46 ,CLASSROOM RESOURCES-MATERIALS,MISCELLANEOUS AND SPECIALTY RETAIL STORES,GPC
WALSALL COUNCIL,http://opendatacommunities.org/id/metropolitan-district-council/walsall ,30/09/2022,CHILDRENS SERVICES,AMAZON.CO.UK*2Y1OV4XS4,03/07/2022,H59620220705PSATHMRVX-1, 187.69 ,ADMINISTRATIVE SUPPLIES-STATIONERY & GENERAL OFFICE SU,OTHER DIRECT MARKETING-OTHER DIRECT MARKETERS,GPC
WALSALL COUNCIL,http://opendatacommunities.org/id/metropolitan-district-council/walsall ,30/09/2022,CHILDRENS SERVICES,AMZNMKTPLACE,03/07/2022,H59620220705QQKCHSMER-1, 29.95 ,PE RESOURCES-MATERIALS,MISCELLANEOUS AND SPECIALTY RETAIL STORES,GPC
WALSALL COUNCIL,http://opendatacommunities.org/id/metropolitan-district-council/walsall ,30/09/2022,CHILDRENS SERVICES,AMAZON.CO.UK*2Y8AP3X84,03/07/2022,H59620220705RHBWVVKKH-1, 47.40 ,LITERACY-MATERIALS,OTHER DIRECT MARKETING-OTHER DIRECT MARKETERS,GPC
WALSALL COUNCIL,http://opendatacommunities.org/id/metropolitan-district-council/walsall ,30/09/2022,CHILDRENS SERVICES,AMAZON.CO.UK*2Y7OV5XD4,03/07/2022,H59620220705VGDYUWVON-1, 79.90 ,LITERACY-MATERIALS,OTHER DIRECT MARKETING-OTHER DIRECT MARKETERS,GPC
WALSALL COUNCIL,http://opendatacommunities.org/id/metropolitan-district-council/walsall ,30/09/2022,CHILDRENS SERVICES,AMZNMKTPLACE,03/07/2022,H59620220705VJKQRQSFM-1, 57.28 ,OLD HALL SCHOOL-MATERIALS,MISCELLANEOUS AND SPECIALTY RETAIL STORES,GPC
WALSALL COUNCIL,http://opendatacommunities.org/id/metropolitan-district-council/walsall ,30/09/2022,CHILDRENS SERVICES,SCHOOLHIRE* B679744,03/07/2022,H59620220705YOOSTNWWR-1, 90.00 ,CHUCKERY PRIMARY SCHOOL-MATERIALS,"BOOKS, PERIODICALS AND NEWSPAPERS",GPC
WALSALL COUNCIL,http://opendatacommunities.org/id/metropolitan-district-council/walsall ,30/09/2022,CHILDRENS SERVICES,AMZNMKTPLACE,03/07/2022,H59620220705YYWCSJVRN-1, 10.00 ,OLD HALL SCHOOL-MATERIALS,MISCELLANEOUS AND SPECIALTY RETAIL STORES,GPC
WALSALL COUNCIL,http://opendatacommunities.org/id/metropolitan-district-council/walsall ,30/09/2022,ECONOMY & ENVIRONMENT,FOREIGN EXCHANGE FEE,04/07/2022,H59620220705SQDHIHZWN-1, 0.24 ,NAG - ART GALLERY MARKETING-SUBSCRIPTIONS,,GPC
WALSALL COUNCIL,http://opendatacommunities.org/id/metropolitan-district-council/walsall ,30/09/2022,CHILDRENS SERVICES,WM MORRISONS STORE,04/07/2022,H59620220706AWPFGHBCI-1, 8.70 ,FOOD TECHNOLOGY-MATERIALS,GROCERY STORES AND SUPERMARKETS,GPC
WALSALL COUNCIL,http://opendatacommunities.org/id/metropolitan-district-council/walsall ,30/09/2022,ECONOMY & ENVIRONMENT,AMZNMKTPLACE,04/07/2022,H59620220706BLRBCMBKN-1, 10.20 ,LEATHER MUSEUM-PURCHASE OF FURNITURE & EQUIPM,MISCELLANEOUS AND SPECIALTY RETAIL STORES,GPC
WALSALL COUNCIL,http://opendatacommunities.org/id/metropolitan-district-council/walsall ,30/09/2022,CHILDRENS SERVICES,MCDONALDS,04/07/2022,H59620220706BRBIXBQYM-1, 3.98 ,YOUNG PERSONS HOMELESS SERVICE-OFFICERS SUBSISTENCE EXPENSES,QUICK PAYMENT SERVICE-FAST-FOOD RESTAURANTS,GPC
WALSALL COUNCIL,http://opendatacommunities.org/id/metropolitan-district-council/walsall ,30/09/2022,RESOURCES AND TRANSFORMATION,BLAKEMORE FOODSERVICE,04/07/2022,H59620220706BRITVBBII-1, 44.42 ,CATERING - SCHOOLS-FOOD & DRINK SUPPLIES,CATERERS,GPC
WALSALL COUNCIL,http://opendatacommunities.org/id/metropolitan-district-council/walsall ,30/09/2022,RESOURCES AND TRANSFORMATION,BLAKEMORE FOODSERVICE,04/07/2022,H59620220706BRITVBBII-2, 234.49 ,CATERING - SCHOOLS-FOOD & DRINK SUPPLIES,CATERERS,GPC
WALSALL COUNCIL,http://opendatacommunities.org/id/metropolitan-district-council/walsall ,30/09/2022,CHILDRENS SERVICES,B&M 022 - WEDNESBURY,04/07/2022,H59620220706BRUCLVQQE-1, 19.16 ,CONTACT SESSIONAL STAFF-CLEANING MATERIALS,MISCELLANEOUS GENERAL MERCHANDISE,GPC
WALSALL COUNCIL,http://opendatacommunities.org/id/metropolitan-district-council/walsall ,30/09/2022,CHILDRENS SERVICES,SP THE LAMPCO,04/07/2022,H59620220706CKCSEVETI-1, 8.69 ,FAMILY SAFEGUARDING - BUILDING-PURCHASE OF FURNITURE & EQUIPM,ELECTRICAL PARTS AND EQUIPMENT,GPC
WALSALL COUNCIL,http://opendatacommunities.org/id/metropolitan-district-council/walsall ,30/09/2022,ECONOMY & ENVIRONMENT,AMZNMKTPLACE,04/07/2022,H59620220706CMNFBUMCB-1, 61.95 ,REGISTRAR-STATIONERY & GENERAL OFFICE SU,MISCELLANEOUS AND SPECIALTY RETAIL STORES,GPC
WALSALL COUNCIL,http://opendatacommunities.org/id/metropolitan-district-council/walsall ,30/09/2022,RESOURCES AND TRANSFORMATION,BLAKEMORE FOODSERVICE,04/07/2022,H59620220706CTSNUTIMA-1, 10.32 ,CATERING - SCHOOLS-FOOD & DRINK SUPPLIES,CATERERS,GPC
WALSALL COUNCIL,http://opendatacommunities.org/id/metropolitan-district-council/walsall ,30/09/2022,RESOURCES AND TRANSFORMATION,BLAKEMORE FOODSERVICE,04/07/2022,H59620220706CTSNUTIMA-2, 337.27 ,CATERING - SCHOOLS-FOOD & DRINK SUPPLIES,CATERERS,GPC
WALSALL COUNCIL,http://opendatacommunities.org/id/metropolitan-district-council/walsall ,30/09/2022,RESOURCES AND TRANSFORMATION,BLAKEMORE FOODSERVICE,04/07/2022,H59620220706DELEQZLIB-1, 153.46 ,TOWN HALL RESTAURANT BISTRO-FOOD & DRINK SUPPLIES,CATERERS,GPC
WALSALL COUNCIL,http://opendatacommunities.org/id/metropolitan-district-council/walsall ,30/09/2022,RESOURCES AND TRANSFORMATION,BLAKEMORE FOODSERVICE,04/07/2022,H59620220706DELEQZLIB-2, 186.44 ,TOWN HALL RESTAURANT BISTRO-FOOD & DRINK SUPPLIES,CATERERS,GPC
WALSALL COUNCIL,http://opendatacommunities.org/id/metropolitan-district-council/walsall ,30/09/2022,CHILDRENS SERVICES,B & Q 1276,04/07/2022,H59620220706DFQXRVCXA-1, 18.00 ,BLUEBELLS-OPERATIONAL MAINTENANCE,HOME SUPPLY WAREHOUSE STORES,GPC
WALSALL COUNCIL,http://opendatacommunities.org/id/metropolitan-district-council/walsall ,30/09/2022,ECONOMY & ENVIRONMENT,STEDALL (VEHICLE FITTI,04/07/2022,H59620220706DVJEYDOYQ-1, 366.49 ,FLEET-MATERIALS,MOTOR VEHICLE SUPPLIES AND NEW PARTS,GPC
WALSALL COUNCIL,http://opendatacommunities.org/id/metropolitan-district-council/walsall ,30/09/2022,CHILDRENS SERVICES,AMZNMKTPLACE,04/07/2022,H59620220706EKKCDYYOO-1, 65.97 ,OLD HALL SCHOOL-MATERIALS,MISCELLANEOUS AND SPECIALTY RETAIL STORES,GPC
WALSALL COUNCIL,http://opendatacommunities.org/id/metropolitan-district-council/walsall ,30/09/2022,CHILDRENS SERVICES,AMZNMKTPLACE,04/07/2022,H59620220706EQJMYSQJK-1, 6.98 ,ADMIN-STATIONERY & GENERAL OFFICE SU,MISCELLANEOUS AND SPECIALTY RETAIL STORES,GPC
WALSALL COUNCIL,http://opendatacommunities.org/id/metropolitan-district-council/walsall ,30/09/2022,CHILDRENS SERVICES,WM MORRISONS STORE,04/07/2022,H59620220706FNJQFDSBN-1, 15.60 ,BREAKFAST CLUB-FOOD & DRINK SUPPLIES,GROCERY STORES AND SUPERMARKETS,GPC
WALSALL COUNCIL,http://opendatacommunities.org/id/metropolitan-district-council/walsall ,30/09/2022,ECONOMY & ENVIRONMENT,WALSALL COUNCIL,04/07/2022,H59620220706FTBLMOGQU-1, 11.00 ,EH DIV GENERAL COSTS-FEES & LICENCES,GOVERNMENT SERVICES,GPC
WALSALL COUNCIL,http://opendatacommunities.org/id/metropolitan-district-council/walsall ,30/09/2022,RESOURCES AND TRANSFORMATION,BLAKEMORE FOODSERVICE,04/07/2022,H59620220706GUOQXNTLD-1, 20.64 ,CATERING - SCHOOLS-FOOD & DRINK SUPPLIES,CATERERS,GPC
WALSALL COUNCIL,http://opendatacommunities.org/id/metropolitan-district-council/walsall ,30/09/2022,RESOURCES AND TRANSFORMATION,BLAKEMORE FOODSERVICE,04/07/2022,H59620220706GUOQXNTLD-2, 222.83 ,CATERING - SCHOOLS-FOOD & DRINK SUPPLIES,CATERERS,GPC
WALSALL COUNCIL,http://opendatacommunities.org/id/metropolitan-district-council/walsall ,30/09/2022,RESOURCES AND TRANSFORMATION,BLAKEMORE FOODSERVICE,04/07/2022,H59620220706HSVUVVYRX-1, 30.96 ,CATERING - SCHOOLS-FOOD & DRINK SUPPLIES,CATERERS,GPC
WALSALL COUNCIL,http://opendatacommunities.org/id/metropolitan-district-council/walsall ,30/09/2022,RESOURCES AND TRANSFORMATION,BLAKEMORE FOODSERVICE,04/07/2022,H59620220706HSVUVVYRX-2, 513.21 ,CATERING - SCHOOLS-FOOD & DRINK SUPPLIES,CATERERS,GPC
WALSALL COUNCIL,http://opendatacommunities.org/id/metropolitan-district-council/walsall ,30/09/2022,CHILDRENS SERVICES,ICELAND,04/07/2022,H59620220706HUKDUGDFO-1, 17.79 ,REDRUTH ROAD-FOOD & DRINK SUPPLIES,GROCERY STORES AND SUPERMARKETS,GPC
WALSALL COUNCIL,http://opendatacommunities.org/id/metropolitan-district-council/walsall ,30/09/2022,RESOURCES AND TRANSFORMATION,NOBISCO LIMITED,04/07/2022,H59620220706IPEGKMOXJ-1, 320.57 ,CATERING - SCHOOLS-FOOD & DRINK SUPPLIES,OTHER INDUSTRIAL SUPPLIES,GPC
WALSALL COUNCIL,http://opendatacommunities.org/id/metropolitan-district-council/walsall ,30/09/2022,CHILDRENS SERVICES,BEVERLEY HOTEL LTD - T,04/07/2022,H59620220706IWRHGGNVN-1, 380.00 ,BED & BREAKFAST PAYMENTS-BED & BREAKFAST PAYMENTS,"HOTELS, MOTELS, RESORTS",GPC
WALSALL COUNCIL,http://opendatacommunities.org/id/metropolitan-district-council/walsall ,30/09/2022,CHILDRENS SERVICES,AMZNMKTPLACE,04/07/2022,H59620220706JULZAHPUZ-1, 30.77 ,BASIC STATIONERY-MATERIALS,MISCELLANEOUS AND SPECIALTY RETAIL STORES,GPC
WALSALL COUNCIL,http://opendatacommunities.org/id/metropolitan-district-council/walsall ,30/09/2022,CHILDRENS SERVICES,AMZNMKTPLACE,04/07/2022,H59620220706KFGNQAHJM-1, 9.98 ,ELMWOOD SCHOOL-OPERATIONAL MAINTENANCE,MISCELLANEOUS AND SPECIALTY RETAIL STORES,GPC
WALSALL COUNCIL,http://opendatacommunities.org/id/metropolitan-district-council/walsall ,30/09/2022,CHILDRENS SERVICES,BEVERLEY HOTEL LTD - T,04/07/2022,H59620220706KUCGWWXWE-1, 215.00 ,BED & BREAKFAST PAYMENTS-BED & BREAKFAST PAYMENTS,"HOTELS, MOTELS, RESORTS",GPC
WALSALL COUNCIL,http://opendatacommunities.org/id/metropolitan-district-council/walsall ,30/09/2022,ECONOMY & ENVIRONMENT,HOLE IN THE WALL C,04/07/2022,H59620220706LERNDTPFF-1, 16.80 ,LEATHER MUSEUM-MATERIALS,"FURNITURE-REUPHOLSTERY AND REPAIR, REFINISHING",GPC
WALSALL COUNCIL,http://opendatacommunities.org/id/metropolitan-district-council/walsall ,30/09/2022,RESOURCES AND TRANSFORMATION,BLAKEMORE FOODSERVICE,04/07/2022,H59620220706LINOOYBEC-1,-5.09 ,CATERING - SCHOOLS-FOOD & DRINK SUPPLIES,CATERERS,GPC
WALSALL COUNCIL,http://opendatacommunities.org/id/metropolitan-district-council/walsall ,30/09/2022,CHILDRENS SERVICES,AMAZON.CO.UK*2Y2CO7HQ4,04/07/2022,H59620220706LTLWTNTGD-1, 8.71 ,ADMINISTRATIVE SUPPLIES-STATIONERY & GENERAL OFFICE SU,OTHER DIRECT MARKETING-OTHER DIRECT MARKETERS,GPC
WALSALL COUNCIL,http://opendatacommunities.org/id/metropolitan-district-council/walsall ,30/09/2022,CHILDRENS SERVICES,HOME BARGAINS,04/07/2022,H59620220706MVBPLBUOO-1, 5.98 ,REDRUTH ROAD-CLEANING MATERIALS,HARDWARE STORES,GPC
WALSALL COUNCIL,http://opendatacommunities.org/id/metropolitan-district-council/walsall ,30/09/2022,CHILDRENS SERVICES,AMAZON.CO.UK*2Y5UZ1MN4,04/07/2022,H59620220706NFOEKTQJG-1, 25.80 ,LITERACY-MATERIALS,OTHER DIRECT MARKETING-OTHER DIRECT MARKETERS,GPC
WALSALL COUNCIL,http://opendatacommunities.org/id/metropolitan-district-council/walsall ,30/09/2022,RESOURCES AND TRANSFORMATION,BLAKEMORE FOODSERVICE,04/07/2022,H59620220706NGUUQVXRN-1, 53.94 ,CATERING - SCHOOLS-FOOD & DRINK SUPPLIES,CATERERS,GPC
WALSALL COUNCIL,http://opendatacommunities.org/id/metropolitan-district-council/walsall ,30/09/2022,RESOURCES AND TRANSFORMATION,BLAKEMORE FOODSERVICE,04/07/2022,H59620220706NGUUQVXRN-2, 587.77 ,CATERING - SCHOOLS-FOOD & DRINK SUPPLIES,CATERERS,GPC
WALSALL COUNCIL,http://opendatacommunities.org/id/metropolitan-district-council/walsall ,30/09/2022,CHILDRENS SERVICES,W M MORRISONS.COM,04/07/2022,H59620220706NIQNIBSMW-1, 33.96 ,PELSALL VILLAGE SCHOOL-FOOD & DRINK SUPPLIES,GROCERY STORES AND SUPERMARKETS,GPC
WALSALL COUNCIL,http://opendatacommunities.org/id/metropolitan-district-council/walsall ,30/09/2022,CHILDRENS SERVICES,W M MORRISONS.COM,04/07/2022,H59620220706NIQNIBSMW-2, 67.10 ,PELSALL VILLAGE SCHOOL-FOOD & DRINK SUPPLIES,GROCERY STORES AND SUPERMARKETS,GPC
WALSALL COUNCIL,http://opendatacommunities.org/id/metropolitan-district-council/walsall ,30/09/2022,CHILDRENS SERVICES,ASDA,04/07/2022,H59620220706NPMMWICVI-1, 1.35 ,EDGE OF CARE TEAM-FOOD & DRINK SUPPLIES,GROCERY STORES AND SUPERMARKETS,GPC
WALSALL COUNCIL,http://opendatacommunities.org/id/metropolitan-district-council/walsall ,30/09/2022,CHILDRENS SERVICES,ASDA,04/07/2022,H59620220706NPMMWICVI-2, 1.62 ,EDGE OF CARE TEAM-FOOD & DRINK SUPPLIES,GROCERY STORES AND SUPERMARKETS,GPC
WALSALL COUNCIL,http://opendatacommunities.org/id/metropolitan-district-council/walsall ,30/09/2022,CHILDRENS SERVICES,AMZNMKTPLACE,04/07/2022,H59620220706NSVQCPFGE-1, 7.69 ,ELMWOOD SCHOOL-OPERATIONAL MAINTENANCE,MISCELLANEOUS AND SPECIALTY RETAIL STORES,GPC
WALSALL COUNCIL,http://opendatacommunities.org/id/metropolitan-district-council/walsall ,30/09/2022,CHILDRENS SERVICES,W M MORRISONS.COM,04/07/2022,H59620220706NZWQEGQJQ-1, 10.68 ,COMMUNITY FOCUSED EXTENDED SCH-MATERIALS,GROCERY STORES AND SUPERMARKETS,GPC
WALSALL COUNCIL,http://opendatacommunities.org/id/metropolitan-district-council/walsall ,30/09/2022,CHILDRENS SERVICES,W M MORRISONS.COM,04/07/2022,H59620220706NZWQEGQJQ-2, 44.58 ,COMMUNITY FOCUSED EXTENDED SCH-MATERIALS,GROCERY STORES AND SUPERMARKETS,GPC
WALSALL COUNCIL,http://opendatacommunities.org/id/metropolitan-district-council/walsall ,30/09/2022,CHILDRENS SERVICES,W M MORRISONS.COM,04/07/2022,H59620220706NZWQEGQJQ-3, 18.18 ,NURTURE GROUP-MATERIALS,GROCERY STORES AND SUPERMARKETS,GPC
WALSALL COUNCIL,http://opendatacommunities.org/id/metropolitan-district-council/walsall ,30/09/2022,CHILDRENS SERVICES,W M MORRISONS.COM,04/07/2022,H59620220706NZWQEGQJQ-4, 6.87 ,NURTURE GROUP-MATERIALS,GROCERY STORES AND SUPERMARKETS,GPC
WALSALL COUNCIL,http://opendatacommunities.org/id/metropolitan-district-council/walsall ,30/09/2022,ECONOMY & ENVIRONMENT,MIDLANDNEWS.COM,04/07/2022,H59620220706OHFOJXUGG-1, 69.00 ,DEVELOPMENT MANAGEMENT-SUBSCRIPTIONS,NEWS DEALERS AND NEWSSTANDS,GPC
WALSALL COUNCIL,http://opendatacommunities.org/id/metropolitan-district-council/walsall ,30/09/2022,CHILDRENS SERVICES,TESCO STORES 6161,04/07/2022,H59620220706OILJYYBXQ-1, 7.76 ,FOOD TECHNOLOGY/HOSPITALITY-MATERIALS,GROCERY STORES AND SUPERMARKETS,GPC
WALSALL COUNCIL,http://opendatacommunities.org/id/metropolitan-district-council/walsall ,30/09/2022,CHILDRENS SERVICES,TESCO STORES 6161,04/07/2022,H59620220706OILJYYBXQ-2, 11.48 ,FOOD TECHNOLOGY/HOSPITALITY-MATERIALS,GROCERY STORES AND SUPERMARKETS,GPC
WALSALL COUNCIL,http://opendatacommunities.org/id/metropolitan-district-council/walsall ,30/09/2022,CHILDRENS SERVICES,PATOSS LTD,04/07/2022,H59620220706OMMIECVTC-1, 150.00 ,SEN-EXTERNAL TRAINING,"SCHOOLS, ELEMENTARY AND SECONDARY",GPC
WALSALL COUNCIL,http://opendatacommunities.org/id/metropolitan-district-council/walsall ,30/09/2022,CHILDRENS SERVICES,AMAZON.CO.UK*2Y1LM0BY4,04/07/2022,H59620220706OUMDCEXQW-1, 6.28 ,ELMWOOD SCHOOL-OPERATIONAL MAINTENANCE,OTHER DIRECT MARKETING-OTHER DIRECT MARKETERS,GPC
WALSALL COUNCIL,http://opendatacommunities.org/id/metropolitan-district-council/walsall ,30/09/2022,RESOURCES AND TRANSFORMATION,NOBISCO LIMITED,04/07/2022,H59620220706PFFNVRAJG-1, 35.57 ,CATERING - SCHOOLS-FOOD & DRINK SUPPLIES,OTHER INDUSTRIAL SUPPLIES,GPC
WALSALL COUNCIL,http://opendatacommunities.org/id/metropolitan-district-council/walsall ,30/09/2022,RESOURCES AND TRANSFORMATION,BLAKEMORE FOODSERVICE,04/07/2022,H59620220706POTHWQHFL-1, 30.96 ,CATERING - SCHOOLS-FOOD & DRINK SUPPLIES,CATERERS,GPC
WALSALL COUNCIL,http://opendatacommunities.org/id/metropolitan-district-council/walsall ,30/09/2022,RESOURCES AND TRANSFORMATION,BLAKEMORE FOODSERVICE,04/07/2022,H59620220706POTHWQHFL-2, 571.11 ,CATERING - SCHOOLS-FOOD & DRINK SUPPLIES,CATERERS,GPC
WALSALL COUNCIL,http://opendatacommunities.org/id/metropolitan-district-council/walsall ,30/09/2022,RESOURCES AND TRANSFORMATION,BLAKEMORE FOODSERVICE,04/07/2022,H59620220706PYSUFGBGA-1, 20.64 ,CATERING - SCHOOLS-FOOD & DRINK SUPPLIES,CATERERS,GPC
WALSALL COUNCIL,http://opendatacommunities.org/id/metropolitan-district-council/walsall ,30/09/2022,RESOURCES AND TRANSFORMATION,BLAKEMORE FOODSERVICE,04/07/2022,H59620220706PYSUFGBGA-2, 470.95 ,CATERING - SCHOOLS-FOOD & DRINK SUPPLIES,CATERERS,GPC
WALSALL COUNCIL,http://opendatacommunities.org/id/metropolitan-district-council/walsall ,30/09/2022,CHILDRENS SERVICES,ASDA,04/07/2022,H59620220706QDBHLDUWR-1, 20.00 ,WALSALL CRISIS SUPPORT SCHEME-FOOD & DRINK SUPPLIES,GROCERY STORES AND SUPERMARKETS,GPC
WALSALL COUNCIL,http://opendatacommunities.org/id/metropolitan-district-council/walsall ,30/09/2022,CHILDRENS SERVICES,AMAZON PRIME MEMBER FEE A,04/07/2022,H59620220706QITHWAFRE-1,-86.40 ,ADMINISTRATIVE SUPPLIES-STATIONERY & GENERAL OFFICE SU,DIRECT MARKETING CONTINUITY SUBSCRIPTION MERCHANTS,GPC
WALSALL COUNCIL,http://opendatacommunities.org/id/metropolitan-district-council/walsall ,30/09/2022,ECONOMY & ENVIRONMENT,AMZNMKTPLACE,04/07/2022,H59620220706RGLSYYPRG-1, 17.65 ,CEMETERIES-STATIONERY & GENERAL OFFICE SU,MISCELLANEOUS AND SPECIALTY RETAIL STORES,GPC
WALSALL COUNCIL,http://opendatacommunities.org/id/metropolitan-district-council/walsall ,30/09/2022,CHILDRENS SERVICES,AMZNMKTPLACE,04/07/2022,H59620220706RHXDXBUCZ-1, 11.99 ,LEARNING ENVIRONMENT-MATERIALS,MISCELLANEOUS AND SPECIALTY RETAIL STORES,GPC
WALSALL COUNCIL,http://opendatacommunities.org/id/metropolitan-district-council/walsall ,30/09/2022,CHILDRENS SERVICES,AMZNMKTPLACE,04/07/2022,H59620220706SBIOBAEFF-1, 23.98 ,OLD HALL SCHOOL-MATERIALS,MISCELLANEOUS AND SPECIALTY RETAIL STORES,GPC
WALSALL COUNCIL,http://opendatacommunities.org/id/metropolitan-district-council/walsall ,30/09/2022,CHILDRENS SERVICES,ROADCHEF NORTON CANES,04/07/2022,H59620220706SDMOPJJAH-1, 563.00 ,BED & BREAKFAST PAYMENTS-BED & BREAKFAST PAYMENTS,"HOTELS, MOTELS, RESORTS",GPC
WALSALL COUNCIL,http://opendatacommunities.org/id/metropolitan-district-council/walsall ,30/09/2022,CHILDRENS SERVICES,THE BOLD TYPE LTD,04/07/2022,H59620220706SDYSPIGQF-1, 35.00 ,SPECIAL FACILITIES -  BEFORE/A-MATERIALS,"CONSULTING, MANAGEMENT, AND PR SERVICES",GPC
WALSALL COUNCIL,http://opendatacommunities.org/id/metropolitan-district-council/walsall ,30/09/2022,RESOURCES AND TRANSFORMATION,BLAKEMORE FOODSERVICE,04/07/2022,H59620220706SEDFWXFOI-1, 30.96 ,CATERING - SCHOOLS-FOOD & DRINK SUPPLIES,CATERERS,GPC
WALSALL COUNCIL,http://opendatacommunities.org/id/metropolitan-district-council/walsall ,30/09/2022,ADULT SOCIAL CARE,BLAKEMORE FOODSERVICE,04/07/2022,H59620220706SEDFWXFOI-2, 536.99 ,COVID-19 OUTBREAK MANAGEMENT G-FOOD & DRINK SUPPLIES,CATERERS,GPC
WALSALL COUNCIL,http://opendatacommunities.org/id/metropolitan-district-council/walsall ,30/09/2022,CHILDRENS SERVICES,WM MORRISONS STORE,04/07/2022,H59620220706SKGHMNOLG-1, 9.39 ,NEW LEAF PUPIL REFERAL UNIT-FOOD & DRINK SUPPLIES,GROCERY STORES AND SUPERMARKETS,GPC
WALSALL COUNCIL,http://opendatacommunities.org/id/metropolitan-district-council/walsall ,30/09/2022,CHILDRENS SERVICES,WM MORRISONS STORE,04/07/2022,H59620220706SKGHMNOLG-2, 5.40 ,NEW LEAF PUPIL REFERAL UNIT-FOOD & DRINK SUPPLIES,GROCERY STORES AND SUPERMARKETS,GPC
WALSALL COUNCIL,http://opendatacommunities.org/id/metropolitan-district-council/walsall ,30/09/2022,CHILDRENS SERVICES,EURASIA CARPETS,04/07/2022,H59620220706SRDCUJCLA-1, 641.00 ,CARE LEAVER ENTITLEMENTS-SETTING UP HOME GRANT,FLOOR COVERING STORES,GPC
WALSALL COUNCIL,http://opendatacommunities.org/id/metropolitan-district-council/walsall ,30/09/2022,CHILDRENS SERVICES,TRAVELODGE GB0000,04/07/2022,H59620220706SRFCEMXUV-1, 172.35 ,WALSALL CRISIS SUPPORT SCHEME-OTHER EXPENSES,TRAVELODGE,GPC
WALSALL COUNCIL,http://opendatacommunities.org/id/metropolitan-district-council/walsall ,30/09/2022,ECONOMY & ENVIRONMENT,AMZNMKTPLACE,04/07/2022,H59620220706SRJDMTDYG-1, 11.50 ,OAK PARK ACTIVE LIVING CENTRE-STATIONERY & GENERAL OFFICE SU,MISCELLANEOUS AND SPECIALTY RETAIL STORES,GPC
WALSALL COUNCIL,http://opendatacommunities.org/id/metropolitan-district-council/walsall ,30/09/2022,ECONOMY & ENVIRONMENT,AMZNMKTPLACE,04/07/2022,H59620220706SRJDMTDYG-2, 11.49 ,BLOXWICH ACTIVE LIVING CENTRE-STATIONERY & GENERAL OFFICE SU,MISCELLANEOUS AND SPECIALTY RETAIL STORES,GPC
WALSALL COUNCIL,http://opendatacommunities.org/id/metropolitan-district-council/walsall ,30/09/2022,RESOURCES AND TRANSFORMATION,BLAKEMORE FOODSERVICE,04/07/2022,H59620220706STLGEYYNY-1, 20.99 ,CATERING - SCHOOLS-FOOD & DRINK SUPPLIES,CATERERS,GPC
WALSALL COUNCIL,http://opendatacommunities.org/id/metropolitan-district-council/walsall ,30/09/2022,RESOURCES AND TRANSFORMATION,BLAKEMORE FOODSERVICE,04/07/2022,H59620220706STLGEYYNY-2, 331.16 ,CATERING - SCHOOLS-FOOD & DRINK SUPPLIES,CATERERS,GPC
WALSALL COUNCIL,http://opendatacommunities.org/id/metropolitan-district-council/walsall ,30/09/2022,RESOURCES AND TRANSFORMATION,BLAKEMORE FOODSERVICE,04/07/2022,H59620220706SXIVLNAAS-1, 30.46 ,CATERING - SCHOOLS-FOOD & DRINK SUPPLIES,CATERERS,GPC
WALSALL COUNCIL,http://opendatacommunities.org/id/metropolitan-district-council/walsall ,30/09/2022,RESOURCES AND TRANSFORMATION,BLAKEMORE FOODSERVICE,04/07/2022,H59620220706SXIVLNAAS-2, 605.51 ,CATERING - SCHOOLS-FOOD & DRINK SUPPLIES,CATERERS,GPC
WALSALL COUNCIL,http://opendatacommunities.org/id/metropolitan-district-council/walsall ,30/09/2022,ECONOMY & ENVIRONMENT,WWW.CLEANINGPRODUCTS.N,04/07/2022,H59620220706THVVDXTMN-1,-18.91 ,BLOXWICH ACTIVE LIVING CENTRE-CHEMICALS & SCIENTIFIC MATERIA,"CLEANING AND MAINTENANCE, JANITORIAL SERVICES",GPC
WALSALL COUNCIL,http://opendatacommunities.org/id/metropolitan-district-council/walsall ,30/09/2022,RESOURCES AND TRANSFORMATION,BLAKEMORE FOODSERVICE,04/07/2022,H59620220706TOMRFYOIH-1, 319.92 ,CATERING - SCHOOLS-FOOD & DRINK SUPPLIES,CATERERS,GPC
WALSALL COUNCIL,http://opendatacommunities.org/id/metropolitan-district-council/walsall ,30/09/2022,CHILDRENS SERVICES,HM PASSPORT OFFICE,04/07/2022,H59620220706TXVHDPEJN-1, 58.50 ,LOOKED AFTER CHILDRENS SOCIAL -FEES & LICENCES,GOVERNMENT SERVICES,GPC
WALSALL COUNCIL,http://opendatacommunities.org/id/metropolitan-district-council/walsall ,30/09/2022,RESOURCES AND TRANSFORMATION,BLAKEMORE FOODSERVICE,04/07/2022,H59620220706UGNFAWMOF-1, 60.62 ,CATERING - SCHOOLS-FOOD & DRINK SUPPLIES,CATERERS,GPC
WALSALL COUNCIL,http://opendatacommunities.org/id/metropolitan-district-council/walsall ,30/09/2022,RESOURCES AND TRANSFORMATION,BLAKEMORE FOODSERVICE,04/07/2022,H59620220706UGNFAWMOF-2, 754.15 ,CATERING - SCHOOLS-FOOD & DRINK SUPPLIES,CATERERS,GPC
WALSALL COUNCIL,http://opendatacommunities.org/id/metropolitan-district-council/walsall ,30/09/2022,RESOURCES AND TRANSFORMATION,BLAKEMORE FOODSERVICE,04/07/2022,H59620220706UMFTDBAFX-1," 1,067.84 ",CATERING - SCHOOLS-FOOD & DRINK SUPPLIES,CATERERS,GPC
WALSALL COUNCIL,http://opendatacommunities.org/id/metropolitan-district-council/walsall ,30/09/2022,CHILDRENS SERVICES,AMZNMKTPLACE,04/07/2022,H59620220706VSRCVJXON-1, 27.90 ,LEARNING ENVIRONMENT-MATERIALS,MISCELLANEOUS AND SPECIALTY RETAIL STORES,GPC
WALSALL COUNCIL,http://opendatacommunities.org/id/metropolitan-district-council/walsall ,30/09/2022,CHILDRENS SERVICES,WILKO.COM,04/07/2022,H59620220706WBEUYDQEJ-1, 16.50 ,CHUCKERY PRIMARY SCHOOL-OPERATIONAL MAINTENANCE,MISCELLANEOUS GENERAL MERCHANDISE,GPC
WALSALL COUNCIL,http://opendatacommunities.org/id/metropolitan-district-council/walsall ,30/09/2022,CHILDRENS SERVICES,ASDA GROCERIES ONLINE,04/07/2022,H59620220706WIFVVDLOH-1, 65.69 ,BREAKFAST CLUB-FOOD & DRINK SUPPLIES,GROCERY STORES AND SUPERMARKETS,GPC
WALSALL COUNCIL,http://opendatacommunities.org/id/metropolitan-district-council/walsall ,30/09/2022,ECONOMY & ENVIRONMENT,WALSALL COUNCIL,04/07/2022,H59620220706WNOYQFFYJ-1, 11.00 ,EH DIV GENERAL COSTS-FEES & LICENCES,GOVERNMENT SERVICES,GPC
WALSALL COUNCIL,http://opendatacommunities.org/id/metropolitan-district-council/walsall ,30/09/2022,CHILDRENS SERVICES,PAYPAL *NETWORLD,04/07/2022,H59620220706WQXEVUJPO-1, 398.43 ,WHOLE SCHOOL (CLASSCHARTS)-MATERIALS,SPORTING GOODS STORES,GPC
WALSALL COUNCIL,http://opendatacommunities.org/id/metropolitan-district-council/walsall ,30/09/2022,CHILDRENS SERVICES,AMZNMKTPLACE,04/07/2022,H59620220706WRAUPOULI-1, 112.00 ,OLD HALL SCHOOL-MATERIALS,MISCELLANEOUS AND SPECIALTY RETAIL STORES,GPC
WALSALL COUNCIL,http://opendatacommunities.org/id/metropolitan-district-council/walsall ,30/09/2022,CHILDRENS SERVICES,AMZNMKTPLACE,04/07/2022,H59620220706WRFGNMIKR-1, 26.99 ,LEARNING ENVIRONMENT-MATERIALS,MISCELLANEOUS AND SPECIALTY RETAIL STORES,GPC
WALSALL COUNCIL,http://opendatacommunities.org/id/metropolitan-district-council/walsall ,30/09/2022,RESOURCES AND TRANSFORMATION,BLAKEMORE FOODSERVICE,04/07/2022,H59620220706XOSEQTXMH-1, 62.28 ,CATERING - SCHOOLS-FOOD & DRINK SUPPLIES,CATERERS,GPC
WALSALL COUNCIL,http://opendatacommunities.org/id/metropolitan-district-council/walsall ,30/09/2022,RESOURCES AND TRANSFORMATION,BLAKEMORE FOODSERVICE,04/07/2022,H59620220706XOSEQTXMH-2, 368.33 ,CATERING - SCHOOLS-FOOD & DRINK SUPPLIES,CATERERS,GPC
WALSALL COUNCIL,http://opendatacommunities.org/id/metropolitan-district-council/walsall ,30/09/2022,RESOURCES AND TRANSFORMATION,BLAKEMORE FOODSERVICE,04/07/2022,H59620220706XSVYXKTGB-1, 17.45 ,CATERING - SCHOOLS-FOOD & DRINK SUPPLIES,CATERERS,GPC
WALSALL COUNCIL,http://opendatacommunities.org/id/metropolitan-district-council/walsall ,30/09/2022,CHILDRENS SERVICES,WWW.WEPRINTLANYARDS.CO,04/07/2022,H59620220706XUHMFROYJ-1, 68.72 ,CONSUMABLES-MATERIALS,"CARD, GIFT, NOVELTY, AND SOUVENIR SHOPS",GPC
WALSALL COUNCIL,http://opendatacommunities.org/id/metropolitan-district-council/walsall ,30/09/2022,ECONOMY & ENVIRONMENT,TOOLSTATION LTD ALDRIDGE,04/07/2022,H59620220706XYVBMOLIO-1, 19.36 ,INFRASTRUCTURE MAINTENANCE-MATERIALS,LUMBER & BUILDING MATERIALS STORES,GPC
WALSALL COUNCIL,http://opendatacommunities.org/id/metropolitan-district-council/walsall ,30/09/2022,RESOURCES AND TRANSFORMATION,BLAKEMORE FOODSERVICE,04/07/2022,H59620220706YBJHQWGFD-1, 10.67 ,CATERING - SCHOOLS-FOOD & DRINK SUPPLIES,CATERERS,GPC
WALSALL COUNCIL,http://opendatacommunities.org/id/metropolitan-district-council/walsall ,30/09/2022,RESOURCES AND TRANSFORMATION,BLAKEMORE FOODSERVICE,04/07/2022,H59620220706YBJHQWGFD-2, 386.88 ,CATERING - SCHOOLS-FOOD & DRINK SUPPLIES,CATERERS,GPC
WALSALL COUNCIL,http://opendatacommunities.org/id/metropolitan-district-council/walsall ,30/09/2022,CHILDRENS SERVICES,SCHOOL FARM SHOP,04/07/2022,H59620220706YXOQXHPZS-1, 93.00 ,ST FRANCIS OF ASSISI CATHOLIC -MATERIALS,MISCELLANEOUS FOOD STORES & CONVENIENCE STORES,GPC
WALSALL COUNCIL,http://opendatacommunities.org/id/metropolitan-district-council/walsall ,30/09/2022,RESOURCES AND TRANSFORMATION,NOBISCO LIMITED,04/07/2022,H59620220706ZDQSDOYUE-1, 53.83 ,CATERING - SCHOOLS-FOOD & DRINK SUPPLIES,OTHER INDUSTRIAL SUPPLIES,GPC
WALSALL COUNCIL,http://opendatacommunities.org/id/metropolitan-district-council/walsall ,30/09/2022,ECONOMY & ENVIRONMENT,AMZNMKTPLACE,04/07/2022,H59620220706ZJBGUKAKI-1, 18.98 ,FLEET-MATERIALS,MISCELLANEOUS AND SPECIALTY RETAIL STORES,GPC
WALSALL COUNCIL,http://opendatacommunities.org/id/metropolitan-district-council/walsall ,30/09/2022,RESOURCES AND TRANSFORMATION,ARTHUR BRETT CATER,04/07/2022,H59620220706ZUFSJQQUK-1, 70.24 ,CATERING - SCHOOLS-FOOD & DRINK SUPPLIES,MISCELLANEOUS FOOD STORES & CONVENIENCE STORES,GPC
WALSALL COUNCIL,http://opendatacommunities.org/id/metropolitan-district-council/walsall ,30/09/2022,RESOURCES AND TRANSFORMATION,WWW.SCC.COM,04/07/2022,H59620220707GUSGFOHKC-1," 4,704.91 ",RECHARGEABLE EQUIPMENT-COMPUTER EQUIPMENT,"COMPUTERS, COMPUTER PERIPHERAL EQUIPMENT, SOFTWARE",GPC
WALSALL COUNCIL,http://opendatacommunities.org/id/metropolitan-district-council/walsall ,30/09/2022,ECONOMY & ENVIRONMENT,ADOBE CREATIVE CLOUD,05/07/2022,H59620220706SXSFNURVM-1, 70.80 ,NAG - ART GALLERY MARKETING-SUBSCRIPTIONS,COMPUTER SOFTWARE STORES,GPC
WALSALL COUNCIL,http://opendatacommunities.org/id/metropolitan-district-council/walsall ,30/09/2022,ECONOMY & ENVIRONMENT,WWW.COPSHOPUK.COM,05/07/2022,H59620220707ABPIKFSTS-1, 59.60 ,AREA PARTNERSHIPS-STATIONERY & GENERAL OFFICE SU,OTHER BUSINESS SERVICES,GPC
WALSALL COUNCIL,http://opendatacommunities.org/id/metropolitan-district-council/walsall ,30/09/2022,ECONOMY & ENVIRONMENT,TESCO STORES 6161,05/07/2022,H59620220707AFRMFIGOV-1, 1.20 ,LEATHER MUSEUM-FOOD & DRINK SUPPLIES,GROCERY STORES AND SUPERMARKETS,GPC
WALSALL COUNCIL,http://opendatacommunities.org/id/metropolitan-district-council/walsall ,30/09/2022,ECONOMY & ENVIRONMENT,TESCO STORES 6161,05/07/2022,H59620220707AFRMFIGOV-2, 2.45 ,LEATHER MUSEUM-FOOD & DRINK SUPPLIES,GROCERY STORES AND SUPERMARKETS,GPC
WALSALL COUNCIL,http://opendatacommunities.org/id/metropolitan-district-council/walsall ,30/09/2022,CHILDRENS SERVICES,AMZNMKTPLACE,05/07/2022,H59620220707AWSOMXRLB-1, 7.99 ,MARY ELLIOTT SCHOOL-MATERIALS,MISCELLANEOUS AND SPECIALTY RETAIL STORES,GPC
WALSALL COUNCIL,http://opendatacommunities.org/id/metropolitan-district-council/walsall ,30/09/2022,CHILDRENS SERVICES,AMZNMKTPLACE,05/07/2022,H59620220707AXGEHFZIN-1, 27.99 ,FOOD TECHNOLOGY/HOSPITALITY-MATERIALS,MISCELLANEOUS AND SPECIALTY RETAIL STORES,GPC
WALSALL COUNCIL,http://opendatacommunities.org/id/metropolitan-district-council/walsall ,30/09/2022,CHILDRENS SERVICES,MCDONALDS,05/07/2022,H59620220707BKMUQBHGM-1, 5.59 ,EDGE OF CARE TEAM-FOOD & DRINK SUPPLIES,QUICK PAYMENT SERVICE-FAST-FOOD RESTAURANTS,GPC
WALSALL COUNCIL,http://opendatacommunities.org/id/metropolitan-district-council/walsall ,30/09/2022,CHILDRENS SERVICES,MERCURE BARONS COURT HO,05/07/2022,H59620220707BLOTNHAGO-1, 410.40 ,BED & BREAKFAST PAYMENTS-BED & BREAKFAST PAYMENTS,"HOTELS, MOTELS, RESORTS",GPC
WALSALL COUNCIL,http://opendatacommunities.org/id/metropolitan-district-council/walsall ,30/09/2022,CHILDRENS SERVICES,MERCURE BARONS COURT HO,05/07/2022,H59620220707BLOTNHAGO-2, 102.60 ,BED & BREAKFAST PAYMENTS-BED & BREAKFAST PAYMENTS,"HOTELS, MOTELS, RESORTS",GPC
WALSALL COUNCIL,http://opendatacommunities.org/id/metropolitan-district-council/walsall ,30/09/2022,CHILDRENS SERVICES,MERCURE BARONS COURT HO,05/07/2022,H59620220707BMGTSSFDR-1, 46.80 ,BED & BREAKFAST PAYMENTS-BED & BREAKFAST PAYMENTS,"HOTELS, MOTELS, RESORTS",GPC
WALSALL COUNCIL,http://opendatacommunities.org/id/metropolitan-district-council/walsall ,30/09/2022,CHILDRENS SERVICES,MERCURE BARONS COURT HO,05/07/2022,H59620220707BMGTSSFDR-2, 11.70 ,BED & BREAKFAST PAYMENTS-BED & BREAKFAST PAYMENTS,"HOTELS, MOTELS, RESORTS",GPC
WALSALL COUNCIL,http://opendatacommunities.org/id/metropolitan-district-council/walsall ,30/09/2022,CHILDRENS SERVICES,AMZNMKTPLACE,05/07/2022,H59620220707BNRPTUJAF-1, 195.67 ,MARY ELLIOTT SCHOOL-PURCHASE OF FURNITURE & EQUIPM,MISCELLANEOUS AND SPECIALTY RETAIL STORES,GPC
WALSALL COUNCIL,http://opendatacommunities.org/id/metropolitan-district-council/walsall ,30/09/2022,RESOURCES AND TRANSFORMATION,ASDA SUPERSTORE,05/07/2022,H59620220707CCVJTTPLK-1, 7.50 ,CATERING - SCHOOLS-FOOD & DRINK SUPPLIES,GROCERY STORES AND SUPERMARKETS,GPC
WALSALL COUNCIL,http://opendatacommunities.org/id/metropolitan-district-council/walsall ,30/09/2022,RESOURCES AND TRANSFORMATION,ARTHUR BRETT CATER,05/07/2022,H59620220707CDXVQBIXI-1, 34.39 ,CATERING - SCHOOLS-FOOD & DRINK SUPPLIES,MISCELLANEOUS FOOD STORES & CONVENIENCE STORES,GPC
WALSALL COUNCIL,http://opendatacommunities.org/id/metropolitan-district-council/walsall ,30/09/2022,RESOURCES AND TRANSFORMATION,WWW.BANNERUK.COM,05/07/2022,H59620220707CRZLEBJSC-1, 7.78 ,HR ADMIN HUB-STATIONERY & GENERAL OFFICE SU,"STATIONERY, OFFICE SUPPLIES AND WRITING PAPER",GPC
WALSALL COUNCIL,http://opendatacommunities.org/id/metropolitan-district-council/walsall ,30/09/2022,CHILDRENS SERVICES,BLACKWELLS,05/07/2022,H59620220707DJEVIADYM-1, 6.99 ,CHUCKERY PRIMARY SCHOOL-LIBRARY BOOKS,BOOK STORES,GPC
WALSALL COUNCIL,http://opendatacommunities.org/id/metropolitan-district-council/walsall ,30/09/2022,CHILDRENS SERVICES,MCDONALDS,05/07/2022,H59620220707DPKGTUXXN-1, 10.36 ,FAMILY PLACEMENTS-FOOD & DRINK SUPPLIES,QUICK PAYMENT SERVICE-FAST-FOOD RESTAURANTS,GPC
WALSALL COUNCIL,http://opendatacommunities.org/id/metropolitan-district-council/walsall ,30/09/2022,ECONOMY & ENVIRONMENT,HOLE IN THE WALL C,05/07/2022,H59620220707DZJOYYKYP-1, 7.98 ,LEATHER MUSEUM-MATERIALS,"FURNITURE-REUPHOLSTERY AND REPAIR, REFINISHING",GPC
WALSALL COUNCIL,http://opendatacommunities.org/id/metropolitan-district-council/walsall ,30/09/2022,ECONOMY & ENVIRONMENT,AMZNMKTPLACE,05/07/2022,H59620220707EGQBLCJRK-1, 20.78 ,REGISTRAR-STATIONERY & GENERAL OFFICE SU,MISCELLANEOUS AND SPECIALTY RETAIL STORES,GPC
WALSALL COUNCIL,http://opendatacommunities.org/id/metropolitan-district-council/walsall ,30/09/2022,RESOURCES AND TRANSFORMATION,ARTHUR BRETT CATER,05/07/2022,H59620220707FECBFXXJH-1, 28.73 ,CATERING - SCHOOLS-FOOD & DRINK SUPPLIES,MISCELLANEOUS FOOD STORES & CONVENIENCE STORES,GPC
WALSALL COUNCIL,http://opendatacommunities.org/id/metropolitan-district-council/walsall ,30/09/2022,ECONOMY & ENVIRONMENT,PHILPOTTS,05/07/2022,H59620220707FHSSPKGNK-1, 623.78 ,DARLASTON SWIMMING AND FITNESS-FOOD & DRINK SUPPLIES,GROCERY STORES AND SUPERMARKETS,GPC
WALSALL COUNCIL,http://opendatacommunities.org/id/metropolitan-district-council/walsall ,30/09/2022,ECONOMY & ENVIRONMENT,PHILPOTTS,05/07/2022,H59620220707FHSSPKGNK-2, 16.37 ,DARLASTON SWIMMING AND FITNESS-FOOD & DRINK SUPPLIES,GROCERY STORES AND SUPERMARKETS,GPC
WALSALL COUNCIL,http://opendatacommunities.org/id/metropolitan-district-council/walsall ,30/09/2022,RESOURCES AND TRANSFORMATION,ARTHUR BRETT CATER,05/07/2022,H59620220707FMLINXRIU-1, 121.00 ,CATERING - SCHOOLS-FOOD & DRINK SUPPLIES,MISCELLANEOUS FOOD STORES & CONVENIENCE STORES,GPC
WALSALL COUNCIL,http://opendatacommunities.org/id/metropolitan-district-council/walsall ,30/09/2022,CHILDRENS SERVICES,AMZNMKTPLACE,05/07/2022,H59620220707GZTMRIKSY-1, 13.49 ,FAMILY SAFEGUARDING - BUILDING-STATIONERY & GENERAL OFFICE SU,MISCELLANEOUS AND SPECIALTY RETAIL STORES,GPC
WALSALL COUNCIL,http://opendatacommunities.org/id/metropolitan-district-council/walsall ,30/09/2022,ECONOMY & ENVIRONMENT,POUNDLAND LTD 1427,05/07/2022,H59620220707HRCLMIXKV-1, 2.50 ,EXHIBITION NO.3-CATERING & REFRESHMENTS,DISCOUNT STORES,GPC
WALSALL COUNCIL,http://opendatacommunities.org/id/metropolitan-district-council/walsall ,30/09/2022,ECONOMY & ENVIRONMENT,POUNDLAND LTD 1427,05/07/2022,H59620220707HRCLMIXKV-2, 2.00 ,EXHIBITION NO.3-CATERING & REFRESHMENTS,DISCOUNT STORES,GPC
WALSALL COUNCIL,http://opendatacommunities.org/id/metropolitan-district-council/walsall ,30/09/2022,RESOURCES AND TRANSFORMATION,NOBISCO LIMITED,05/07/2022,H59620220707HTGJJLKMP-1, 172.51 ,CATERING - SCHOOLS-FOOD & DRINK SUPPLIES,OTHER INDUSTRIAL SUPPLIES,GPC
WALSALL COUNCIL,http://opendatacommunities.org/id/metropolitan-district-council/walsall ,30/09/2022,CHILDRENS SERVICES,AMZNMKTPLACE,05/07/2022,H59620220707ICJSISHLQ-1, 163.89 ,MARY ELLIOTT SCHOOL-PURCHASE OF FURNITURE & EQUIPM,MISCELLANEOUS AND SPECIALTY RETAIL STORES,GPC
WALSALL COUNCIL,http://opendatacommunities.org/id/metropolitan-district-council/walsall ,30/09/2022,CHILDRENS SERVICES,AMZNMKTPLACE,05/07/2022,H59620220707IPTYXHFQC-1, 13.98 ,EYFS-MATERIALS,MISCELLANEOUS AND SPECIALTY RETAIL STORES,GPC
WALSALL COUNCIL,http://opendatacommunities.org/id/metropolitan-district-council/walsall ,30/09/2022,CHILDRENS SERVICES,AMZNMKTPLACE,05/07/2022,H59620220707IPTYXHFQC-2, 17.98 ,EYFS-MATERIALS,MISCELLANEOUS AND SPECIALTY RETAIL STORES,GPC
WALSALL COUNCIL,http://opendatacommunities.org/id/metropolitan-district-council/walsall ,30/09/2022,CHILDRENS SERVICES,AMZNMKTPLACE,05/07/2022,H59620220707ISRURYNOX-1, 39.80 ,PELSALL VILLAGE SCHOOL-OPERATIONAL MAINTENANCE,MISCELLANEOUS AND SPECIALTY RETAIL STORES,GPC
WALSALL COUNCIL,http://opendatacommunities.org/id/metropolitan-district-council/walsall ,30/09/2022,CHILDRENS SERVICES,AMZNMKTPLACE,05/07/2022,H59620220707JFVGHLNPO-1, 12.59 ,PUPILS PREMIUM-MATERIALS,MISCELLANEOUS AND SPECIALTY RETAIL STORES,GPC
WALSALL COUNCIL,http://opendatacommunities.org/id/metropolitan-district-council/walsall ,30/09/2022,CHILDRENS SERVICES,ALLPAY *GREENSQUAREACCORD,05/07/2022,H59620220707JJGEJYXLV-1, 92.37 ,YOUNG PERSONS HOMELESS SERVICE-RENTS,"ORGANIZATIONS, CHARITABLE AND SOCIAL SERVICE",GPC
WALSALL COUNCIL,http://opendatacommunities.org/id/metropolitan-district-council/walsall ,30/09/2022,RESOURCES AND TRANSFORMATION,ARTHUR BRETT CATER,05/07/2022,H59620220707JSIOQEEHG-1, 36.11 ,CATERING - SCHOOLS-FOOD & DRINK SUPPLIES,MISCELLANEOUS FOOD STORES & CONVENIENCE STORES,GPC
WALSALL COUNCIL,http://opendatacommunities.org/id/metropolitan-district-council/walsall ,30/09/2022,RESOURCES AND TRANSFORMATION,TESCO STORES 6161,05/07/2022,H59620220707JWXICBDRW-1, 1.05 ,TOWN HALL RESTAURANT BISTRO-FOOD & DRINK SUPPLIES,GROCERY STORES AND SUPERMARKETS,GPC
WALSALL COUNCIL,http://opendatacommunities.org/id/metropolitan-district-council/walsall ,30/09/2022,RESOURCES AND TRANSFORMATION,TESCO STORES 6161,05/07/2022,H59620220707JWXICBDRW-2, 31.58 ,TOWN HALL RESTAURANT BISTRO-FOOD & DRINK SUPPLIES,GROCERY STORES AND SUPERMARKETS,GPC
WALSALL COUNCIL,http://opendatacommunities.org/id/metropolitan-district-council/walsall ,30/09/2022,RESOURCES AND TRANSFORMATION,ARTHUR BRETT CATER,05/07/2022,H59620220707KEYIDICOH-1, 48.64 ,CATERING - SCHOOLS-FOOD & DRINK SUPPLIES,MISCELLANEOUS FOOD STORES & CONVENIENCE STORES,GPC
WALSALL COUNCIL,http://opendatacommunities.org/id/metropolitan-district-council/walsall ,30/09/2022,RESOURCES AND TRANSFORMATION,ARTHUR BRETT CATER,05/07/2022,H59620220707KGXEWVWRJ-1, 84.11 ,CATERING - SCHOOLS-FOOD & DRINK SUPPLIES,MISCELLANEOUS FOOD STORES & CONVENIENCE STORES,GPC
WALSALL COUNCIL,http://opendatacommunities.org/id/metropolitan-district-council/walsall ,30/09/2022,ECONOMY & ENVIRONMENT,WALSALL STN T/O,05/07/2022,H59620220707LBQYKXJKU-1, 9.30 ,RESTART-OFFICERS & STAFF PUBLIC TRANSP,PASSENGER RAILWAYS,GPC
WALSALL COUNCIL,http://opendatacommunities.org/id/metropolitan-district-council/walsall ,30/09/2022,CHILDRENS SERVICES,ARGOS LTD,05/07/2022,H59620220707LLTHIIWBK-1, 71.35 ,E19-MATERIALS,DISCOUNT STORES,GPC
WALSALL COUNCIL,http://opendatacommunities.org/id/metropolitan-district-council/walsall ,30/09/2022,CHILDRENS SERVICES,HAPPY FISH,05/07/2022,H59620220707MHHHPDSQQ-1, 16.80 ,PE GRANT-MATERIALS,MENS AND WOMENS CLOTHING STORES,GPC
WALSALL COUNCIL,http://opendatacommunities.org/id/metropolitan-district-council/walsall ,30/09/2022,CHILDRENS SERVICES,AMAZON.CO.UK*2Y4PQ3Q44,05/07/2022,H59620220707MKIBKUGKK-1, 33.43 ,LIBRARY-MATERIALS,OTHER DIRECT MARKETING-OTHER DIRECT MARKETERS,GPC
WALSALL COUNCIL,http://opendatacommunities.org/id/metropolitan-district-council/walsall ,30/09/2022,RESOURCES AND TRANSFORMATION,ARTHUR BRETT CATER,05/07/2022,H59620220707MMCPPLRMV-1, 35.96 ,CATERING - SCHOOLS-FOOD & DRINK SUPPLIES,MISCELLANEOUS FOOD STORES & CONVENIENCE STORES,GPC
WALSALL COUNCIL,http://opendatacommunities.org/id/metropolitan-district-council/walsall ,30/09/2022,RESOURCES AND TRANSFORMATION,ARTHUR BRETT CATER,05/07/2022,H59620220707MNVKDFWGX-1, 69.31 ,CATERING - SCHOOLS-FOOD & DRINK SUPPLIES,MISCELLANEOUS FOOD STORES & CONVENIENCE STORES,GPC
WALSALL COUNCIL,http://opendatacommunities.org/id/metropolitan-district-council/walsall ,30/09/2022,RESOURCES AND TRANSFORMATION,ARTHUR BRETT CATER,05/07/2022,H59620220707NDCLZOUMD-1, 87.69 ,CATERING - SCHOOLS-FOOD & DRINK SUPPLIES,MISCELLANEOUS FOOD STORES & CONVENIENCE STORES,GPC
WALSALL COUNCIL,http://opendatacommunities.org/id/metropolitan-district-council/walsall ,30/09/2022,CHILDRENS SERVICES,AMAZON.CO.UK*2Y5H508Y4,05/07/2022,H59620220707NGIJBKUVV-1, 129.04 ,LITERACY-LIBRARY BOOKS,OTHER DIRECT MARKETING-OTHER DIRECT MARKETERS,GPC
WALSALL COUNCIL,http://opendatacommunities.org/id/metropolitan-district-council/walsall ,30/09/2022,ADULT SOCIAL CARE,WWW.SCREWFIX.COM,05/07/2022,H59620220707NRTFEEXBC-1, 128.20 ,GOSCOTE-MATERIALS,LUMBER & BUILDING MATERIALS STORES,GPC
WALSALL COUNCIL,http://opendatacommunities.org/id/metropolitan-district-council/walsall ,30/09/2022,ECONOMY & ENVIRONMENT,AMZNMKTPLACE,05/07/2022,H59620220707NSLJMNIER-1, 7.45 ,AREA PARTNERSHIPS-STATIONERY & GENERAL OFFICE SU,MISCELLANEOUS AND SPECIALTY RETAIL STORES,GPC
WALSALL COUNCIL,http://opendatacommunities.org/id/metropolitan-district-council/walsall ,30/09/2022,ECONOMY & ENVIRONMENT,WWW.PROPRODUCTION.CO.UK,05/07/2022,H59620220707NYNCORLCI-1, 43.00 ,TECHNICAL/ART HANDLING-DECORATING,"BANDS, ORCHESTRAS, AND MISCELLANEOUS ENTERTAINERS",GPC
WALSALL COUNCIL,http://opendatacommunities.org/id/metropolitan-district-council/walsall ,30/09/2022,ECONOMY & ENVIRONMENT,TAYLOR NEWS,05/07/2022,H59620220707OPRIHEDUF-1, 15.70 ,STREETLY LIBRARY-NEWSPAPERS/PERIODICALS/MAGAZIN,GROCERY STORES AND SUPERMARKETS,GPC
WALSALL COUNCIL,http://opendatacommunities.org/id/metropolitan-district-council/walsall ,30/09/2022,CHILDRENS SERVICES,WM MORRISONS STORE,05/07/2022,H59620220707PIMCBPLRG-1, 7.75 ,EDGE OF CARE TEAM-FOOD & DRINK SUPPLIES,GROCERY STORES AND SUPERMARKETS,GPC
WALSALL COUNCIL,http://opendatacommunities.org/id/metropolitan-district-council/walsall ,30/09/2022,CHILDRENS SERVICES,TESCO STORE 2933,05/07/2022,H59620220707PJOMPJGNP-1, 13.90 ,SPECIAL FACILITIES -  BEFORE/A-MATERIALS,GROCERY STORES AND SUPERMARKETS,GPC
WALSALL COUNCIL,http://opendatacommunities.org/id/metropolitan-district-council/walsall ,30/09/2022,RESOURCES AND TRANSFORMATION,ARTHUR BRETT CATER,05/07/2022,H59620220707QCVSBMLRQ-1, 95.24 ,CATERING - SCHOOLS-FOOD & DRINK SUPPLIES,MISCELLANEOUS FOOD STORES & CONVENIENCE STORES,GPC
WALSALL COUNCIL,http://opendatacommunities.org/id/metropolitan-district-council/walsall ,30/09/2022,CHILDRENS SERVICES,ROYAL MAIL ONLINE SHOP,05/07/2022,H59620220707QSOGLEEUR-1, 170.00 ,CHILDREN'S COMMISSIONING-POSTAGES & COURIER SERVICES,POSTAL SERVICES - GOVERNMENT ONLY,GPC
WALSALL COUNCIL,http://opendatacommunities.org/id/metropolitan-district-council/walsall ,30/09/2022,CHILDRENS SERVICES,AMZNMKTPLACE,05/07/2022,H59620220707QYLFWUSEO-1, 49.20 ,ADMINISTRATIVE SUPPLIES-MATERIALS,MISCELLANEOUS AND SPECIALTY RETAIL STORES,GPC
WALSALL COUNCIL,http://opendatacommunities.org/id/metropolitan-district-council/walsall ,30/09/2022,CHILDRENS SERVICES,AMZNMKTPLACE,05/07/2022,H59620220707RXYIGSTLQ-1, 23.68 ,BASIC STATIONERY-MATERIALS,MISCELLANEOUS AND SPECIALTY RETAIL STORES,GPC
WALSALL COUNCIL,http://opendatacommunities.org/id/metropolitan-district-council/walsall ,30/09/2022,CHILDRENS SERVICES,AMZNMKTPLACE,05/07/2022,H59620220707SSIJBOKFG-1, 40.00 ,SPECIAL FACILITIES-MATERIALS,MISCELLANEOUS AND SPECIALTY RETAIL STORES,GPC
WALSALL COUNCIL,http://opendatacommunities.org/id/metropolitan-district-council/walsall ,30/09/2022,CHILDRENS SERVICES,AMZNMKTPLACE,05/07/2022,H59620220707TDBVKCACS-1, 7.99 ,E19-MATERIALS,MISCELLANEOUS AND SPECIALTY RETAIL STORES,GPC
WALSALL COUNCIL,http://opendatacommunities.org/id/metropolitan-district-council/walsall ,30/09/2022,ECONOMY & ENVIRONMENT,CARTRIDGE SAVE,05/07/2022,H59620220707TEFCGSGQH-1, 84.70 ,REGISTRAR-STATIONERY & GENERAL OFFICE SU,"STATIONERY, OFFICE SUPPLIES AND WRITING PAPER",GPC
WALSALL COUNCIL,http://opendatacommunities.org/id/metropolitan-district-council/walsall ,30/09/2022,CHILDRENS SERVICES,ALDI 14 772,05/07/2022,H59620220707TNPSCRFHV-1, 48.64 ,PARENTING TEAM-FOOD & DRINK SUPPLIES,GROCERY STORES AND SUPERMARKETS,GPC
WALSALL COUNCIL,http://opendatacommunities.org/id/metropolitan-district-council/walsall ,30/09/2022,CHILDRENS SERVICES,ALDI 14 772,05/07/2022,H59620220707TNPSCRFHV-2, 1.19 ,PARENTING TEAM-FOOD & DRINK SUPPLIES,GROCERY STORES AND SUPERMARKETS,GPC
WALSALL COUNCIL,http://opendatacommunities.org/id/metropolitan-district-council/walsall ,30/09/2022,RESOURCES AND TRANSFORMATION,ARTHUR BRETT CATER,05/07/2022,H59620220707TWHSRSCEK-1, 43.16 ,CATERING - SCHOOLS-FOOD & DRINK SUPPLIES,MISCELLANEOUS FOOD STORES & CONVENIENCE STORES,GPC
WALSALL COUNCIL,http://opendatacommunities.org/id/metropolitan-district-council/walsall ,30/09/2022,RESOURCES AND TRANSFORMATION,ARTHUR BRETT CATER,05/07/2022,H59620220707UIWRIBSOF-1, 192.16 ,CATERING - SCHOOLS-FOOD & DRINK SUPPLIES,MISCELLANEOUS FOOD STORES & CONVENIENCE STORES,GPC
WALSALL COUNCIL,http://opendatacommunities.org/id/metropolitan-district-council/walsall ,30/09/2022,ECONOMY & ENVIRONMENT,JAMES LISTER & SONS LT,05/07/2022,H59620220707UNIDCPQQL-1, 92.64 ,DEPOT-MATERIALS,OTHER INDUSTRIAL SUPPLIES,GPC
WALSALL COUNCIL,http://opendatacommunities.org/id/metropolitan-district-council/walsall ,30/09/2022,RESOURCES AND TRANSFORMATION,ARTHUR BRETT CATER,05/07/2022,H59620220707UNPGGWFLH-1, 70.09 ,CATERING - SCHOOLS-FOOD & DRINK SUPPLIES,MISCELLANEOUS FOOD STORES & CONVENIENCE STORES,GPC
WALSALL COUNCIL,http://opendatacommunities.org/id/metropolitan-district-council/walsall ,30/09/2022,RESOURCES AND TRANSFORMATION,ARTHUR BRETT CATER,05/07/2022,H59620220707UOGEFGMYH-1, 74.77 ,CATERING - SCHOOLS-FOOD & DRINK SUPPLIES,MISCELLANEOUS FOOD STORES & CONVENIENCE STORES,GPC
WALSALL COUNCIL,http://opendatacommunities.org/id/metropolitan-district-council/walsall ,30/09/2022,CHILDRENS SERVICES,FARMFOODS 614,05/07/2022,H59620220707UVTLKJCLI-1, 12.02 ,EDGE OF CARE TEAM-FOOD & DRINK SUPPLIES,GROCERY STORES AND SUPERMARKETS,GPC
WALSALL COUNCIL,http://opendatacommunities.org/id/metropolitan-district-council/walsall ,30/09/2022,ECONOMY & ENVIRONMENT,AMZNMKTPLACE,05/07/2022,H59620220707VIFDKETRB-1, 43.98 ,FLEET-MATERIALS,MISCELLANEOUS AND SPECIALTY RETAIL STORES,GPC
WALSALL COUNCIL,http://opendatacommunities.org/id/metropolitan-district-council/walsall ,30/09/2022,CHILDRENS SERVICES,AMZNMKTPLACE,05/07/2022,H59620220707VYZNBTETX-1, 3.79 ,EYFS-MATERIALS,MISCELLANEOUS AND SPECIALTY RETAIL STORES,GPC
WALSALL COUNCIL,http://opendatacommunities.org/id/metropolitan-district-council/walsall ,30/09/2022,RESOURCES AND TRANSFORMATION,ARTHUR BRETT CATER,05/07/2022,H59620220707WCJFUNIBN-1, 28.60 ,CATERING - SCHOOLS-FOOD & DRINK SUPPLIES,MISCELLANEOUS FOOD STORES & CONVENIENCE STORES,GPC
WALSALL COUNCIL,http://opendatacommunities.org/id/metropolitan-district-council/walsall ,30/09/2022,CHILDRENS SERVICES,INFLATA NATION WEST BROM,05/07/2022,H59620220707WPWVBRFJR-1, 32.97 ,PRIMARY-MATERIALS,OTHER RECREATION SERVICES,GPC
WALSALL COUNCIL,http://opendatacommunities.org/id/metropolitan-district-council/walsall ,30/09/2022,CHILDRENS SERVICES,MERCURE BARONS COURT HO,05/07/2022,H59620220707XGPBQWLED-1, 50.40 ,BED & BREAKFAST PAYMENTS-BED & BREAKFAST PAYMENTS,"HOTELS, MOTELS, RESORTS",GPC
WALSALL COUNCIL,http://opendatacommunities.org/id/metropolitan-district-council/walsall ,30/09/2022,CHILDRENS SERVICES,MERCURE BARONS COURT HO,05/07/2022,H59620220707XGPBQWLED-2, 12.60 ,BED & BREAKFAST PAYMENTS-BED & BREAKFAST PAYMENTS,"HOTELS, MOTELS, RESORTS",GPC
WALSALL COUNCIL,http://opendatacommunities.org/id/metropolitan-district-council/walsall ,30/09/2022,ECONOMY & ENVIRONMENT,MACHINE MART LTD,05/07/2022,H59620220707XIUSGAILT-1, 24.23 ,INFRASTRUCTURE MAINTENANCE-MATERIALS,HOUSEHOLD APPLIANCE STORES,GPC
WALSALL COUNCIL,http://opendatacommunities.org/id/metropolitan-district-council/walsall ,30/09/2022,CHILDRENS SERVICES,AMZNMKTPLACE,05/07/2022,H59620220707XKWZHZDVH-1, 33.99 ,ICT LEARNING RESOURCES-MATERIALS,MISCELLANEOUS AND SPECIALTY RETAIL STORES,GPC
WALSALL COUNCIL,http://opendatacommunities.org/id/metropolitan-district-council/walsall ,30/09/2022,RESOURCES AND TRANSFORMATION,ARTHUR BRETT CATER,05/07/2022,H59620220707XNEIGUGIJ-1, 87.05 ,CATERING - SCHOOLS-FOOD & DRINK SUPPLIES,MISCELLANEOUS FOOD STORES & CONVENIENCE STORES,GPC
WALSALL COUNCIL,http://opendatacommunities.org/id/metropolitan-district-council/walsall ,30/09/2022,CHILDRENS SERVICES,TRAVELODGE GB0000,05/07/2022,H59620220707YIJXJFKFZ-1, 93.02 ,BED & BREAKFAST PAYMENTS-BED & BREAKFAST PAYMENTS,TRAVELODGE,GPC
WALSALL COUNCIL,http://opendatacommunities.org/id/metropolitan-district-council/walsall ,30/09/2022,CHILDRENS SERVICES,TRAVELODGE GB0000,05/07/2022,H59620220707YIJXJFKFZ-2, 11.00 ,BED & BREAKFAST PAYMENTS-BED & BREAKFAST PAYMENTS,TRAVELODGE,GPC
WALSALL COUNCIL,http://opendatacommunities.org/id/metropolitan-district-council/walsall ,30/09/2022,CHILDRENS SERVICES,ALLPAY *GREENSQUAREACCORD,05/07/2022,H59620220707YRVIBTNMP-1, 85.07 ,HOMELESSNESS PREVENTION STRATE-RENTS,"ORGANIZATIONS, CHARITABLE AND SOCIAL SERVICE",GPC
WALSALL COUNCIL,http://opendatacommunities.org/id/metropolitan-district-council/walsall ,30/09/2022,CHILDRENS SERVICES,AMZNMKTPLACE,05/07/2022,H59620220707YUVDCPGNK-1, 54.65 ,MARY ELLIOTT SCHOOL-MATERIALS,MISCELLANEOUS AND SPECIALTY RETAIL STORES,GPC
WALSALL COUNCIL,http://opendatacommunities.org/id/metropolitan-district-council/walsall ,30/09/2022,ECONOMY & ENVIRONMENT,AMZNMKTPLACE,05/07/2022,H59620220707YVQCDVHFW-1, 5.45 ,FLEET-MATERIALS,MISCELLANEOUS AND SPECIALTY RETAIL STORES,GPC
WALSALL COUNCIL,http://opendatacommunities.org/id/metropolitan-district-council/walsall ,30/09/2022,CHILDRENS SERVICES,AMZNMKTPLACE,05/07/2022,H59620220707ZCIXJMFSO-1, 32.06 ,LITERACY-MATERIALS,MISCELLANEOUS AND SPECIALTY RETAIL STORES,GPC
WALSALL COUNCIL,http://opendatacommunities.org/id/metropolitan-district-council/walsall ,30/09/2022,RESOURCES AND TRANSFORMATION,ARTHUR BRETT CATER,05/07/2022,H59620220707ZEJRCPXWI-1, 111.14 ,CATERING - SCHOOLS-FOOD & DRINK SUPPLIES,MISCELLANEOUS FOOD STORES & CONVENIENCE STORES,GPC
WALSALL COUNCIL,http://opendatacommunities.org/id/metropolitan-district-council/walsall ,30/09/2022,ECONOMY & ENVIRONMENT,F H BRUNDLE,05/07/2022,H59620220707ZSNGFPLXC-1, 151.92 ,INFRASTRUCTURE MAINTENANCE-MATERIALS,LUMBER & BUILDING MATERIALS STORES,GPC
WALSALL COUNCIL,http://opendatacommunities.org/id/metropolitan-district-council/walsall ,30/09/2022,ECONOMY & ENVIRONMENT,RAILSWOOD TRACTORS,05/07/2022,H59620220708MRVVPEULI-1, 6.00 ,PARKS AND COUNTRYSIDE-MATERIALS,"OTHER AUTOMOTIVE, AIRCRAFT, AND FARM EQUIPMENT",GPC
WALSALL COUNCIL,http://opendatacommunities.org/id/metropolitan-district-council/walsall ,30/09/2022,CHILDRENS SERVICES,AMZNMKTPLACE,06/07/2022,H59620220707FCNYMFJSP-1, 55.98 ,STOCK-MATERIALS,MISCELLANEOUS AND SPECIALTY RETAIL STORES,GPC
WALSALL COUNCIL,http://opendatacommunities.org/id/metropolitan-district-council/walsall ,30/09/2022,CHILDRENS SERVICES,AMZNMKTPLACE,06/07/2022,H59620220707HEHECWUCS-1, 19.38 ,CONSUMABLES-MATERIALS,MISCELLANEOUS AND SPECIALTY RETAIL STORES,GPC
WALSALL COUNCIL,http://opendatacommunities.org/id/metropolitan-district-council/walsall ,30/09/2022,ECONOMY & ENVIRONMENT,AMZNMKTPLACE,06/07/2022,H59620220708ANQXYDLEJ-1, 5.28 ,BLOXWICH ACTIVE LIVING CENTRE-REPAIR & MAINTENANCE OF FURNIT,MISCELLANEOUS AND SPECIALTY RETAIL STORES,GPC
WALSALL COUNCIL,http://opendatacommunities.org/id/metropolitan-district-council/walsall ,30/09/2022,RESOURCES AND TRANSFORMATION,BLAKEMORE FOODSERVICE,06/07/2022,H59620220708ANWPHIYOP-1, 38.88 ,CATERING - SCHOOLS-FOOD & DRINK SUPPLIES,CATERERS,GPC
WALSALL COUNCIL,http://opendatacommunities.org/id/metropolitan-district-council/walsall ,30/09/2022,RESOURCES AND TRANSFORMATION,BLAKEMORE FOODSERVICE,06/07/2022,H59620220708ANWPHIYOP-2, 441.01 ,CATERING - SCHOOLS-FOOD & DRINK SUPPLIES,CATERERS,GPC
WALSALL COUNCIL,http://opendatacommunities.org/id/metropolitan-district-council/walsall ,30/09/2022,CHILDRENS SERVICES,WWW.CONNEVANS.COM,06/07/2022,H59620220708AOSVUKMEE-1," 1,291.20 ",SEN-STATIONERY & GENERAL OFFICE SU,MISCELLANEOUS AND SPECIALTY RETAIL STORES,GPC
WALSALL COUNCIL,http://opendatacommunities.org/id/metropolitan-district-council/walsall ,30/09/2022,RESOURCES AND TRANSFORMATION,BLAKEMORE FOODSERVICE,06/07/2022,H59620220708AXJYALIID-1, 30.79 ,CATERING - SCHOOLS-FOOD & DRINK SUPPLIES,CATERERS,GPC
WALSALL COUNCIL,http://opendatacommunities.org/id/metropolitan-district-council/walsall ,30/09/2022,RESOURCES AND TRANSFORMATION,BLAKEMORE FOODSERVICE,06/07/2022,H59620220708AXJYALIID-2, 457.12 ,CATERING - SCHOOLS-FOOD & DRINK SUPPLIES,CATERERS,GPC
WALSALL COUNCIL,http://opendatacommunities.org/id/metropolitan-district-council/walsall ,30/09/2022,RESOURCES AND TRANSFORMATION,TIMPSON LTD,06/07/2022,H59620220708BENUIPKBN-1, 25.00 ,ESF COMMUNITY GRANTS-STATIONERY & GENERAL OFFICE SU,MISCELLANEOUS AND SPECIALTY RETAIL STORES,GPC
WALSALL COUNCIL,http://opendatacommunities.org/id/metropolitan-district-council/walsall ,30/09/2022,RESOURCES AND TRANSFORMATION,BLAKEMORE FOODSERVICE,06/07/2022,H59620220708BODPNNPKF-1, 51.18 ,CATERING - SCHOOLS-FOOD & DRINK SUPPLIES,CATERERS,GPC
WALSALL COUNCIL,http://opendatacommunities.org/id/metropolitan-district-council/walsall ,30/09/2022,RESOURCES AND TRANSFORMATION,BLAKEMORE FOODSERVICE,06/07/2022,H59620220708BODPNNPKF-2, 474.86 ,CATERING - SCHOOLS-FOOD & DRINK SUPPLIES,CATERERS,GPC
WALSALL COUNCIL,http://opendatacommunities.org/id/metropolitan-district-council/walsall ,30/09/2022,ECONOMY & ENVIRONMENT,DVLA VEHICLE TAX,06/07/2022,H59620220708BPAKWTQPR-1, 292.50 ,FLEET-LICENCES FOR VEHICLES,TAX PAYMENTS,GPC
WALSALL COUNCIL,http://opendatacommunities.org/id/metropolitan-district-council/walsall ,30/09/2022,ECONOMY & ENVIRONMENT,DVLA VEHICLE TAX,06/07/2022,H59620220708BUJQMLYNH-1, 292.50 ,FLEET-LICENCES FOR VEHICLES,TAX PAYMENTS,GPC
WALSALL COUNCIL,http://opendatacommunities.org/id/metropolitan-district-council/walsall ,30/09/2022,ECONOMY & ENVIRONMENT,AMZNMKTPLACE,06/07/2022,H59620220708BXJZVWLMU-1, 590.20 ,BLOXWICH ACTIVE LIVING CENTRE-MATERIALS,MISCELLANEOUS AND SPECIALTY RETAIL STORES,GPC
WALSALL COUNCIL,http://opendatacommunities.org/id/metropolitan-district-council/walsall ,30/09/2022,CHILDRENS SERVICES,HOBBYCRAFT,06/07/2022,H59620220708DFBEWFKTJ-1, 59.60 ,YOUNG PERSONS HOMELESS SERVICE-MATERIALS,"ARTIST SUPPLY STORES, CRAFT SHOPS",GPC
WALSALL COUNCIL,http://opendatacommunities.org/id/metropolitan-district-council/walsall ,30/09/2022,ECONOMY & ENVIRONMENT,POST OFFICE SELF SERVE,06/07/2022,H59620220708DQXEDJDJJ-1, 3.35 ,NAG - CATALOGUES-POSTAGES & COURIER SERVICES,POSTAL SERVICES - GOVERNMENT ONLY,GPC
WALSALL COUNCIL,http://opendatacommunities.org/id/metropolitan-district-council/walsall ,30/09/2022,ECONOMY & ENVIRONMENT,DVLA VEHICLE TAX,06/07/2022,H59620220708DSZURRLJD-1, 167.50 ,FLEET-LICENCES FOR VEHICLES,TAX PAYMENTS,GPC
WALSALL COUNCIL,http://opendatacommunities.org/id/metropolitan-district-council/walsall ,30/09/2022,CHILDRENS SERVICES,AMZNMKTPLACE,06/07/2022,H59620220708DVBKBUFMJ-1, 29.90 ,ART & CRAFT DEPARTMENT-MATERIALS,MISCELLANEOUS AND SPECIALTY RETAIL STORES,GPC
WALSALL COUNCIL,http://opendatacommunities.org/id/metropolitan-district-council/walsall ,30/09/2022,CHILDRENS SERVICES,GEN REGISTER OFFICE,06/07/2022,H59620220708EIQZPZKPP-1, 102.00 ,SAFEGUARDING & FAMILY SUPPORT-FEES & LICENCES,GOVERNMENT SERVICES,GPC
WALSALL COUNCIL,http://opendatacommunities.org/id/metropolitan-district-council/walsall ,30/09/2022,RESOURCES AND TRANSFORMATION,ARTHUR BRETT CATER,06/07/2022,H59620220708EJSHJJELJ-1, 75.34 ,CATERING - SCHOOLS-FOOD & DRINK SUPPLIES,MISCELLANEOUS FOOD STORES & CONVENIENCE STORES,GPC
WALSALL COUNCIL,http://opendatacommunities.org/id/metropolitan-district-council/walsall ,30/09/2022,CHILDRENS SERVICES,AMZNMKTPLACE,06/07/2022,H59620220708ERYDTHRDT-1, 9.53 ,E19-MATERIALS,MISCELLANEOUS AND SPECIALTY RETAIL STORES,GPC
WALSALL COUNCIL,http://opendatacommunities.org/id/metropolitan-district-council/walsall ,30/09/2022,CHILDRENS SERVICES,AMZNMKTPLACE,06/07/2022,H59620220708ERYDTHRDT-2, 32.41 ,E19-MATERIALS,MISCELLANEOUS AND SPECIALTY RETAIL STORES,GPC
WALSALL COUNCIL,http://opendatacommunities.org/id/metropolitan-district-council/walsall ,30/09/2022,ECONOMY & ENVIRONMENT,POST OFFICE SELF SERVE,06/07/2022,H59620220708FBEPXMCQJ-1, 3.35 ,NAG - CATALOGUES-POSTAGES & COURIER SERVICES,POSTAL SERVICES - GOVERNMENT ONLY,GPC
WALSALL COUNCIL,http://opendatacommunities.org/id/metropolitan-district-council/walsall ,30/09/2022,RESOURCES AND TRANSFORMATION,ARTHUR BRETT CATER,06/07/2022,H59620220708FGKLFFHSF-1, 34.59 ,CATERING - SCHOOLS-FOOD & DRINK SUPPLIES,MISCELLANEOUS FOOD STORES & CONVENIENCE STORES,GPC
WALSALL COUNCIL,http://opendatacommunities.org/id/metropolitan-district-council/walsall ,30/09/2022,RESOURCES AND TRANSFORMATION,BLAKEMORE FOODSERVICE,06/07/2022,H59620220708FKFSLJMFO-1, 153.96 ,CATERING - SCHOOLS-FOOD & DRINK SUPPLIES,CATERERS,GPC
WALSALL COUNCIL,http://opendatacommunities.org/id/metropolitan-district-council/walsall ,30/09/2022,RESOURCES AND TRANSFORMATION,BLAKEMORE FOODSERVICE,06/07/2022,H59620220708FKFSLJMFO-2, 984.19 ,CATERING - SCHOOLS-FOOD & DRINK SUPPLIES,CATERERS,GPC
WALSALL COUNCIL,http://opendatacommunities.org/id/metropolitan-district-council/walsall ,30/09/2022,RESOURCES AND TRANSFORMATION,ARTHUR BRETT CATER,06/07/2022,H59620220708FOKEFQKOD-1, 51.25 ,CATERING - SCHOOLS-FOOD & DRINK SUPPLIES,MISCELLANEOUS FOOD STORES & CONVENIENCE STORES,GPC
WALSALL COUNCIL,http://opendatacommunities.org/id/metropolitan-district-council/walsall ,30/09/2022,ECONOMY & ENVIRONMENT,POST OFFICE SELF SERVE,06/07/2022,H59620220708GLMESWSOO-1, 3.35 ,NAG - CATALOGUES-POSTAGES & COURIER SERVICES,POSTAL SERVICES - GOVERNMENT ONLY,GPC
WALSALL COUNCIL,http://opendatacommunities.org/id/metropolitan-district-council/walsall ,30/09/2022,CHILDRENS SERVICES,EDECKS.CO.UK,06/07/2022,H59620220708GRPIRJGBS-1, 61.08 ,OAKWOOD SCHOOL-OPERATIONAL MAINTENANCE,LUMBER & BUILDING MATERIALS STORES,GPC
WALSALL COUNCIL,http://opendatacommunities.org/id/metropolitan-district-council/walsall ,30/09/2022,CHILDRENS SERVICES,ASDA,06/07/2022,H59620220708HCURTYBRQ-1, 120.40 ,WALSALL CRISIS SUPPORT SCHEME-FOOD & DRINK SUPPLIES,GROCERY STORES AND SUPERMARKETS,GPC
WALSALL COUNCIL,http://opendatacommunities.org/id/metropolitan-district-council/walsall ,30/09/2022,CHILDRENS SERVICES,WALSALL COUNCIL,06/07/2022,H59620220708HCZSWXEIE-1, 17.00 ,ROUGH SLEEPING INITIATIVE GRAN-FEES & LICENCES,GOVERNMENT SERVICES,GPC
WALSALL COUNCIL,http://opendatacommunities.org/id/metropolitan-district-council/walsall ,30/09/2022,RESOURCES AND TRANSFORMATION,ARTHUR BRETT CATER,06/07/2022,H59620220708HDGMYMVLI-1, 83.80 ,CATERING - SCHOOLS-FOOD & DRINK SUPPLIES,MISCELLANEOUS FOOD STORES & CONVENIENCE STORES,GPC
WALSALL COUNCIL,http://opendatacommunities.org/id/metropolitan-district-council/walsall ,30/09/2022,RESOURCES AND TRANSFORMATION,ARTHUR BRETT CATER,06/07/2022,H59620220708HEDUTAXJQ-1, 5.83 ,CATERING - SCHOOLS-FOOD & DRINK SUPPLIES,MISCELLANEOUS FOOD STORES & CONVENIENCE STORES,GPC
WALSALL COUNCIL,http://opendatacommunities.org/id/metropolitan-district-council/walsall ,30/09/2022,RESOURCES AND TRANSFORMATION,ARTHUR BRETT CATER,06/07/2022,H59620220708HHLNUJTOI-1, 14.40 ,CATERING - SCHOOLS-FOOD & DRINK SUPPLIES,MISCELLANEOUS FOOD STORES & CONVENIENCE STORES,GPC
WALSALL COUNCIL,http://opendatacommunities.org/id/metropolitan-district-council/walsall ,30/09/2022,RESOURCES AND TRANSFORMATION,ARTHUR BRETT CATER,06/07/2022,H59620220708HTABSCDXO-1, 39.11 ,CATERING - SCHOOLS-FOOD & DRINK SUPPLIES,MISCELLANEOUS FOOD STORES & CONVENIENCE STORES,GPC
WALSALL COUNCIL,http://opendatacommunities.org/id/metropolitan-district-council/walsall ,30/09/2022,CHILDRENS SERVICES,WWW.CONNEVANS.COM,06/07/2022,H59620220708HTILLKKSK-1," 1,291.20 ",SEN-STATIONERY & GENERAL OFFICE SU,MISCELLANEOUS AND SPECIALTY RETAIL STORES,GPC
WALSALL COUNCIL,http://opendatacommunities.org/id/metropolitan-district-council/walsall ,30/09/2022,RESOURCES AND TRANSFORMATION,ARTHUR BRETT CATER,06/07/2022,H59620220708HTTZTJRTT-1, 71.35 ,CATERING - SCHOOLS-FOOD & DRINK SUPPLIES,MISCELLANEOUS FOOD STORES & CONVENIENCE STORES,GPC
WALSALL COUNCIL,http://opendatacommunities.org/id/metropolitan-district-council/walsall ,30/09/2022,CHILDRENS SERVICES,WWW.MINILABEL.CO.UK,06/07/2022,H59620220708HUZYIJPHO-1, 5.90 ,CHUCKERY PRIMARY SCHOOL-MATERIALS,MISCELLANEOUS PUBLISHING AND PRINTING,GPC
WALSALL COUNCIL,http://opendatacommunities.org/id/metropolitan-district-council/walsall ,30/09/2022,CHILDRENS SERVICES,ASDA SUPERSTORE,06/07/2022,H59620220708IDGSRMJVT-1, 30.00 ,CONTINGENCY-MATERIALS,GROCERY STORES AND SUPERMARKETS,GPC
WALSALL COUNCIL,http://opendatacommunities.org/id/metropolitan-district-council/walsall ,30/09/2022,CHILDRENS SERVICES,POST OFFICE COUNTER,06/07/2022,H59620220708IGFPFPZKD-1, 20.00 ,AWARDS-MATERIALS,POSTAL SERVICES - GOVERNMENT ONLY,GPC
WALSALL COUNCIL,http://opendatacommunities.org/id/metropolitan-district-council/walsall ,30/09/2022,RESOURCES AND TRANSFORMATION,NOBISCO LIMITED,06/07/2022,H59620220708IHBPUDERD-1, 122.59 ,CATERING - SCHOOLS-FOOD & DRINK SUPPLIES,OTHER INDUSTRIAL SUPPLIES,GPC
WALSALL COUNCIL,http://opendatacommunities.org/id/metropolitan-district-council/walsall ,30/09/2022,ECONOMY & ENVIRONMENT,WILLIAM WHEAT AND SON G/,06/07/2022,H59620220708IXBWOQQFE-1, 7.98 ,PARKS AND COUNTRYSIDE-MATERIALS,"NURSERIES, LAWN AND GARDEN SUPPLY STORES",GPC
WALSALL COUNCIL,http://opendatacommunities.org/id/metropolitan-district-council/walsall ,30/09/2022,ECONOMY & ENVIRONMENT,SNAP ON DIAGNOSTIC,06/07/2022,H59620220708JACQCJLLW-1,-960.00 ,FLEET-PROFESSIONAL SERVICES-PRIV CON,ELECTRICAL PARTS AND EQUIPMENT,GPC
WALSALL COUNCIL,http://opendatacommunities.org/id/metropolitan-district-council/walsall ,30/09/2022,CHILDRENS SERVICES,AO RETAIL LIMITED,06/07/2022,H59620220708JCBYMMFCI-1, 302.00 ,FAMILY SAFEGUARDING - BUILDING-PURCHASE OF FURNITURE & EQUIPM,HOUSEHOLD APPLIANCE STORES,GPC
WALSALL COUNCIL,http://opendatacommunities.org/id/metropolitan-district-council/walsall ,30/09/2022,ECONOMY & ENVIRONMENT,TOOLSTATION LTD ALDRIDGE,06/07/2022,H59620220708JCNVFAOAV-1, 59.96 ,ARBORETUM-MATERIALS,LUMBER & BUILDING MATERIALS STORES,GPC
WALSALL COUNCIL,http://opendatacommunities.org/id/metropolitan-district-council/walsall ,30/09/2022,ECONOMY & ENVIRONMENT,WWW.LEISUREDEPOT.CO.UK,06/07/2022,H59620220708JFMOLWPSP-1, 378.34 ,FLEET-MATERIALS,MISCELLANEOUS GENERAL MERCHANDISE,GPC
WALSALL COUNCIL,http://opendatacommunities.org/id/metropolitan-district-council/walsall ,30/09/2022,RESOURCES AND TRANSFORMATION,BLAKEMORE FOODSERVICE,06/07/2022,H59620220708JJEHDOMXQ-1, 25.99 ,CATERING - SCHOOLS-FOOD & DRINK SUPPLIES,CATERERS,GPC
WALSALL COUNCIL,http://opendatacommunities.org/id/metropolitan-district-council/walsall ,30/09/2022,RESOURCES AND TRANSFORMATION,BLAKEMORE FOODSERVICE,06/07/2022,H59620220708JJEHDOMXQ-2, 146.22 ,CATERING - SCHOOLS-FOOD & DRINK SUPPLIES,CATERERS,GPC
WALSALL COUNCIL,http://opendatacommunities.org/id/metropolitan-district-council/walsall ,30/09/2022,RESOURCES AND TRANSFORMATION,ARTHUR BRETT CATER,06/07/2022,H59620220708JQVDWKFYR-1, 113.75 ,CATERING - SCHOOLS-FOOD & DRINK SUPPLIES,MISCELLANEOUS FOOD STORES & CONVENIENCE STORES,GPC
WALSALL COUNCIL,http://opendatacommunities.org/id/metropolitan-district-council/walsall ,30/09/2022,CHILDRENS SERVICES,CO-OPERATIVE FOOD,06/07/2022,H59620220708JYOLCPBRF-1, 1.75 ,FAMILY PLACEMENTS-FOOD & DRINK SUPPLIES,GROCERY STORES AND SUPERMARKETS,GPC
WALSALL COUNCIL,http://opendatacommunities.org/id/metropolitan-district-council/walsall ,30/09/2022,ECONOMY & ENVIRONMENT,POST OFFICE SELF SERVE,06/07/2022,H59620220708KESSGLEHQ-1, 3.35 ,NAG - CATALOGUES-POSTAGES & COURIER SERVICES,POSTAL SERVICES - GOVERNMENT ONLY,GPC
WALSALL COUNCIL,http://opendatacommunities.org/id/metropolitan-district-council/walsall ,30/09/2022,CHILDRENS SERVICES,HOME BARGAINS,06/07/2022,H59620220708KMBDXGSOF-1, 24.45 ,REDRUTH ROAD-CLEANING MATERIALS,HARDWARE STORES,GPC
WALSALL COUNCIL,http://opendatacommunities.org/id/metropolitan-district-council/walsall ,30/09/2022,ECONOMY & ENVIRONMENT,WH SMITH,06/07/2022,H59620220708KQLMSXGTE-1, 23.10 ,NAG - CATALOGUES-POSTAGES & COURIER SERVICES,NEWS DEALERS AND NEWSSTANDS,GPC
WALSALL COUNCIL,http://opendatacommunities.org/id/metropolitan-district-council/walsall ,30/09/2022,ECONOMY & ENVIRONMENT,NEWITTS.COM,06/07/2022,H59620220708KXRCBELFN-1, 792.00 ,BLOXWICH ACTIVE LIVING CENTRE-PURCHASE OF FURNITURE & EQUIPM,SPORTING GOODS STORES,GPC
WALSALL COUNCIL,http://opendatacommunities.org/id/metropolitan-district-council/walsall ,30/09/2022,RESOURCES AND TRANSFORMATION,ARTHUR BRETT CATER,06/07/2022,H59620220708LBGHLBULQ-1, 35.44 ,CATERING - SCHOOLS-FOOD & DRINK SUPPLIES,MISCELLANEOUS FOOD STORES & CONVENIENCE STORES,GPC
WALSALL COUNCIL,http://opendatacommunities.org/id/metropolitan-district-council/walsall ,30/09/2022,CHILDRENS SERVICES,B&M 728 BENTLEY BRIDGE,06/07/2022,H59620220708LGVWPHOBX-1, 14.47 ,YOUNG PERSONS HOMELESS SERVICE-MATERIALS,MISCELLANEOUS GENERAL MERCHANDISE,GPC
WALSALL COUNCIL,http://opendatacommunities.org/id/metropolitan-district-council/walsall ,30/09/2022,CHILDRENS SERVICES,B&Q LTD,06/07/2022,H59620220708LIXTUNCJG-1, 76.00 ,BUTTS PRIMARY SCHOOL-OPERATIONAL MAINTENANCE,LUMBER & BUILDING MATERIALS STORES,GPC
WALSALL COUNCIL,http://opendatacommunities.org/id/metropolitan-district-council/walsall ,30/09/2022,CHILDRENS SERVICES,ROYAL MAIL ONLINE SHOP,06/07/2022,H59620220708LLSGDBTHT-1, 326.00 ,PELSALL EDC-POSTAGES & COURIER SERVICES,POSTAL SERVICES - GOVERNMENT ONLY,GPC
WALSALL COUNCIL,http://opendatacommunities.org/id/metropolitan-district-council/walsall ,30/09/2022,RESOURCES AND TRANSFORMATION,ARTHUR BRETT CATER,06/07/2022,H59620220708LNYOWSLQY-1, 39.74 ,CATERING - SCHOOLS-FOOD & DRINK SUPPLIES,MISCELLANEOUS FOOD STORES & CONVENIENCE STORES,GPC
WALSALL COUNCIL,http://opendatacommunities.org/id/metropolitan-district-council/walsall ,30/09/2022,CHILDRENS SERVICES,W M MORRISONS.COM,06/07/2022,H59620220708LRXTEGNRI-1,-7.74 ,PELSALL VILLAGE SCHOOL-FOOD & DRINK SUPPLIES,GROCERY STORES AND SUPERMARKETS,GPC
WALSALL COUNCIL,http://opendatacommunities.org/id/metropolitan-district-council/walsall ,30/09/2022,CHILDRENS SERVICES,AMZNMKTPLACE,06/07/2022,H59620220708LTKQXVIPB-1, 23.98 ,PE-MATERIALS,MISCELLANEOUS AND SPECIALTY RETAIL STORES,GPC
WALSALL COUNCIL,http://opendatacommunities.org/id/metropolitan-district-council/walsall ,30/09/2022,CHILDRENS SERVICES,WWW.CONNEVANS.COM,06/07/2022,H59620220708MHBWEHHUN-1," 1,300.16 ",SEN-PURCHASE OF FURNITURE & EQUIPM,MISCELLANEOUS AND SPECIALTY RETAIL STORES,GPC
WALSALL COUNCIL,http://opendatacommunities.org/id/metropolitan-district-council/walsall ,30/09/2022,CHILDRENS SERVICES,WWW.CONNEVANS.COM,06/07/2022,H59620220708MHBWEHHUN-2, 100.01 ,SEN-PURCHASE OF FURNITURE & EQUIPM,MISCELLANEOUS AND SPECIALTY RETAIL STORES,GPC
WALSALL COUNCIL,http://opendatacommunities.org/id/metropolitan-district-council/walsall ,30/09/2022,CHILDRENS SERVICES,AMZNMKTPLACE,06/07/2022,H59620220708MNLUMNCPH-1, 35.98 ,NON DEPARTMENT EXPENSES-MATERIALS,MISCELLANEOUS AND SPECIALTY RETAIL STORES,GPC
WALSALL COUNCIL,http://opendatacommunities.org/id/metropolitan-district-council/walsall ,30/09/2022,RESOURCES AND TRANSFORMATION,BLAKEMORE FOODSERVICE,06/07/2022,H59620220708NADEEUYPY-1, 41.11 ,CATERING - SCHOOLS-FOOD & DRINK SUPPLIES,CATERERS,GPC
WALSALL COUNCIL,http://opendatacommunities.org/id/metropolitan-district-council/walsall ,30/09/2022,RESOURCES AND TRANSFORMATION,BLAKEMORE FOODSERVICE,06/07/2022,H59620220708NADEEUYPY-2, 766.99 ,CATERING - SCHOOLS-FOOD & DRINK SUPPLIES,CATERERS,GPC
WALSALL COUNCIL,http://opendatacommunities.org/id/metropolitan-district-council/walsall ,30/09/2022,ECONOMY & ENVIRONMENT,DVLA VEHICLE TAX,06/07/2022,H59620220708NHACQUYNX-1, 292.50 ,FLEET-LICENCES FOR VEHICLES,TAX PAYMENTS,GPC
WALSALL COUNCIL,http://opendatacommunities.org/id/metropolitan-district-council/walsall ,30/09/2022,RESOURCES AND TRANSFORMATION,ARTHUR BRETT CATER,06/07/2022,H59620220708NXWUIHOYK-1, 46.10 ,CATERING - SCHOOLS-FOOD & DRINK SUPPLIES,MISCELLANEOUS FOOD STORES & CONVENIENCE STORES,GPC
WALSALL COUNCIL,http://opendatacommunities.org/id/metropolitan-district-council/walsall ,30/09/2022,RESOURCES AND TRANSFORMATION,ARTHUR BRETT CATER,06/07/2022,H59620220708OCUITAHMT-1, 33.27 ,CATERING - SCHOOLS-FOOD & DRINK SUPPLIES,MISCELLANEOUS FOOD STORES & CONVENIENCE STORES,GPC
WALSALL COUNCIL,http://opendatacommunities.org/id/metropolitan-district-council/walsall ,30/09/2022,CHILDRENS SERVICES,CURRYS ONLINE,06/07/2022,H59620220708ORESYHVRJ-1, 983.00 ,CARE LEAVER ENTITLEMENTS-SETTING UP HOME GRANT,ELECTRONIC SALES,GPC
WALSALL COUNCIL,http://opendatacommunities.org/id/metropolitan-district-council/walsall ,30/09/2022,CHILDRENS SERVICES,J9 ACCOMODATION,06/07/2022,H59620220708PGISIQUFN-1, 346.67 ,HOMELESSNESS PREVENTION STRATE-RENTS,REAL ESTATE MANAGERS - RENTALS,GPC
WALSALL COUNCIL,http://opendatacommunities.org/id/metropolitan-district-council/walsall ,30/09/2022,ECONOMY & ENVIRONMENT,POST OFFICE SELF SERVE,06/07/2022,H59620220708PHATQJJJE-1, 3.35 ,NAG - CATALOGUES-POSTAGES & COURIER SERVICES,POSTAL SERVICES - GOVERNMENT ONLY,GPC
WALSALL COUNCIL,http://opendatacommunities.org/id/metropolitan-district-council/walsall ,30/09/2022,RESOURCES AND TRANSFORMATION,BLAKEMORE FOODSERVICE,06/07/2022,H59620220708PKYYETYRP-1,-19.41 ,CATERING - SCHOOLS-FOOD & DRINK SUPPLIES,CATERERS,GPC
WALSALL COUNCIL,http://opendatacommunities.org/id/metropolitan-district-council/walsall ,30/09/2022,RESOURCES AND TRANSFORMATION,BLAKEMORE FOODSERVICE,06/07/2022,H59620220708PMDSGIDGT-1, 10.32 ,CATERING - SCHOOLS-FOOD & DRINK SUPPLIES,CATERERS,GPC
WALSALL COUNCIL,http://opendatacommunities.org/id/metropolitan-district-council/walsall ,30/09/2022,RESOURCES AND TRANSFORMATION,BLAKEMORE FOODSERVICE,06/07/2022,H59620220708PMDSGIDGT-2, 436.85 ,CATERING - SCHOOLS-FOOD & DRINK SUPPLIES,CATERERS,GPC
WALSALL COUNCIL,http://opendatacommunities.org/id/metropolitan-district-council/walsall ,30/09/2022,ECONOMY & ENVIRONMENT,TIMPSON LTD,06/07/2022,H59620220708PWTLYTTYM-1, 8.00 ,ENVIRONMENTAL PROTECTION-REPAIR & MAINTENANCE OF FURNIT,MISCELLANEOUS AND SPECIALTY RETAIL STORES,GPC
WALSALL COUNCIL,http://opendatacommunities.org/id/metropolitan-district-council/walsall ,30/09/2022,CHILDRENS SERVICES,WWW.CONNEVANS.COM,06/07/2022,H59620220708QGQLBBLKQ-1," 1,116.00 ",SEN-STATIONERY & GENERAL OFFICE SU,MISCELLANEOUS AND SPECIALTY RETAIL STORES,GPC
WALSALL COUNCIL,http://opendatacommunities.org/id/metropolitan-district-council/walsall ,30/09/2022,ECONOMY & ENVIRONMENT,DVLA VEHICLE TAX,06/07/2022,H59620220708QRNZDEMPG-1, 292.50 ,FLEET-LICENCES FOR VEHICLES,TAX PAYMENTS,GPC
WALSALL COUNCIL,http://opendatacommunities.org/id/metropolitan-district-council/walsall ,30/09/2022,RESOURCES AND TRANSFORMATION,ASDA SUPERSTORE,06/07/2022,H59620220708RCIOFDJFF-1, 5.00 ,CATERING - SCHOOLS-FOOD & DRINK SUPPLIES,GROCERY STORES AND SUPERMARKETS,GPC
WALSALL COUNCIL,http://opendatacommunities.org/id/metropolitan-district-council/walsall ,30/09/2022,CHILDRENS SERVICES,HOBBYCRAFT TRADING LIMITE,06/07/2022,H59620220708RHBXCYKDC-1, 17.95 ,CURRICULUM STOCK-MATERIALS,"ARTIST SUPPLY STORES, CRAFT SHOPS",GPC
WALSALL COUNCIL,http://opendatacommunities.org/id/metropolitan-district-council/walsall ,30/09/2022,ADULT SOCIAL CARE,THOMPSONS SOLICITORS,06/07/2022,H59620220708RKBWCLILH-1, 300.00 ,ASC PARTNERSHIPS-EXTERNAL LEGAL FEES,"ATTORNEYS, LEGAL SERVICES",GPC
WALSALL COUNCIL,http://opendatacommunities.org/id/metropolitan-district-council/walsall ,30/09/2022,RESOURCES AND TRANSFORMATION,BLAKEMORE FOODSERVICE,06/07/2022,H59620220708RKIZDASSM-1, 30.79 ,CATERING - SCHOOLS-FOOD & DRINK SUPPLIES,CATERERS,GPC
WALSALL COUNCIL,http://opendatacommunities.org/id/metropolitan-district-council/walsall ,30/09/2022,RESOURCES AND TRANSFORMATION,BLAKEMORE FOODSERVICE,06/07/2022,H59620220708RKIZDASSM-2, 603.46 ,CATERING - SCHOOLS-FOOD & DRINK SUPPLIES,CATERERS,GPC
WALSALL COUNCIL,http://opendatacommunities.org/id/metropolitan-district-council/walsall ,30/09/2022,RESOURCES AND TRANSFORMATION,NOBISCO LIMITED,06/07/2022,H59620220708RLIRNTBKW-1, 10.45 ,CATERING - SCHOOLS-FOOD & DRINK SUPPLIES,OTHER INDUSTRIAL SUPPLIES,GPC
WALSALL COUNCIL,http://opendatacommunities.org/id/metropolitan-district-council/walsall ,30/09/2022,RESOURCES AND TRANSFORMATION,ARTHUR BRETT CATER,06/07/2022,H59620220708RQYNTDTHB-1, 74.05 ,CATERING - SCHOOLS-FOOD & DRINK SUPPLIES,MISCELLANEOUS FOOD STORES & CONVENIENCE STORES,GPC
WALSALL COUNCIL,http://opendatacommunities.org/id/metropolitan-district-council/walsall ,30/09/2022,CHILDRENS SERVICES,HOME BARGAINS,06/07/2022,H59620220708SGRKLBJZX-1, 4.25 ,REDRUTH ROAD-RESIDENTS PERSONAL EXPENSES-AL,HARDWARE STORES,GPC
WALSALL COUNCIL,http://opendatacommunities.org/id/metropolitan-district-council/walsall ,30/09/2022,CHILDRENS SERVICES,ICELAND,06/07/2022,H59620220708SKFRLQWKQ-1, 11.90 ,REDRUTH ROAD-FOOD & DRINK SUPPLIES,GROCERY STORES AND SUPERMARKETS,GPC
WALSALL COUNCIL,http://opendatacommunities.org/id/metropolitan-district-council/walsall ,30/09/2022,ECONOMY & ENVIRONMENT,POST OFFICE SELF SERVE,06/07/2022,H59620220708SVSDYNQNM-1, 3.35 ,NAG - CATALOGUES-POSTAGES & COURIER SERVICES,POSTAL SERVICES - GOVERNMENT ONLY,GPC
WALSALL COUNCIL,http://opendatacommunities.org/id/metropolitan-district-council/walsall ,30/09/2022,CHILDRENS SERVICES,ARGOS LTD,06/07/2022,H59620220708SXREMYCIQ-1, 439.95 ,FAMILY SAFEGUARDING WEST LOCAL-PURCHASE OF FURNITURE & EQUIPM,DISCOUNT STORES,GPC
WALSALL COUNCIL,http://opendatacommunities.org/id/metropolitan-district-council/walsall ,30/09/2022,CHILDRENS SERVICES,AMZNMKTPLACE,06/07/2022,H59620220708TBKLOUWOR-1, 40.99 ,MARY ELLIOTT SCHOOL-PURCHASE OF FURNITURE & EQUIPM,MISCELLANEOUS AND SPECIALTY RETAIL STORES,GPC
WALSALL COUNCIL,http://opendatacommunities.org/id/metropolitan-district-council/walsall ,30/09/2022,CHILDRENS SERVICES,AMZNMKTPLACE,06/07/2022,H59620220708UGCURDZER-1, 11.63 ,SEN-STATIONERY & GENERAL OFFICE SU,MISCELLANEOUS AND SPECIALTY RETAIL STORES,GPC
WALSALL COUNCIL,http://opendatacommunities.org/id/metropolitan-district-council/walsall ,30/09/2022,CHILDRENS SERVICES,AMZNMKTPLACE,06/07/2022,H59620220708UGCURDZER-2, 19.73 ,SEN-STATIONERY & GENERAL OFFICE SU,MISCELLANEOUS AND SPECIALTY RETAIL STORES,GPC
WALSALL COUNCIL,http://opendatacommunities.org/id/metropolitan-district-council/walsall ,30/09/2022,RESOURCES AND TRANSFORMATION,BLAKEMORE FOODSERVICE,06/07/2022,H59620220708UHXCKZWWI-1, 71.82 ,CATERING - SCHOOLS-FOOD & DRINK SUPPLIES,CATERERS,GPC
WALSALL COUNCIL,http://opendatacommunities.org/id/metropolitan-district-council/walsall ,30/09/2022,RESOURCES AND TRANSFORMATION,BLAKEMORE FOODSERVICE,06/07/2022,H59620220708UHXCKZWWI-2, 629.86 ,CATERING - SCHOOLS-FOOD & DRINK SUPPLIES,CATERERS,GPC
WALSALL COUNCIL,http://opendatacommunities.org/id/metropolitan-district-council/walsall ,30/09/2022,ECONOMY & ENVIRONMENT,POST OFFICE SELF SERVE,06/07/2022,H59620220708UIBEVXNHL-1, 3.35 ,NAG - CATALOGUES-POSTAGES & COURIER SERVICES,POSTAL SERVICES - GOVERNMENT ONLY,GPC
WALSALL COUNCIL,http://opendatacommunities.org/id/metropolitan-district-council/walsall ,30/09/2022,ECONOMY & ENVIRONMENT,POST OFFICE SELF SERVE,06/07/2022,H59620220708UOXUNFTHV-1, 3.35 ,NAG - CATALOGUES-POSTAGES & COURIER SERVICES,POSTAL SERVICES - GOVERNMENT ONLY,GPC
WALSALL COUNCIL,http://opendatacommunities.org/id/metropolitan-district-council/walsall ,30/09/2022,RESOURCES AND TRANSFORMATION,BLAKEMORE FOODSERVICE,06/07/2022,H59620220708USFMIGQGB-1, 10.32 ,CATERING - SCHOOLS-FOOD & DRINK SUPPLIES,CATERERS,GPC
WALSALL COUNCIL,http://opendatacommunities.org/id/metropolitan-district-council/walsall ,30/09/2022,RESOURCES AND TRANSFORMATION,BLAKEMORE FOODSERVICE,06/07/2022,H59620220708USFMIGQGB-2, 164.01 ,CATERING - SCHOOLS-FOOD & DRINK SUPPLIES,CATERERS,GPC
WALSALL COUNCIL,http://opendatacommunities.org/id/metropolitan-district-council/walsall ,30/09/2022,CHILDRENS SERVICES,TRAVELODGE WALSALL,06/07/2022,H59620220708UTOCJGDUV-1, 369.95 ,WALSALL CRISIS SUPPORT SCHEME-OTHER EXPENSES,TRAVELODGE,GPC
WALSALL COUNCIL,http://opendatacommunities.org/id/metropolitan-district-council/walsall ,30/09/2022,RESOURCES AND TRANSFORMATION,BLAKEMORE FOODSERVICE,06/07/2022,H59620220708VLUZKNWQA-1, 65.42 ,CATERING - SCHOOLS-FOOD & DRINK SUPPLIES,CATERERS,GPC
WALSALL COUNCIL,http://opendatacommunities.org/id/metropolitan-district-council/walsall ,30/09/2022,RESOURCES AND TRANSFORMATION,BLAKEMORE FOODSERVICE,06/07/2022,H59620220708VLUZKNWQA-2, 237.06 ,CATERING - SCHOOLS-FOOD & DRINK SUPPLIES,CATERERS,GPC
WALSALL COUNCIL,http://opendatacommunities.org/id/metropolitan-district-council/walsall ,30/09/2022,RESOURCES AND TRANSFORMATION,BLAKEMORE FOODSERVICE,06/07/2022,H59620220708VUVKAIFFF-1,-6.53 ,CATERING - SCHOOLS-FOOD & DRINK SUPPLIES,CATERERS,GPC
WALSALL COUNCIL,http://opendatacommunities.org/id/metropolitan-district-council/walsall ,30/09/2022,ECONOMY & ENVIRONMENT,DVLA VEHICLE TAX,06/07/2022,H59620220708WBAMVNJRX-1, 167.50 ,FLEET-LICENCES FOR VEHICLES,TAX PAYMENTS,GPC
WALSALL COUNCIL,http://opendatacommunities.org/id/metropolitan-district-council/walsall ,30/09/2022,RESOURCES AND TRANSFORMATION,BLAKEMORE FOODSERVICE,06/07/2022,H59620220708WVFYRVLPJ-1, 103.53 ,CATERING - SCHOOLS-FOOD & DRINK SUPPLIES,CATERERS,GPC
WALSALL COUNCIL,http://opendatacommunities.org/id/metropolitan-district-council/walsall ,30/09/2022,RESOURCES AND TRANSFORMATION,BLAKEMORE FOODSERVICE,06/07/2022,H59620220708XHYOQYUJF-1, 12.68 ,CATERING - SCHOOLS-FOOD & DRINK SUPPLIES,CATERERS,GPC
WALSALL COUNCIL,http://opendatacommunities.org/id/metropolitan-district-council/walsall ,30/09/2022,RESOURCES AND TRANSFORMATION,BLAKEMORE FOODSERVICE,06/07/2022,H59620220708XOPNQQQOD-1, 20.64 ,CATERING - SCHOOLS-FOOD & DRINK SUPPLIES,CATERERS,GPC
WALSALL COUNCIL,http://opendatacommunities.org/id/metropolitan-district-council/walsall ,30/09/2022,RESOURCES AND TRANSFORMATION,BLAKEMORE FOODSERVICE,06/07/2022,H59620220708XOPNQQQOD-2, 157.14 ,CATERING - SCHOOLS-FOOD & DRINK SUPPLIES,CATERERS,GPC
WALSALL COUNCIL,http://opendatacommunities.org/id/metropolitan-district-council/walsall ,30/09/2022,ECONOMY & ENVIRONMENT,POST OFFICE SELF SERVE,06/07/2022,H59620220708XPSUXIHYD-1, 6.70 ,NAG - CATALOGUES-POSTAGES & COURIER SERVICES,POSTAL SERVICES - GOVERNMENT ONLY,GPC
WALSALL COUNCIL,http://opendatacommunities.org/id/metropolitan-district-council/walsall ,30/09/2022,ECONOMY & ENVIRONMENT,AMZNMKTPLACE,06/07/2022,H59620220708XQBNWWOXF-1, 52.98 ,AREA PARTNERSHIPS-STATIONERY & GENERAL OFFICE SU,MISCELLANEOUS AND SPECIALTY RETAIL STORES,GPC
WALSALL COUNCIL,http://opendatacommunities.org/id/metropolitan-district-council/walsall ,30/09/2022,CHILDRENS SERVICES,ALDI 78 772,06/07/2022,H59620220708YHNDLQSGW-1, 6.79 ,HOUSING YEI/ESF MATCH-MATERIALS,GROCERY STORES AND SUPERMARKETS,GPC
WALSALL COUNCIL,http://opendatacommunities.org/id/metropolitan-district-council/walsall ,30/09/2022,CHILDRENS SERVICES,THE RANGE,06/07/2022,H59620220708YLELYDQNP-1, 11.56 ,FAMILY PLACEMENTS-PURCHASE OF FURNITURE & EQUIPM,MISCELLANEOUS HOUSE FURNISHING SPECIALTY SHOPS,GPC
WALSALL COUNCIL,http://opendatacommunities.org/id/metropolitan-district-council/walsall ,30/09/2022,CHILDRENS SERVICES,AMZNMKTPLACE,06/07/2022,H59620220708ZRNLMQUDP-1, 80.58 ,GENERAL SUPPLIES LH-MATERIALS,MISCELLANEOUS AND SPECIALTY RETAIL STORES,GPC
WALSALL COUNCIL,http://opendatacommunities.org/id/metropolitan-district-council/walsall ,30/09/2022,RESOURCES AND TRANSFORMATION,ARTHUR BRETT CATER,06/07/2022,H59620220709FEZRIDBSN-1,-51.25 ,CATERING - SCHOOLS-FOOD & DRINK SUPPLIES,MISCELLANEOUS FOOD STORES & CONVENIENCE STORES,GPC
WALSALL COUNCIL,http://opendatacommunities.org/id/metropolitan-district-council/walsall ,30/09/2022,CHILDRENS SERVICES,HPI INSTANT INK UK,07/07/2022,H59620220708OSSIYRDXP-1, 9.99 ,ADMINISTRATIVE SUPPLIES-STATIONERY & GENERAL OFFICE SU,ELECTRONIC SALES,GPC
WALSALL COUNCIL,http://opendatacommunities.org/id/metropolitan-district-council/walsall ,30/09/2022,ADULT SOCIAL CARE,ADOBE STOCK,07/07/2022,H59620220708QEUKTOPNR-1, 57.59 ,COMMUNICATIONS-FEES & LICENCES,COMPUTER SOFTWARE STORES,GPC
WALSALL COUNCIL,http://opendatacommunities.org/id/metropolitan-district-council/walsall ,30/09/2022,CHILDRENS SERVICES,WILKO RETAIL LIMITED,07/07/2022,H59620220709AGSYOECVN-1,-24.00 ,ROUGH SLEEPING INITIATIVE GRAN-CRISIS SUPPORT PAYMENTS,MISCELLANEOUS GENERAL MERCHANDISE,GPC
WALSALL COUNCIL,http://opendatacommunities.org/id/metropolitan-district-council/walsall ,30/09/2022,CHILDRENS SERVICES,SCHOOLGATEWA*BLUE COAT AC,07/07/2022,H59620220709AHUBEKJEM-1, 10.00 ,REDRUTH ROAD-FOOD & DRINK SUPPLIES,"COLLEGES, UNIVERSITIES, PROFESSIONAL SCHOOLS",GPC
WALSALL COUNCIL,http://opendatacommunities.org/id/metropolitan-district-council/walsall ,30/09/2022,CHILDRENS SERVICES,SAINSBURYS.CO.UK,07/07/2022,H59620220709AOXHRJHKE-1, 54.05 ,CONTINGENCY-MATERIALS,GROCERY STORES AND SUPERMARKETS,GPC
WALSALL COUNCIL,http://opendatacommunities.org/id/metropolitan-district-council/walsall ,30/09/2022,CHILDRENS SERVICES,B&M 022 - WEDNESBURY,07/07/2022,H59620220709AQOCXCORI-1, 104.00 ,PALFREY JUNIOR SCHOOL-MATERIALS,MISCELLANEOUS GENERAL MERCHANDISE,GPC
WALSALL COUNCIL,http://opendatacommunities.org/id/metropolitan-district-council/walsall ,30/09/2022,CHILDRENS SERVICES,LIDL GB WALSALL,07/07/2022,H59620220709BBBBNOTGE-1, 19.63 ,CARE LEAVER ENTITLEMENTS-FOOD & DRINK SUPPLIES,GROCERY STORES AND SUPERMARKETS,GPC
WALSALL COUNCIL,http://opendatacommunities.org/id/metropolitan-district-council/walsall ,30/09/2022,CHILDRENS SERVICES,WILKO RETAIL LIMITED,07/07/2022,H59620220709BFLMNENCC-1,-35.00 ,ROUGH SLEEPING INITIATIVE GRAN-CRISIS SUPPORT PAYMENTS,MISCELLANEOUS GENERAL MERCHANDISE,GPC
WALSALL COUNCIL,http://opendatacommunities.org/id/metropolitan-district-council/walsall ,30/09/2022,ECONOMY & ENVIRONMENT,AMZNMKTPLACE,07/07/2022,H59620220709BRNLDVMQK-1, 20.99 ,GROUNDS MAINTENANCE-CEMETERIES-CLOTHING & LAUNDRY,MISCELLANEOUS AND SPECIALTY RETAIL STORES,GPC
WALSALL COUNCIL,http://opendatacommunities.org/id/metropolitan-district-council/walsall ,30/09/2022,CHILDRENS SERVICES,FAIRLAWNS HOTEL AND SP,07/07/2022,H59620220709BYYXYLLRK-1, 360.00 ,CHUCKERY PRIMARY SCHOOL-STATIONERY & GENERAL OFFICE SU,"HOTELS, MOTELS, RESORTS",GPC
WALSALL COUNCIL,http://opendatacommunities.org/id/metropolitan-district-council/walsall ,30/09/2022,CHILDRENS SERVICES,ASDA SUPERSTORE,07/07/2022,H59620220709EODBJBGOW-1, 5.85 ,WALSALL WOOD PRIMARY SCHOOL-FOOD & DRINK SUPPLIES,GROCERY STORES AND SUPERMARKETS,GPC
WALSALL COUNCIL,http://opendatacommunities.org/id/metropolitan-district-council/walsall ,30/09/2022,CHILDRENS SERVICES,ASDA SUPERSTORE,07/07/2022,H59620220709EODBJBGOW-2, 3.00 ,WALSALL WOOD PRIMARY SCHOOL-FOOD & DRINK SUPPLIES,GROCERY STORES AND SUPERMARKETS,GPC
WALSALL COUNCIL,http://opendatacommunities.org/id/metropolitan-district-council/walsall ,30/09/2022,CHILDRENS SERVICES,AMZNMKTPLACE,07/07/2022,H59620220709EXSIRUWTF-1, 39.98 ,SOCIAL SPACES-MATERIALS,MISCELLANEOUS AND SPECIALTY RETAIL STORES,GPC
WALSALL COUNCIL,http://opendatacommunities.org/id/metropolitan-district-council/walsall ,30/09/2022,ECONOMY & ENVIRONMENT,AMZNMKTPLACE,07/07/2022,H59620220709FFKMEIEKN-1, 20.42 ,GROUNDS MAINTENANCE-CEMETERIES-MATERIALS,MISCELLANEOUS AND SPECIALTY RETAIL STORES,GPC
WALSALL COUNCIL,http://opendatacommunities.org/id/metropolitan-district-council/walsall ,30/09/2022,CHILDRENS SERVICES,AMAZON.CO.UK*2Y1A167B4,07/07/2022,H59620220709GMDEXSDUF-1, 20.00 ,TRANSITION AND LEAVING CARE SU-STATIONERY & GENERAL OFFICE SU,OTHER DIRECT MARKETING-OTHER DIRECT MARKETERS,GPC
WALSALL COUNCIL,http://opendatacommunities.org/id/metropolitan-district-council/walsall ,30/09/2022,ECONOMY & ENVIRONMENT,AMZNMKTPLACE,07/07/2022,H59620220709GVVKKJNEA-1, 17.97 ,GROUNDS MAINTENANCE-CEMETERIES-CLOTHING & LAUNDRY,MISCELLANEOUS AND SPECIALTY RETAIL STORES,GPC
WALSALL COUNCIL,http://opendatacommunities.org/id/metropolitan-district-council/walsall ,30/09/2022,ECONOMY & ENVIRONMENT,POST OFFICE SELF SERVE,07/07/2022,H59620220709HOPVTLQBK-1, 33.50 ,NAG - CATALOGUES-POSTAGES & COURIER SERVICES,POSTAL SERVICES - GOVERNMENT ONLY,GPC
WALSALL COUNCIL,http://opendatacommunities.org/id/metropolitan-district-council/walsall ,30/09/2022,CHILDRENS SERVICES,FINDEL EDUCATION,07/07/2022,H59620220709IPDOPIPJV-1, 845.57 ,ART & CRAFT DEPARTMENT-MATERIALS,OTHER DIRECT MARKETING-OTHER DIRECT MARKETERS,GPC
WALSALL COUNCIL,http://opendatacommunities.org/id/metropolitan-district-council/walsall ,30/09/2022,CHILDRENS SERVICES,AMZNMKTPLACE,07/07/2022,H59620220709KFVSOAIXB-1, 9.99 ,ADMINISTRATIVE SUPPLIES-MATERIALS,MISCELLANEOUS AND SPECIALTY RETAIL STORES,GPC
WALSALL COUNCIL,http://opendatacommunities.org/id/metropolitan-district-council/walsall ,30/09/2022,CHILDRENS SERVICES,GOOGLE *GOOGLE PLAY AP,07/07/2022,H59620220709KNKYGJYEO-1, 38.49 ,PRACTICE DEVELOPMENT-COMPUTER EQUIPMENT,COMPUTER SOFTWARE STORES,GPC
WALSALL COUNCIL,http://opendatacommunities.org/id/metropolitan-district-council/walsall ,30/09/2022,CHILDRENS SERVICES,AMAZON.CO.UK*2Y83U3K34,07/07/2022,H59620220709KRLVCPSDK-1, 6.96 ,"43A HILTON ROAD, WILLENHALL-STATIONERY & GENERAL OFFICE SU",OTHER DIRECT MARKETING-OTHER DIRECT MARKETERS,GPC
WALSALL COUNCIL,http://opendatacommunities.org/id/metropolitan-district-council/walsall ,30/09/2022,ECONOMY & ENVIRONMENT,DPD WL,07/07/2022,H59620220709LBWPULWRQ-1, 188.09 ,NAG - CATALOGUES-POSTAGES & COURIER SERVICES,COURIER SERVICES,GPC
WALSALL COUNCIL,http://opendatacommunities.org/id/metropolitan-district-council/walsall ,30/09/2022,CHILDRENS SERVICES,W M MORRISONS.COM,07/07/2022,H59620220709LDCYJMXAM-1, 14.64 ,"43A HILTON ROAD, WILLENHALL-FOOD & DRINK SUPPLIES",GROCERY STORES AND SUPERMARKETS,GPC
WALSALL COUNCIL,http://opendatacommunities.org/id/metropolitan-district-council/walsall ,30/09/2022,CHILDRENS SERVICES,W M MORRISONS.COM,07/07/2022,H59620220709LDCYJMXAM-2, 75.38 ,"43A HILTON ROAD, WILLENHALL-FOOD & DRINK SUPPLIES",GROCERY STORES AND SUPERMARKETS,GPC
WALSALL COUNCIL,http://opendatacommunities.org/id/metropolitan-district-council/walsall ,30/09/2022,CHILDRENS SERVICES,MY.MORRISONS.COM,07/07/2022,H59620220709LSSOSTRUI-1, 20.00 ,PALFREY JUNIOR SCHOOL-CATERING & REFRESHMENTS,GROCERY STORES AND SUPERMARKETS,GPC
WALSALL COUNCIL,http://opendatacommunities.org/id/metropolitan-district-council/walsall ,30/09/2022,CHILDRENS SERVICES,AMAZON.CO.UK*2Y0C79784,07/07/2022,H59620220709NZBHCYEFF-1, 3.29 ,BLUEBELLS-STATIONERY & GENERAL OFFICE SU,OTHER DIRECT MARKETING-OTHER DIRECT MARKETERS,GPC
WALSALL COUNCIL,http://opendatacommunities.org/id/metropolitan-district-council/walsall ,30/09/2022,CHILDRENS SERVICES,WILKO RETAIL LIMITED,07/07/2022,H59620220709OUBLGSTWQ-1, 77.50 ,ROUGH SLEEPING INITIATIVE GRAN-CRISIS SUPPORT PAYMENTS,MISCELLANEOUS GENERAL MERCHANDISE,GPC
WALSALL COUNCIL,http://opendatacommunities.org/id/metropolitan-district-council/walsall ,30/09/2022,ECONOMY & ENVIRONMENT,AMZNMKTPLACE,07/07/2022,H59620220709OUTGEYXMJ-1, 7.98 ,OAK PARK ACTIVE LIVING CENTRE-STATIONERY & GENERAL OFFICE SU,MISCELLANEOUS AND SPECIALTY RETAIL STORES,GPC
WALSALL COUNCIL,http://opendatacommunities.org/id/metropolitan-district-council/walsall ,30/09/2022,CHILDRENS SERVICES,AMAZON.CO.UK*2Y6J22KD4,07/07/2022,H59620220709PIVRGDOED-1, 26.72 ,ADMINISTRATIVE SUPPLIES-MATERIALS,OTHER DIRECT MARKETING-OTHER DIRECT MARKETERS,GPC
WALSALL COUNCIL,http://opendatacommunities.org/id/metropolitan-district-council/walsall ,30/09/2022,ECONOMY & ENVIRONMENT,CIVIL AVIATION AUTHORITY,07/07/2022,H59620220709POFWZKRTI-1, 10.00 ,FLEET-MATERIALS,GOVERNMENT SERVICES,GPC
WALSALL COUNCIL,http://opendatacommunities.org/id/metropolitan-district-council/walsall ,30/09/2022,CHILDRENS SERVICES,IKEA LTD 142 BIRMINGHAM M,07/07/2022,H59620220709QFTTGDZQT-1, 108.00 ,PALFREY JUNIOR SCHOOL-MATERIALS,"EQUIPMENT, FURNITURE, AND HOME FURNISHINGS STORES ",GPC
WALSALL COUNCIL,http://opendatacommunities.org/id/metropolitan-district-council/walsall ,30/09/2022,CHILDRENS SERVICES,SAINSBURYS SMKTS,07/07/2022,H59620220709QNTPONJTK-1, 182.50 ,PALFREY JUNIOR SCHOOL-CATERING & REFRESHMENTS,GROCERY STORES AND SUPERMARKETS,GPC
WALSALL COUNCIL,http://opendatacommunities.org/id/metropolitan-district-council/walsall ,30/09/2022,CHILDRENS SERVICES,WALSALL COUNCIL,07/07/2022,H59620220709RGYGVYZMV-1, 17.00 ,FAMILY SAFEGUARDING NORTH LOCA-FEES & LICENCES,GOVERNMENT SERVICES,GPC
WALSALL COUNCIL,http://opendatacommunities.org/id/metropolitan-district-council/walsall ,30/09/2022,RESOURCES AND TRANSFORMATION,WEL MEDICAL LIMITED,07/07/2022,H59620220709RSSQJMOQW-1, 44.94 ,CORE SKILLS-PROFESSIONAL FEES & SERVICES,"HEALTH PRACTITIONERS, MEDICAL SERVICES",GPC
WALSALL COUNCIL,http://opendatacommunities.org/id/metropolitan-district-council/walsall ,30/09/2022,CHILDRENS SERVICES,ASDA SUPERSTORE,07/07/2022,H59620220709RWVICYQVY-1, 10.00 ,CONTINGENCY-MATERIALS,GROCERY STORES AND SUPERMARKETS,GPC
WALSALL COUNCIL,http://opendatacommunities.org/id/metropolitan-district-council/walsall ,30/09/2022,CHILDRENS SERVICES,AMZNMKTPLACE,07/07/2022,H59620220709SAIIHATRX-1, 31.73 ,OLD HALL SCHOOL-OPERATIONAL MAINTENANCE,MISCELLANEOUS AND SPECIALTY RETAIL STORES,GPC
WALSALL COUNCIL,http://opendatacommunities.org/id/metropolitan-district-council/walsall ,30/09/2022,ECONOMY & ENVIRONMENT,AMAZON.CO.UK*2Y9Z02UB4,07/07/2022,H59620220709SINYVILGJ-1, 161.97 ,LIBRARY OPERATIONS CENTRAL-OTHER EXPENSES,OTHER DIRECT MARKETING-OTHER DIRECT MARKETERS,GPC
WALSALL COUNCIL,http://opendatacommunities.org/id/metropolitan-district-council/walsall ,30/09/2022,ECONOMY & ENVIRONMENT,JOHAL CONVENIENCE,07/07/2022,H59620220709TERCHSIVG-1, 36.50 ,WALSALL ARENA AND ARTS CENTRE-PURCHASE OF FURNITURE & EQUIPM,"PACKAGE STORES, BEER, WINE, LIQUOR",GPC
WALSALL COUNCIL,http://opendatacommunities.org/id/metropolitan-district-council/walsall ,30/09/2022,RESOURCES AND TRANSFORMATION,AMZNMKTPLACE,07/07/2022,H59620220709TLKSMTRMR-1, 16.98 ,HR ADMIN HUB-STATIONERY & GENERAL OFFICE SU,MISCELLANEOUS AND SPECIALTY RETAIL STORES,GPC
WALSALL COUNCIL,http://opendatacommunities.org/id/metropolitan-district-council/walsall ,30/09/2022,CHILDRENS SERVICES,BARCL-24STUDIO,07/07/2022,H59620220709TUEKFLXML-1, 183.99 ,CARE LEAVER ENTITLEMENTS-SETTING UP HOME GRANT,DIRECT MARKETING CATALOG MERCHANTS,GPC
WALSALL COUNCIL,http://opendatacommunities.org/id/metropolitan-district-council/walsall ,30/09/2022,RESOURCES AND TRANSFORMATION,ARTHUR BRETT CATER,07/07/2022,H59620220709UIBDOILGG-1, 22.37 ,CATERING - SCHOOLS-FOOD & DRINK SUPPLIES,MISCELLANEOUS FOOD STORES & CONVENIENCE STORES,GPC
WALSALL COUNCIL,http://opendatacommunities.org/id/metropolitan-district-council/walsall ,30/09/2022,CHILDRENS SERVICES,ARGOS LTD,07/07/2022,H59620220709USCSRGVPA-1, 117.95 ,OLD HALL SCHOOL-PURCHASE OF FURNITURE & EQUIPM,DISCOUNT STORES,GPC
WALSALL COUNCIL,http://opendatacommunities.org/id/metropolitan-district-council/walsall ,30/09/2022,CHILDRENS SERVICES,VIRTUAL COLLEGE LIMITE,07/07/2022,H59620220709USYOYYNLU-1, 33.60 ,BLUEBELLS-EXTERNAL TRAINING,OTHER SCHOOLS AND EDUCATIONAL SERVICES,GPC
WALSALL COUNCIL,http://opendatacommunities.org/id/metropolitan-district-council/walsall ,30/09/2022,RESOURCES AND TRANSFORMATION,NOBISCO LIMITED,07/07/2022,H59620220709UXGVKKPJU-1, 25.85 ,CATERING - SCHOOLS-FOOD & DRINK SUPPLIES,OTHER INDUSTRIAL SUPPLIES,GPC
WALSALL COUNCIL,http://opendatacommunities.org/id/metropolitan-district-council/walsall ,30/09/2022,ECONOMY & ENVIRONMENT,WILLIAM WHEAT AND SON G/,07/07/2022,H59620220709VAVGKUCTE-1, 123.75 ,PARKS AND COUNTRYSIDE-MATERIALS,"NURSERIES, LAWN AND GARDEN SUPPLY STORES",GPC
WALSALL COUNCIL,http://opendatacommunities.org/id/metropolitan-district-council/walsall ,30/09/2022,CHILDRENS SERVICES,TRAVELODGE GB0000,07/07/2022,H59620220709VXUYINNCK-1, 269.23 ,BED & BREAKFAST PAYMENTS-BED & BREAKFAST PAYMENTS,TRAVELODGE,GPC
WALSALL COUNCIL,http://opendatacommunities.org/id/metropolitan-district-council/walsall ,30/09/2022,CHILDRENS SERVICES,FAIRLAWNS HOTEL AND SP,07/07/2022,H59620220709VXXTWRNNG-1, 360.00 ,CHUCKERY PRIMARY SCHOOL-STATIONERY & GENERAL OFFICE SU,"HOTELS, MOTELS, RESORTS",GPC
WALSALL COUNCIL,http://opendatacommunities.org/id/metropolitan-district-council/walsall ,30/09/2022,CHILDRENS SERVICES,AMAZON.CO.UK*2Y9QI0K64,07/07/2022,H59620220709WCCDTKSDR-1, 40.08 ,ADMINISTRATIVE SUPPLIES-MATERIALS,OTHER DIRECT MARKETING-OTHER DIRECT MARKETERS,GPC
WALSALL COUNCIL,http://opendatacommunities.org/id/metropolitan-district-council/walsall ,30/09/2022,CHILDRENS SERVICES,WILKO RETAIL LIMITED,07/07/2022,H59620220709WJOBGJMMN-1, 81.00 ,ROUGH SLEEPING INITIATIVE GRAN-CRISIS SUPPORT PAYMENTS,MISCELLANEOUS GENERAL MERCHANDISE,GPC
WALSALL COUNCIL,http://opendatacommunities.org/id/metropolitan-district-council/walsall ,30/09/2022,CHILDRENS SERVICES,AMZNMKTPLACE,07/07/2022,H59620220709WMKQJVWLT-1, 47.37 ,OLD HALL SCHOOL-MATERIALS,MISCELLANEOUS AND SPECIALTY RETAIL STORES,GPC
WALSALL COUNCIL,http://opendatacommunities.org/id/metropolitan-district-council/walsall ,30/09/2022,CHILDRENS SERVICES,IRISPAY,07/07/2022,H59620220709WRWTPWHRA-1, 15.00 ,REDRUTH ROAD-FOOD & DRINK SUPPLIES,OTHER SCHOOLS AND EDUCATIONAL SERVICES,GPC
WALSALL COUNCIL,http://opendatacommunities.org/id/metropolitan-district-council/walsall ,30/09/2022,CHILDRENS SERVICES,AMZNMKTPLACE,07/07/2022,H59620220709WYPTLMGUY-1, 57.65 ,ADMINISTRATIVE SUPPLIES-MATERIALS,MISCELLANEOUS AND SPECIALTY RETAIL STORES,GPC
WALSALL COUNCIL,http://opendatacommunities.org/id/metropolitan-district-council/walsall ,30/09/2022,ECONOMY & ENVIRONMENT,TAHDAH VERIFIED,07/07/2022,H59620220709XETVWZGVS-1, 102.50 ,BLOXWICH ACTIVE LIVING CENTRE-EXTERNAL TRAINING,COMPUTER SOFTWARE STORES,GPC
WALSALL COUNCIL,http://opendatacommunities.org/id/metropolitan-district-council/walsall ,30/09/2022,CHILDRENS SERVICES,EE TOPUP VESTA,07/07/2022,H59620220709XTIQYRDHE-1, 20.00 ,ADMINISTRATIVE SUPPLIES-MOBILE PHONES,TELECOMMUNICATION SERVICES,GPC
WALSALL COUNCIL,http://opendatacommunities.org/id/metropolitan-district-council/walsall ,30/09/2022,ECONOMY & ENVIRONMENT,POST OFFICE COUNTER,07/07/2022,H59620220709XUHVRBTMB-1, 4.45 ,LEATHER MUSEUM-POSTAGES & COURIER SERVICES,POSTAL SERVICES - GOVERNMENT ONLY,GPC
WALSALL COUNCIL,http://opendatacommunities.org/id/metropolitan-district-council/walsall ,30/09/2022,RESOURCES AND TRANSFORMATION,ASDA SUPERSTORE,07/07/2022,H59620220709XWNRXYINR-1, 7.50 ,CATERING - SCHOOLS-FOOD & DRINK SUPPLIES,GROCERY STORES AND SUPERMARKETS,GPC
WALSALL COUNCIL,http://opendatacommunities.org/id/metropolitan-district-council/walsall ,30/09/2022,CHILDRENS SERVICES,O2 UK PAY & GO,07/07/2022,H59620220709XZWPWMVPS-1, 10.00 ,ADMINISTRATIVE SUPPLIES-LANDLINE PHONES,TELECOMMUNICATION SERVICES,GPC
WALSALL COUNCIL,http://opendatacommunities.org/id/metropolitan-district-council/walsall ,30/09/2022,CHILDRENS SERVICES,SAINSBURYS.CO.UK,07/07/2022,H59620220709YSKUFKHAP-1,-28.80 ,CONTINGENCY-FOOD & DRINK SUPPLIES,GROCERY STORES AND SUPERMARKETS,GPC
WALSALL COUNCIL,http://opendatacommunities.org/id/metropolitan-district-council/walsall ,30/09/2022,CHILDRENS SERVICES,HPI INSTANT INK UK,08/07/2022,H59620220709XMWJLBIPI-1, 9.99 ,ADMINISTRATIVE SUPPLIES-STATIONERY & GENERAL OFFICE SU,ELECTRONIC SALES,GPC
WALSALL COUNCIL,http://opendatacommunities.org/id/metropolitan-district-council/walsall ,30/09/2022,CHILDRENS SERVICES,ALDI 14 772,08/07/2022,H59620220712BFDUKFCDC-1, 42.53 ,PARENTING TEAM-FOOD & DRINK SUPPLIES,GROCERY STORES AND SUPERMARKETS,GPC
WALSALL COUNCIL,http://opendatacommunities.org/id/metropolitan-district-council/walsall ,30/09/2022,CHILDRENS SERVICES,ALDI 14 772,08/07/2022,H59620220712BFDUKFCDC-2, 5.12 ,PARENTING TEAM-FOOD & DRINK SUPPLIES,GROCERY STORES AND SUPERMARKETS,GPC
WALSALL COUNCIL,http://opendatacommunities.org/id/metropolitan-district-council/walsall ,30/09/2022,CHILDRENS SERVICES,PAYPAL *SCREWFIX,08/07/2022,H59620220712BGVCWOFSY-1, 39.98 ,ELMWOOD SCHOOL-OPERATIONAL MAINTENANCE,OTHER DURABLE GOODS,GPC
WALSALL COUNCIL,http://opendatacommunities.org/id/metropolitan-district-council/walsall ,30/09/2022,CHILDRENS SERVICES,BRITISH HEART FOUNDATION,08/07/2022,H59620220712CPRYXSZYG-1, 125.00 ,ROUGH SLEEPING INITIATIVE GRAN-CRISIS SUPPORT PAYMENTS,"ORGANIZATIONS, CHARITABLE AND SOCIAL SERVICE",GPC
WALSALL COUNCIL,http://opendatacommunities.org/id/metropolitan-district-council/walsall ,30/09/2022,CHILDRENS SERVICES,BRITISH HEART FOUNDATION,08/07/2022,H59620220712CPRYXSZYG-2, 20.00 ,ROUGH SLEEPING INITIATIVE GRAN-CRISIS SUPPORT PAYMENTS,"ORGANIZATIONS, CHARITABLE AND SOCIAL SERVICE",GPC
WALSALL COUNCIL,http://opendatacommunities.org/id/metropolitan-district-council/walsall ,30/09/2022,CHILDRENS SERVICES,IKEA LTD SHOP ONLINE,08/07/2022,H59620220712DXAPKLVCO-1, 22.00 ,CHUCKERY PRIMARY SCHOOL-MATERIALS,"EQUIPMENT, FURNITURE, AND HOME FURNISHINGS STORES ",GPC
WALSALL COUNCIL,http://opendatacommunities.org/id/metropolitan-district-council/walsall ,30/09/2022,ECONOMY & ENVIRONMENT,A K HARDWARE & PLUMBING C,08/07/2022,H59620220712EYEAPHKGG-1, 9.60 ,LEATHER MUSEUM-MATERIALS,HARDWARE STORES,GPC
WALSALL COUNCIL,http://opendatacommunities.org/id/metropolitan-district-council/walsall ,30/09/2022,RESOURCES AND TRANSFORMATION,ARTHUR BRETT CATER,08/07/2022,H59620220712FJFRKVBIN-1, 18.74 ,CATERING - SCHOOLS-FOOD & DRINK SUPPLIES,MISCELLANEOUS FOOD STORES & CONVENIENCE STORES,GPC
WALSALL COUNCIL,http://opendatacommunities.org/id/metropolitan-district-council/walsall ,30/09/2022,CHILDRENS SERVICES,ASDA GROCERIES ONLINE,08/07/2022,H59620220712GBWDINBTY-1, 13.50 ,BREAKFAST CLUB-FOOD & DRINK SUPPLIES,GROCERY STORES AND SUPERMARKETS,GPC
WALSALL COUNCIL,http://opendatacommunities.org/id/metropolitan-district-council/walsall ,30/09/2022,CHILDRENS SERVICES,ASDA GROCERIES ONLINE,08/07/2022,H59620220712GBWDINBTY-2, 29.57 ,BREAKFAST CLUB-FOOD & DRINK SUPPLIES,GROCERY STORES AND SUPERMARKETS,GPC
WALSALL COUNCIL,http://opendatacommunities.org/id/metropolitan-district-council/walsall ,30/09/2022,CHILDRENS SERVICES,AMHERST ENTERPRISES LT,08/07/2022,H59620220712GGZUXIFGC-1, 202.80 ,ELMWOOD SCHOOL-PURCHASE OF FURNITURE & EQUIPM,"CONSULTING, MANAGEMENT, AND PR SERVICES",GPC
WALSALL COUNCIL,http://opendatacommunities.org/id/metropolitan-district-council/walsall ,30/09/2022,ECONOMY & ENVIRONMENT,HARGUN SWEET CENTRE LT,08/07/2022,H59620220712HKIYWGHPU-1, 25.20 ,EXHIBITION NO.3-CATERING & REFRESHMENTS,MISCELLANEOUS AND SPECIALTY RETAIL STORES,GPC
WALSALL COUNCIL,http://opendatacommunities.org/id/metropolitan-district-council/walsall ,30/09/2022,RESOURCES AND TRANSFORMATION,NOBISCO LIMITED,08/07/2022,H59620220712IEXEQOVMY-1, 281.64 ,CATERING - SCHOOLS-FOOD & DRINK SUPPLIES,OTHER INDUSTRIAL SUPPLIES,GPC
WALSALL COUNCIL,http://opendatacommunities.org/id/metropolitan-district-council/walsall ,30/09/2022,ECONOMY & ENVIRONMENT,MILLENNIUM BEARINGS,08/07/2022,H59620220712IGUFVBSIY-1, 180.00 ,FLEET-MATERIALS,OTHER DURABLE GOODS,GPC
WALSALL COUNCIL,http://opendatacommunities.org/id/metropolitan-district-council/walsall ,30/09/2022,RESOURCES AND TRANSFORMATION,WWW.SCC.COM,08/07/2022,H59620220712JYUFVRCSB-1," 1,282.72 ",RECHARGEABLE EQUIPMENT-COMPUTER EQUIPMENT,"COMPUTERS, COMPUTER PERIPHERAL EQUIPMENT, SOFTWARE",GPC
WALSALL COUNCIL,http://opendatacommunities.org/id/metropolitan-district-council/walsall ,30/09/2022,CHILDRENS SERVICES,HOTEL AT BOOKING.COM,08/07/2022,H59620220712KASNACCYR-1, 324.00 ,BED & BREAKFAST PAYMENTS-BED & BREAKFAST PAYMENTS,"HOTELS, MOTELS, RESORTS",GPC
WALSALL COUNCIL,http://opendatacommunities.org/id/metropolitan-district-council/walsall ,30/09/2022,CHILDRENS SERVICES,HOTEL AT BOOKING.COM,08/07/2022,H59620220712KASNACCYR-2, 81.00 ,BED & BREAKFAST PAYMENTS-BED & BREAKFAST PAYMENTS,"HOTELS, MOTELS, RESORTS",GPC
WALSALL COUNCIL,http://opendatacommunities.org/id/metropolitan-district-council/walsall ,30/09/2022,CHILDRENS SERVICES,FBX*S4K FRANCHISING,08/07/2022,H59620220712KFYFRNILL-1, 413.00 ,LOOKED AFTER CHILDRENS SOCIAL -CRECHE FACILITIES,CHILD CARE SERVICES ,GPC
WALSALL COUNCIL,http://opendatacommunities.org/id/metropolitan-district-council/walsall ,30/09/2022,CHILDRENS SERVICES,AMZNMKTPLACE,08/07/2022,H59620220712LODKDYEKO-1, 20.40 ,LEARNING ENVIRONMENT-MATERIALS,MISCELLANEOUS AND SPECIALTY RETAIL STORES,GPC
WALSALL COUNCIL,http://opendatacommunities.org/id/metropolitan-district-council/walsall ,30/09/2022,ECONOMY & ENVIRONMENT,T R MUSIC,08/07/2022,H59620220712MKSUKCFCV-1, 299.00 ,COMMUNITY LIAISON-EVENTS & VISUAL ARTS,MUSIC STORES & MUSICAL INSTRUMENTS,GPC
WALSALL COUNCIL,http://opendatacommunities.org/id/metropolitan-district-council/walsall ,30/09/2022,RESOURCES AND TRANSFORMATION,WWW.SCC.COM,08/07/2022,H59620220712MYRUWCVEY-1," 2,164.75 ",RECHARGEABLE EQUIPMENT-COMPUTER EQUIPMENT,"COMPUTERS, COMPUTER PERIPHERAL EQUIPMENT, SOFTWARE",GPC
WALSALL COUNCIL,http://opendatacommunities.org/id/metropolitan-district-council/walsall ,30/09/2022,CHILDRENS SERVICES,BEVERLEY HOTEL LTD - T,08/07/2022,H59620220712NKXLGCLLN-1, 380.00 ,BED & BREAKFAST PAYMENTS-BED & BREAKFAST PAYMENTS,"HOTELS, MOTELS, RESORTS",GPC
WALSALL COUNCIL,http://opendatacommunities.org/id/metropolitan-district-council/walsall ,30/09/2022,CHILDRENS SERVICES,AMAZON.CO.UK*2Y4WC6I44,08/07/2022,H59620220712NTLRQDLHI-1, 25.80 ,REDRUTH ROAD-STATIONERY & GENERAL OFFICE SU,OTHER DIRECT MARKETING-OTHER DIRECT MARKETERS,GPC
WALSALL COUNCIL,http://opendatacommunities.org/id/metropolitan-district-council/walsall ,30/09/2022,CHILDRENS SERVICES,WWW.BANNERUK.COM,08/07/2022,H59620220712OTBMWFIQC-1, 35.43 ,"43A HILTON ROAD, WILLENHALL-STATIONERY & GENERAL OFFICE SU","STATIONERY, OFFICE SUPPLIES AND WRITING PAPER",GPC
WALSALL COUNCIL,http://opendatacommunities.org/id/metropolitan-district-council/walsall ,30/09/2022,CHILDRENS SERVICES,AMZNMKTPLACE,08/07/2022,H59620220712OXGJLLCMB-1, 3.95 ,ADMINISTRATIVE SUPPLIES-MATERIALS,MISCELLANEOUS AND SPECIALTY RETAIL STORES,GPC
WALSALL COUNCIL,http://opendatacommunities.org/id/metropolitan-district-council/walsall ,30/09/2022,CHILDRENS SERVICES,ASDA GROCERIES ONLINE,08/07/2022,H59620220712QQKXQRNFB-1,-1.50 ,BREAKFAST CLUB-FOOD & DRINK SUPPLIES,GROCERY STORES AND SUPERMARKETS,GPC
WALSALL COUNCIL,http://opendatacommunities.org/id/metropolitan-district-council/walsall ,30/09/2022,RESOURCES AND TRANSFORMATION,AMZNMKTPLACE,08/07/2022,H59620220712RBYRRRJKK-1, 20.98 ,RECHARGEABLE EQUIPMENT-COMPUTER EQUIPMENT,MISCELLANEOUS AND SPECIALTY RETAIL STORES,GPC
WALSALL COUNCIL,http://opendatacommunities.org/id/metropolitan-district-council/walsall ,30/09/2022,CHILDRENS SERVICES,KFC WALSALL,08/07/2022,H59620220712RORSCOVDF-1, 10.86 ,EDGE OF CARE TEAM-FOOD & DRINK SUPPLIES,QUICK PAYMENT SERVICE-FAST-FOOD RESTAURANTS,GPC
WALSALL COUNCIL,http://opendatacommunities.org/id/metropolitan-district-council/walsall ,30/09/2022,CHILDRENS SERVICES,HILTON BIRMINGHAM METR,08/07/2022,H59620220712RPPASWIRJ-1, 9.00 ,CADMUS FEDERATION-OPERATIONAL MAINTENANCE,"HOTELS, MOTELS, RESORTS",GPC
WALSALL COUNCIL,http://opendatacommunities.org/id/metropolitan-district-council/walsall ,30/09/2022,CHILDRENS SERVICES,BEVERLEY HOTEL LTD - T,08/07/2022,H59620220712RXZXVHYSQ-1, 389.00 ,BED & BREAKFAST PAYMENTS-BED & BREAKFAST PAYMENTS,"HOTELS, MOTELS, RESORTS",GPC
WALSALL COUNCIL,http://opendatacommunities.org/id/metropolitan-district-council/walsall ,30/09/2022,CHILDRENS SERVICES,AMZNMKTPLACE,08/07/2022,H59620220712STNEOIMXE-1, 24.99 ,LEARNING ENVIRONMENT-MATERIALS,MISCELLANEOUS AND SPECIALTY RETAIL STORES,GPC
WALSALL COUNCIL,http://opendatacommunities.org/id/metropolitan-district-council/walsall ,30/09/2022,CHILDRENS SERVICES,WWW.UTILITA.CO.UK,08/07/2022,H59620220712SVIJUMYIS-1, 50.00 ,WALSALL CRISIS SUPPORT SCHEME-OTHER ENERGY COSTS,"UTILITIES - ELECTRIC, GAS, SANITARY & WATER",GPC
WALSALL COUNCIL,http://opendatacommunities.org/id/metropolitan-district-council/walsall ,30/09/2022,RESOURCES AND TRANSFORMATION,ARTHUR BRETT CATER,08/07/2022,H59620220712TFITKZGAL-1, 24.14 ,CATERING - SCHOOLS-FOOD & DRINK SUPPLIES,MISCELLANEOUS FOOD STORES & CONVENIENCE STORES,GPC
WALSALL COUNCIL,http://opendatacommunities.org/id/metropolitan-district-council/walsall ,30/09/2022,CHILDRENS SERVICES,W M MORRISONS.COM,08/07/2022,H59620220712TLWDMIOSN-1, 32.82 ,BLUEBELLS-FOOD & DRINK SUPPLIES,GROCERY STORES AND SUPERMARKETS,GPC
WALSALL COUNCIL,http://opendatacommunities.org/id/metropolitan-district-council/walsall ,30/09/2022,CHILDRENS SERVICES,W M MORRISONS.COM,08/07/2022,H59620220712TLWDMIOSN-2, 88.06 ,BLUEBELLS-FOOD & DRINK SUPPLIES,GROCERY STORES AND SUPERMARKETS,GPC
WALSALL COUNCIL,http://opendatacommunities.org/id/metropolitan-district-council/walsall ,30/09/2022,ECONOMY & ENVIRONMENT,WILKO RETAIL LIMITED,08/07/2022,H59620220712TPZCNXWMM-1, 6.50 ,LEATHER MUSEUM-MATERIALS,MISCELLANEOUS GENERAL MERCHANDISE,GPC
WALSALL COUNCIL,http://opendatacommunities.org/id/metropolitan-district-council/walsall ,30/09/2022,RESOURCES AND TRANSFORMATION,ARTHUR BRETT CATER,08/07/2022,H59620220712VFPVQUYUX-1, 175.97 ,CATERING - SCHOOLS-FOOD & DRINK SUPPLIES,MISCELLANEOUS FOOD STORES & CONVENIENCE STORES,GPC
WALSALL COUNCIL,http://opendatacommunities.org/id/metropolitan-district-council/walsall ,30/09/2022,ECONOMY & ENVIRONMENT,MUSEUMS ASCTN,08/07/2022,H59620220712VQPTPRKWO-1, 40.00 ,NEW ART GALLERY - ADMIN-OTHER EXPENSES,ART DEALERS AND GALLERIES,GPC
WALSALL COUNCIL,http://opendatacommunities.org/id/metropolitan-district-council/walsall ,30/09/2022,ECONOMY & ENVIRONMENT,AMZNMKTPLACE,08/07/2022,H59620220712WQVXSUYYJ-1, 17.22 ,LIBRARY OPERATIONS CENTRAL-HEALTH & SAFETY PERSONAL PROTE,MISCELLANEOUS AND SPECIALTY RETAIL STORES,GPC
WALSALL COUNCIL,http://opendatacommunities.org/id/metropolitan-district-council/walsall ,30/09/2022,RESOURCES AND TRANSFORMATION,WWW.BANNERUK.COM,08/07/2022,H59620220712WWOQDDCBC-1, 64.27 ,HR ADMIN HUB-STATIONERY & GENERAL OFFICE SU,"STATIONERY, OFFICE SUPPLIES AND WRITING PAPER",GPC
WALSALL COUNCIL,http://opendatacommunities.org/id/metropolitan-district-council/walsall ,30/09/2022,RESOURCES AND TRANSFORMATION,WWW.BANNERUK.COM,08/07/2022,H59620220712XERHHLUOS-1, 90.36 ,HR ADMIN HUB-STATIONERY & GENERAL OFFICE SU,"STATIONERY, OFFICE SUPPLIES AND WRITING PAPER",GPC
WALSALL COUNCIL,http://opendatacommunities.org/id/metropolitan-district-council/walsall ,30/09/2022,CHILDRENS SERVICES,FOXHILL FISHERY,08/07/2022,H59620220712YFOIFVEFS-1, 18.00 ,ENRICHMENT-MATERIALS,OTHER RECREATION SERVICES,GPC
WALSALL COUNCIL,http://opendatacommunities.org/id/metropolitan-district-council/walsall ,30/09/2022,CHILDRENS SERVICES,MCDONALDS,08/07/2022,H59620220712YVNFKQEAB-1, 3.28 ,HOMELESSNESS PREVENTION STRATE-OFFICERS SUBSISTENCE EXPENSES,QUICK PAYMENT SERVICE-FAST-FOOD RESTAURANTS,GPC
WALSALL COUNCIL,http://opendatacommunities.org/id/metropolitan-district-council/walsall ,30/09/2022,CHILDRENS SERVICES,WWW.TEAMTEACH.CO.UK,08/07/2022,H59620220712ZBLSSEXCI-1, 289.98 ,OAKWOOD SCHOOL-EXTERNAL TRAINING,OTHER SCHOOLS AND EDUCATIONAL SERVICES,GPC
WALSALL COUNCIL,http://opendatacommunities.org/id/metropolitan-district-council/walsall ,30/09/2022,CHILDRENS SERVICES,AMZNMKTPLACE,08/07/2022,H59620220712ZNRGMTIDV-1, 11.00 ,CHUCKERY PRIMARY SCHOOL-OPERATIONAL MAINTENANCE,MISCELLANEOUS AND SPECIALTY RETAIL STORES,GPC
WALSALL COUNCIL,http://opendatacommunities.org/id/metropolitan-district-council/walsall ,30/09/2022,CHILDRENS SERVICES,AMZNMKTPLACE,09/07/2022,H59620220712BRTOGXUHH-1, 31.96 ,OLD HALL SCHOOL-MATERIALS,MISCELLANEOUS AND SPECIALTY RETAIL STORES,GPC
WALSALL COUNCIL,http://opendatacommunities.org/id/metropolitan-district-council/walsall ,30/09/2022,CHILDRENS SERVICES,POST OFFICE COUNTER,09/07/2022,H59620220712DCPYNHTZF-1, 2.85 ,LOOKED AFTER CHILDRENS SOCIAL -POSTAGES & COURIER SERVICES,POSTAL SERVICES - GOVERNMENT ONLY,GPC
WALSALL COUNCIL,http://opendatacommunities.org/id/metropolitan-district-council/walsall ,30/09/2022,CHILDRENS SERVICES,SMYTHSTOYS.COM,09/07/2022,H59620220712EWGDQFKXW-1, 105.00 ,AWARDS/ ATTEND / PRIZES-MATERIALS,"GAME, TOY, AND HOBBY SHOPS",GPC
WALSALL COUNCIL,http://opendatacommunities.org/id/metropolitan-district-council/walsall ,30/09/2022,CHILDRENS SERVICES,CURRYS ONLINE,09/07/2022,H59620220712IFHIQJYDF-1, 189.00 ,OAKWOOD SCHOOL-OPERATIONAL MAINTENANCE,ELECTRONIC SALES,GPC
WALSALL COUNCIL,http://opendatacommunities.org/id/metropolitan-district-council/walsall ,30/09/2022,ECONOMY & ENVIRONMENT,8PM CHEMISTS LIMITED,09/07/2022,H59620220712IYYNJMLKW-1, 6.87 ,COMMUNITY LIAISON-MATERIALS,"DRUG STORES, PHARMACIES",GPC
WALSALL COUNCIL,http://opendatacommunities.org/id/metropolitan-district-council/walsall ,30/09/2022,CHILDRENS SERVICES,POST OFFICE COUNTER,09/07/2022,H59620220712NIJSDPXOQ-1, 2.35 ,LOOKED AFTER CHILDRENS SOCIAL -POSTAGES & COURIER SERVICES,POSTAL SERVICES - GOVERNMENT ONLY,GPC
WALSALL COUNCIL,http://opendatacommunities.org/id/metropolitan-district-council/walsall ,30/09/2022,CHILDRENS SERVICES,AMAZON.CO.UK*4W5U36KJ5,09/07/2022,H59620220712QOAJFZQOF-1, 2.58 ,REDRUTH ROAD-STATIONERY & GENERAL OFFICE SU,OTHER DIRECT MARKETING-OTHER DIRECT MARKETERS,GPC
WALSALL COUNCIL,http://opendatacommunities.org/id/metropolitan-district-council/walsall ,30/09/2022,CHILDRENS SERVICES,AMZ*AMAZON.CO.UK,09/07/2022,H59620220712YIOJKAYVF-1,-47.40 ,LITERACY-MATERIALS,OTHER DIRECT MARKETING-OTHER DIRECT MARKETERS,GPC
WALSALL COUNCIL,http://opendatacommunities.org/id/metropolitan-district-council/walsall ,30/09/2022,CHILDRENS SERVICES,POST OFFICE COUNTER,09/07/2022,H59620220712YUIJUYTCL-1, 2.35 ,LOOKED AFTER CHILDRENS SOCIAL -POSTAGES & COURIER SERVICES,POSTAL SERVICES - GOVERNMENT ONLY,GPC
WALSALL COUNCIL,http://opendatacommunities.org/id/metropolitan-district-council/walsall ,30/09/2022,CHILDRENS SERVICES,CURRYS ONLINE,09/07/2022,H59620221028LCJYLWQUP-1,-189.00 ,OAKWOOD SCHOOL-OPERATIONAL MAINTENANCE,,GPC
WALSALL COUNCIL,http://opendatacommunities.org/id/metropolitan-district-council/walsall ,30/09/2022,CHILDRENS SERVICES,AMAZON.CO.UK*L94CX0CJ5,10/07/2022,H59620220712AEBHMBWTH-1, 20.52 ,CURRICULUM STOCK-MATERIALS,OTHER DIRECT MARKETING-OTHER DIRECT MARKETERS,GPC
WALSALL COUNCIL,http://opendatacommunities.org/id/metropolitan-district-council/walsall ,30/09/2022,RESOURCES AND TRANSFORMATION,AMZNMKTPLACE,10/07/2022,H59620220712CLFBLDROC-1, 39.98 ,RECHARGEABLE EQUIPMENT-COMPUTER EQUIPMENT,MISCELLANEOUS AND SPECIALTY RETAIL STORES,GPC
WALSALL COUNCIL,http://opendatacommunities.org/id/metropolitan-district-council/walsall ,30/09/2022,CHILDRENS SERVICES,AMZNMKTPLACE,10/07/2022,H59620220712DCNBPTLCO-1, 18.58 ,CURRICULUM STOCK-MATERIALS,MISCELLANEOUS AND SPECIALTY RETAIL STORES,GPC
WALSALL COUNCIL,http://opendatacommunities.org/id/metropolitan-district-council/walsall ,30/09/2022,CHILDRENS SERVICES,AMAZON.CO.UK*ZQ07Q3M05,10/07/2022,H59620220712GGWSPXTAQ-1, 7.04 ,ELMWOOD SCHOOL-OPERATIONAL MAINTENANCE,OTHER DIRECT MARKETING-OTHER DIRECT MARKETERS,GPC
WALSALL COUNCIL,http://opendatacommunities.org/id/metropolitan-district-council/walsall ,30/09/2022,CHILDRENS SERVICES,WWW.JOHNLEWIS.COM,10/07/2022,H59620220712IWSVDIREF-1, 156.90 ,OAKWOOD SCHOOL-OPERATIONAL MAINTENANCE,DEPARTMENT STORES,GPC
WALSALL COUNCIL,http://opendatacommunities.org/id/metropolitan-district-council/walsall ,30/09/2022,CHILDRENS SERVICES,AMZ*AMAZON BUSINESS UK,10/07/2022,H59620220712KZCOLYDJR-1,-57.65 ,ADMINISTRATIVE SUPPLIES-MATERIALS,MISCELLANEOUS AND SPECIALTY RETAIL STORES,GPC
WALSALL COUNCIL,http://opendatacommunities.org/id/metropolitan-district-council/walsall ,30/09/2022,RESOURCES AND TRANSFORMATION,LINKEDIN 7161346326,10/07/2022,H59620220712NTBHLVUAY-1, 539.06 ,SCHOOLS HR TRANSACTIONAL TEAM-ADVERTISING STAFF VACANCIES,DIRECT MARKETING CONTINUITY SUBSCRIPTION MERCHANTS,GPC
WALSALL COUNCIL,http://opendatacommunities.org/id/metropolitan-district-council/walsall ,30/09/2022,RESOURCES AND TRANSFORMATION,AMZNMKTPLACE,10/07/2022,H59620220712PDCYRUZOX-1, 10.79 ,CENTRAL OFFICE ACCOMMODATION-OPERATIONAL MAINTENANCE,MISCELLANEOUS AND SPECIALTY RETAIL STORES,GPC
WALSALL COUNCIL,http://opendatacommunities.org/id/metropolitan-district-council/walsall ,30/09/2022,CHILDRENS SERVICES,AMZNMKTPLACE,10/07/2022,H59620220712VRUODPUZC-1, 3.80 ,OLD HALL SCHOOL-MATERIALS,MISCELLANEOUS AND SPECIALTY RETAIL STORES,GPC
WALSALL COUNCIL,http://opendatacommunities.org/id/metropolitan-district-council/walsall ,30/09/2022,CHILDRENS SERVICES,AMZNMKTPLACE,10/07/2022,H59620220712XNJUDEHBU-1, 13.98 ,OLD HALL SCHOOL-MATERIALS,MISCELLANEOUS AND SPECIALTY RETAIL STORES,GPC
WALSALL COUNCIL,http://opendatacommunities.org/id/metropolitan-district-council/walsall ,30/09/2022,ECONOMY & ENVIRONMENT,SP ESKIMO JOES UK,10/07/2022,H59620220712YJMSDWXDD-1, 168.13 ,OAK PARK ACTIVE LIVING CENTRE-COMPUTER EQUIPMENT,COMPUTER SOFTWARE STORES,GPC
WALSALL COUNCIL,http://opendatacommunities.org/id/metropolitan-district-council/walsall ,30/09/2022,CHILDRENS SERVICES,WWW.JOHNLEWIS.COM,10/07/2022,H59620221028SWPMFFHAG-1,-156.90 ,OAKWOOD SCHOOL-OPERATIONAL MAINTENANCE,,GPC
WALSALL COUNCIL,http://opendatacommunities.org/id/metropolitan-district-council/walsall ,30/09/2022,CHILDRENS SERVICES,DYSON LIMITED,11/07/2022,H59620220712ZYHBODCGY-1, 349.99 ,MEADOW VIEW JMI PRIMARY SCHOOL-OPERATIONAL MAINTENANCE,ELECTRONIC SALES,GPC
WALSALL COUNCIL,http://opendatacommunities.org/id/metropolitan-district-council/walsall ,30/09/2022,CHILDRENS SERVICES,THE SUNBEAM,11/07/2022,H59620220713AGMQPIIOF-1, 2.65 ,CARE LEAVER ENTITLEMENTS-CARE LEAVERS MISC EXPENSES,"BARS, COCKTAIL LOUNGES, DISCOTHEQUES, NIGHTCLUBS",GPC
WALSALL COUNCIL,http://opendatacommunities.org/id/metropolitan-district-council/walsall ,30/09/2022,RESOURCES AND TRANSFORMATION,BLAKEMORE FOODSERVICE,11/07/2022,H59620220713AJKICZBVM-1, 162.96 ,CATERING - SCHOOLS-FOOD & DRINK SUPPLIES,CATERERS,GPC
WALSALL COUNCIL,http://opendatacommunities.org/id/metropolitan-district-council/walsall ,30/09/2022,RESOURCES AND TRANSFORMATION,CHICKEN JOES LTD,11/07/2022,H59620220713BFTTTHCWV-1, 371.66 ,CATERING - SCHOOLS-FOOD & DRINK SUPPLIES,CATERERS,GPC
WALSALL COUNCIL,http://opendatacommunities.org/id/metropolitan-district-council/walsall ,30/09/2022,ECONOMY & ENVIRONMENT,DVLA VEHICLE TAX,11/07/2022,H59620220713BMDSDVIWY-1, 292.50 ,FLEET-LICENCES FOR VEHICLES,TAX PAYMENTS,GPC
WALSALL COUNCIL,http://opendatacommunities.org/id/metropolitan-district-council/walsall ,30/09/2022,RESOURCES AND TRANSFORMATION,JOHAL DAIRIES LTD,11/07/2022,H59620220713BOUQXPDNX-1, 17.85 ,CATERING - SCHOOLS-FOOD & DRINK SUPPLIES,OTHER NONDURABLE GOODS,GPC
WALSALL COUNCIL,http://opendatacommunities.org/id/metropolitan-district-council/walsall ,30/09/2022,RESOURCES AND TRANSFORMATION,BLAKEMORE FOODSERVICE,11/07/2022,H59620220713CBXPEDHBW-1,-9.86 ,CATERING - SCHOOLS-FOOD & DRINK SUPPLIES,CATERERS,GPC
WALSALL COUNCIL,http://opendatacommunities.org/id/metropolitan-district-council/walsall ,30/09/2022,CHILDRENS SERVICES,ROADCHEF NORTON CANES,11/07/2022,H59620220713CDOJVKVPC-1, 551.00 ,BED & BREAKFAST PAYMENTS-BED & BREAKFAST PAYMENTS,"HOTELS, MOTELS, RESORTS",GPC
WALSALL COUNCIL,http://opendatacommunities.org/id/metropolitan-district-council/walsall ,30/09/2022,RESOURCES AND TRANSFORMATION,BLAKEMORE FOODSERVICE,11/07/2022,H59620220713CJDTUOXYI-1, 20.64 ,CATERING - SCHOOLS-FOOD & DRINK SUPPLIES,CATERERS,GPC
WALSALL COUNCIL,http://opendatacommunities.org/id/metropolitan-district-council/walsall ,30/09/2022,RESOURCES AND TRANSFORMATION,BLAKEMORE FOODSERVICE,11/07/2022,H59620220713CJDTUOXYI-2, 375.24 ,CATERING - SCHOOLS-FOOD & DRINK SUPPLIES,CATERERS,GPC
WALSALL COUNCIL,http://opendatacommunities.org/id/metropolitan-district-council/walsall ,30/09/2022,RESOURCES AND TRANSFORMATION,JOHAL DAIRIES LTD,11/07/2022,H59620220713CQWWTBSUC-1, 3.45 ,CATERING - SCHOOLS-FOOD & DRINK SUPPLIES,OTHER NONDURABLE GOODS,GPC
WALSALL COUNCIL,http://opendatacommunities.org/id/metropolitan-district-council/walsall ,30/09/2022,CHILDRENS SERVICES,WM MORRISONS STORE,11/07/2022,H59620220713CTZRNYMUA-1, 6.69 ,NEW LEAF PUPIL REFERAL UNIT-FOOD & DRINK SUPPLIES,GROCERY STORES AND SUPERMARKETS,GPC
WALSALL COUNCIL,http://opendatacommunities.org/id/metropolitan-district-council/walsall ,30/09/2022,CHILDRENS SERVICES,W M MORRISONS.COM,11/07/2022,H59620220713DARCGGPII-1, 56.51 ,PELSALL VILLAGE SCHOOL-FOOD & DRINK SUPPLIES,GROCERY STORES AND SUPERMARKETS,GPC
WALSALL COUNCIL,http://opendatacommunities.org/id/metropolitan-district-council/walsall ,30/09/2022,CHILDRENS SERVICES,W M MORRISONS.COM,11/07/2022,H59620220713DARCGGPII-2, 11.46 ,PELSALL VILLAGE SCHOOL-FOOD & DRINK SUPPLIES,GROCERY STORES AND SUPERMARKETS,GPC
WALSALL COUNCIL,http://opendatacommunities.org/id/metropolitan-district-council/walsall ,30/09/2022,RESOURCES AND TRANSFORMATION,BLAKEMORE FOODSERVICE,11/07/2022,H59620220713DGSXTBVNJ-1,-6.34 ,CATERING - SCHOOLS-FOOD & DRINK SUPPLIES,CATERERS,GPC
WALSALL COUNCIL,http://opendatacommunities.org/id/metropolitan-district-council/walsall ,30/09/2022,RESOURCES AND TRANSFORMATION,JOHAL DAIRIES LTD,11/07/2022,H59620220713DGYOWANBU-1, 51.17 ,CATERING - SCHOOLS-FOOD & DRINK SUPPLIES,OTHER NONDURABLE GOODS,GPC
WALSALL COUNCIL,http://opendatacommunities.org/id/metropolitan-district-council/walsall ,30/09/2022,CHILDRENS SERVICES,HOME BARGAINS,11/07/2022,H59620220713DIJJLQCSC-1, 12.90 ,FAMILY PLACEMENTS-MATERIALS,HARDWARE STORES,GPC
WALSALL COUNCIL,http://opendatacommunities.org/id/metropolitan-district-council/walsall ,30/09/2022,RESOURCES AND TRANSFORMATION,JOHAL DAIRIES LTD,11/07/2022,H59620220713EFEPYNIXE-1, 7.98 ,CATERING - SCHOOLS-FOOD & DRINK SUPPLIES,OTHER NONDURABLE GOODS,GPC
WALSALL COUNCIL,http://opendatacommunities.org/id/metropolitan-district-council/walsall ,30/09/2022,CHILDRENS SERVICES,WM MORRISONS STORE,11/07/2022,H59620220713EFKUEXONN-1, 20.20 ,BREAKFAST CLUB-FOOD & DRINK SUPPLIES,GROCERY STORES AND SUPERMARKETS,GPC
WALSALL COUNCIL,http://opendatacommunities.org/id/metropolitan-district-council/walsall ,30/09/2022,RESOURCES AND TRANSFORMATION,JOHAL DAIRIES LTD,11/07/2022,H59620220713EGHNVVDFC-1, 6.80 ,CATERING - SCHOOLS-FOOD & DRINK SUPPLIES,OTHER NONDURABLE GOODS,GPC
WALSALL COUNCIL,http://opendatacommunities.org/id/metropolitan-district-council/walsall ,30/09/2022,RESOURCES AND TRANSFORMATION,JOHAL DAIRIES LTD,11/07/2022,H59620220713ELPBQDVPE-1, 19.72 ,CATERING - SCHOOLS-FOOD & DRINK SUPPLIES,OTHER NONDURABLE GOODS,GPC
WALSALL COUNCIL,http://opendatacommunities.org/id/metropolitan-district-council/walsall ,30/09/2022,CHILDRENS SERVICES,BIRMINGHAM REGISTER,11/07/2022,H59620220713EMHNIUUZN-1, 37.00 ,FAMILY SAFEGUARDING NORTH LOCA-FEES & LICENCES,GOVERNMENT SERVICES,GPC
WALSALL COUNCIL,http://opendatacommunities.org/id/metropolitan-district-council/walsall ,30/09/2022,RESOURCES AND TRANSFORMATION,WM MORRISONS STORE,11/07/2022,H59620220713ERFDZBOYB-1, 13.56 ,TOWN HALL RESTAURANT BISTRO-FOOD & DRINK SUPPLIES,GROCERY STORES AND SUPERMARKETS,GPC
WALSALL COUNCIL,http://opendatacommunities.org/id/metropolitan-district-council/walsall ,30/09/2022,ECONOMY & ENVIRONMENT,DVLA VEHICLE TAX,11/07/2022,H59620220713FAKSYOXFE-1, 302.50 ,FLEET-LICENCES FOR VEHICLES,TAX PAYMENTS,GPC
WALSALL COUNCIL,http://opendatacommunities.org/id/metropolitan-district-council/walsall ,30/09/2022,RESOURCES AND TRANSFORMATION,CHICKEN JOES LTD,11/07/2022,H59620220713FLQESUQBG-1, 89.70 ,CATERING - SCHOOLS-FOOD & DRINK SUPPLIES,CATERERS,GPC
WALSALL COUNCIL,http://opendatacommunities.org/id/metropolitan-district-council/walsall ,30/09/2022,CHILDRENS SERVICES,THE SUNBEAM,11/07/2022,H59620220713FLSISOVEF-1, 3.19 ,CARE LEAVER ENTITLEMENTS-CARE LEAVERS MISC EXPENSES,"BARS, COCKTAIL LOUNGES, DISCOTHEQUES, NIGHTCLUBS",GPC
WALSALL COUNCIL,http://opendatacommunities.org/id/metropolitan-district-council/walsall ,30/09/2022,CHILDRENS SERVICES,POST OFFICE COUNTER,11/07/2022,H59620220713FRXEONXYJ-1, 79.50 ,FAMILY SAFEGUARDING WEST LOCAL-POSTAGES & COURIER SERVICES,POSTAL SERVICES - GOVERNMENT ONLY,GPC
WALSALL COUNCIL,http://opendatacommunities.org/id/metropolitan-district-council/walsall ,30/09/2022,RESOURCES AND TRANSFORMATION,BLAKEMORE FOODSERVICE,11/07/2022,H59620220713GDTGREQLV-1, 53.40 ,CATERING - SCHOOLS-FOOD & DRINK SUPPLIES,CATERERS,GPC
WALSALL COUNCIL,http://opendatacommunities.org/id/metropolitan-district-council/walsall ,30/09/2022,RESOURCES AND TRANSFORMATION,CHICKEN JOES LTD,11/07/2022,H59620220713GEMYJYUVY-1, 86.10 ,CATERING - SCHOOLS-FOOD & DRINK SUPPLIES,CATERERS,GPC
WALSALL COUNCIL,http://opendatacommunities.org/id/metropolitan-district-council/walsall ,30/09/2022,RESOURCES AND TRANSFORMATION,CHICKEN JOES LTD,11/07/2022,H59620220713GHRPZIJXV-1, 73.00 ,CATERING - SCHOOLS-FOOD & DRINK SUPPLIES,CATERERS,GPC
WALSALL COUNCIL,http://opendatacommunities.org/id/metropolitan-district-council/walsall ,30/09/2022,ECONOMY & ENVIRONMENT,ICELAND,11/07/2022,H59620220713GMJDNEXOQ-1, 23.94 ,STREETLY LIBRARY-FOOD & DRINK SUPPLIES,GROCERY STORES AND SUPERMARKETS,GPC
WALSALL COUNCIL,http://opendatacommunities.org/id/metropolitan-district-council/walsall ,30/09/2022,CHILDRENS SERVICES,KARTINGNATION.CO.UK,11/07/2022,H59620220713GSFSPEUXQ-1, 161.99 ,REWARDS-MATERIALS,OTHER RECREATION SERVICES,GPC
WALSALL COUNCIL,http://opendatacommunities.org/id/metropolitan-district-council/walsall ,30/09/2022,RESOURCES AND TRANSFORMATION,JOHAL DAIRIES LTD,11/07/2022,H59620220713GTOYFXKGB-1, 14.28 ,CATERING - SCHOOLS-FOOD & DRINK SUPPLIES,OTHER NONDURABLE GOODS,GPC
WALSALL COUNCIL,http://opendatacommunities.org/id/metropolitan-district-council/walsall ,30/09/2022,RESOURCES AND TRANSFORMATION,BLAKEMORE FOODSERVICE,11/07/2022,H59620220713GVTNGFLSE-1, 51.10 ,CATERING - SCHOOLS-FOOD & DRINK SUPPLIES,CATERERS,GPC
WALSALL COUNCIL,http://opendatacommunities.org/id/metropolitan-district-council/walsall ,30/09/2022,RESOURCES AND TRANSFORMATION,BLAKEMORE FOODSERVICE,11/07/2022,H59620220713GVTNGFLSE-2, 503.57 ,CATERING - SCHOOLS-FOOD & DRINK SUPPLIES,CATERERS,GPC
WALSALL COUNCIL,http://opendatacommunities.org/id/metropolitan-district-council/walsall ,30/09/2022,RESOURCES AND TRANSFORMATION,JOHAL DAIRIES LTD,11/07/2022,H59620220713GWSYRRLYZ-1, 25.47 ,CATERING - SCHOOLS-FOOD & DRINK SUPPLIES,OTHER NONDURABLE GOODS,GPC
WALSALL COUNCIL,http://opendatacommunities.org/id/metropolitan-district-council/walsall ,30/09/2022,CHILDRENS SERVICES,ICELAND,11/07/2022,H59620220713HCOYUEFGM-1, 16.16 ,REDRUTH ROAD-FOOD & DRINK SUPPLIES,GROCERY STORES AND SUPERMARKETS,GPC
WALSALL COUNCIL,http://opendatacommunities.org/id/metropolitan-district-council/walsall ,30/09/2022,ECONOMY & ENVIRONMENT,AMZNMKTPLACE,11/07/2022,H59620220713HQFXCFBBU-1, 162.84 ,OAK PARK ACTIVE LIVING CENTRE-STATIONERY & GENERAL OFFICE SU,MISCELLANEOUS AND SPECIALTY RETAIL STORES,GPC
WALSALL COUNCIL,http://opendatacommunities.org/id/metropolitan-district-council/walsall ,30/09/2022,RESOURCES AND TRANSFORMATION,BLAKEMORE FOODSERVICE,11/07/2022,H59620220713HURESTCOB-1, 26.46 ,CATERING - SCHOOLS-FOOD & DRINK SUPPLIES,CATERERS,GPC
WALSALL COUNCIL,http://opendatacommunities.org/id/metropolitan-district-council/walsall ,30/09/2022,RESOURCES AND TRANSFORMATION,BLAKEMORE FOODSERVICE,11/07/2022,H59620220713HURESTCOB-2, 387.73 ,CATERING - SCHOOLS-FOOD & DRINK SUPPLIES,CATERERS,GPC
WALSALL COUNCIL,http://opendatacommunities.org/id/metropolitan-district-council/walsall ,30/09/2022,RESOURCES AND TRANSFORMATION,JOHAL DAIRIES LTD,11/07/2022,H59620220713IBLGXTHGO-1, 11.90 ,CATERING - SCHOOLS-FOOD & DRINK SUPPLIES,OTHER NONDURABLE GOODS,GPC
WALSALL COUNCIL,http://opendatacommunities.org/id/metropolitan-district-council/walsall ,30/09/2022,RESOURCES AND TRANSFORMATION,CHICKEN JOES LTD,11/07/2022,H59620220713IDKQPIVEW-1, 78.56 ,CATERING - SCHOOLS-FOOD & DRINK SUPPLIES,CATERERS,GPC
WALSALL COUNCIL,http://opendatacommunities.org/id/metropolitan-district-council/walsall ,30/09/2022,RESOURCES AND TRANSFORMATION,JOHAL DAIRIES LTD,11/07/2022,H59620220713IFWFWFUIW-1, 5.08 ,CATERING - SCHOOLS-FOOD & DRINK SUPPLIES,OTHER NONDURABLE GOODS,GPC
WALSALL COUNCIL,http://opendatacommunities.org/id/metropolitan-district-council/walsall ,30/09/2022,ECONOMY & ENVIRONMENT,FIRSTAID4LESS.CO.UK,11/07/2022,H59620220713IHPROODLP-1, 495.84 ,OAK PARK ACTIVE LIVING CENTRE-MATERIALS,MISCELLANEOUS AND SPECIALTY RETAIL STORES,GPC
WALSALL COUNCIL,http://opendatacommunities.org/id/metropolitan-district-council/walsall ,30/09/2022,RESOURCES AND TRANSFORMATION,BLAKEMORE FOODSERVICE,11/07/2022,H59620220713JEMWWZUOE-1, 8.37 ,CATERING - SCHOOLS-FOOD & DRINK SUPPLIES,CATERERS,GPC
WALSALL COUNCIL,http://opendatacommunities.org/id/metropolitan-district-council/walsall ,30/09/2022,CHILDRENS SERVICES,BENTLEY TILE CENTRE,11/07/2022,H59620220713JGLYCNBIL-1, 105.54 ,LEIGHSWOOD PRIMARY SCHOOL-OPERATIONAL MAINTENANCE,"GLASS, PAINT AND WALLPAPER STORES",GPC
WALSALL COUNCIL,http://opendatacommunities.org/id/metropolitan-district-council/walsall ,30/09/2022,RESOURCES AND TRANSFORMATION,WWW.BANNERUK.COM,11/07/2022,H59620220713JUMORHKTL-1, 12.84 ,HR ADMIN HUB-STATIONERY & GENERAL OFFICE SU,"STATIONERY, OFFICE SUPPLIES AND WRITING PAPER",GPC
WALSALL COUNCIL,http://opendatacommunities.org/id/metropolitan-district-council/walsall ,30/09/2022,RESOURCES AND TRANSFORMATION,BLAKEMORE FOODSERVICE,11/07/2022,H59620220713JXFSXRNNG-1, 10.32 ,CATERING - SCHOOLS-FOOD & DRINK SUPPLIES,CATERERS,GPC
WALSALL COUNCIL,http://opendatacommunities.org/id/metropolitan-district-council/walsall ,30/09/2022,RESOURCES AND TRANSFORMATION,BLAKEMORE FOODSERVICE,11/07/2022,H59620220713JXFSXRNNG-2, 654.75 ,CATERING - SCHOOLS-FOOD & DRINK SUPPLIES,CATERERS,GPC
WALSALL COUNCIL,http://opendatacommunities.org/id/metropolitan-district-council/walsall ,30/09/2022,RESOURCES AND TRANSFORMATION,JOHAL DAIRIES LTD,11/07/2022,H59620220713JYFYDHEVO-1, 19.04 ,CATERING - SCHOOLS-FOOD & DRINK SUPPLIES,OTHER NONDURABLE GOODS,GPC
WALSALL COUNCIL,http://opendatacommunities.org/id/metropolitan-district-council/walsall ,30/09/2022,CHILDRENS SERVICES,NSPCC SHOPIFY,11/07/2022,H59620220713KCLLBJFVB-1, 278.79 ,BEHAVIOUR-MATERIALS,"ORGANIZATIONS, CHARITABLE AND SOCIAL SERVICE",GPC
WALSALL COUNCIL,http://opendatacommunities.org/id/metropolitan-district-council/walsall ,30/09/2022,ECONOMY & ENVIRONMENT,DVLA VEHICLE TAX,11/07/2022,H59620220713KDCVWEIUI-1, 302.50 ,FLEET-LICENCES FOR VEHICLES,TAX PAYMENTS,GPC
WALSALL COUNCIL,http://opendatacommunities.org/id/metropolitan-district-council/walsall ,30/09/2022,RESOURCES AND TRANSFORMATION,BLAKEMORE FOODSERVICE,11/07/2022,H59620220713KDXDZPNFQ-1, 130.64 ,CATERING - SCHOOLS-FOOD & DRINK SUPPLIES,CATERERS,GPC
WALSALL COUNCIL,http://opendatacommunities.org/id/metropolitan-district-council/walsall ,30/09/2022,RESOURCES AND TRANSFORMATION,JOHAL DAIRIES LTD,11/07/2022,H59620220713KFZFSYOEM-1, 14.28 ,CATERING - SCHOOLS-FOOD & DRINK SUPPLIES,OTHER NONDURABLE GOODS,GPC
WALSALL COUNCIL,http://opendatacommunities.org/id/metropolitan-district-council/walsall ,30/09/2022,RESOURCES AND TRANSFORMATION,JOHAL DAIRIES LTD,11/07/2022,H59620220713KGCSFPTEK-1, 11.90 ,CATERING - SCHOOLS-FOOD & DRINK SUPPLIES,OTHER NONDURABLE GOODS,GPC
WALSALL COUNCIL,http://opendatacommunities.org/id/metropolitan-district-council/walsall ,30/09/2022,RESOURCES AND TRANSFORMATION,JOHAL DAIRIES LTD,11/07/2022,H59620220713KKIDYSGSW-1, 28.56 ,CATERING - SCHOOLS-FOOD & DRINK SUPPLIES,OTHER NONDURABLE GOODS,GPC
WALSALL COUNCIL,http://opendatacommunities.org/id/metropolitan-district-council/walsall ,30/09/2022,CHILDRENS SERVICES,TRAVELODGE GB0000,11/07/2022,H59620220713LHQVLLCMF-1, 63.22 ,TENANCY SERVICE-ACCOMMODATION AND RELATED COST,TRAVELODGE,GPC
WALSALL COUNCIL,http://opendatacommunities.org/id/metropolitan-district-council/walsall ,30/09/2022,CHILDRENS SERVICES,WM MORRISONS STORE,11/07/2022,H59620220713LWCWOOJUK-1, 0.99 ,PFA-MATERIALS,GROCERY STORES AND SUPERMARKETS,GPC
WALSALL COUNCIL,http://opendatacommunities.org/id/metropolitan-district-council/walsall ,30/09/2022,CHILDRENS SERVICES,WM MORRISONS STORE,11/07/2022,H59620220713LWCWOOJUK-2, 13.00 ,PFA-MATERIALS,GROCERY STORES AND SUPERMARKETS,GPC
WALSALL COUNCIL,http://opendatacommunities.org/id/metropolitan-district-council/walsall ,30/09/2022,CHILDRENS SERVICES,HILTON GARDEN INN,11/07/2022,H59620220713MAWDDIERG-1,-169.00 ,CADMUS FEDERATION-EXTERNAL TRAINING,HILTON GARDEN INN,GPC
WALSALL COUNCIL,http://opendatacommunities.org/id/metropolitan-district-council/walsall ,30/09/2022,RESOURCES AND TRANSFORMATION,BLAKEMORE FOODSERVICE,11/07/2022,H59620220713MGLULQXHR-1, 456.89 ,CATERING - SCHOOLS-FOOD & DRINK SUPPLIES,CATERERS,GPC
WALSALL COUNCIL,http://opendatacommunities.org/id/metropolitan-district-council/walsall ,30/09/2022,RESOURCES AND TRANSFORMATION,JOHAL DAIRIES LTD,11/07/2022,H59620220713MKFWUPCMW-1, 24.99 ,CATERING - SCHOOLS-FOOD & DRINK SUPPLIES,OTHER NONDURABLE GOODS,GPC
WALSALL COUNCIL,http://opendatacommunities.org/id/metropolitan-district-council/walsall ,30/09/2022,CHILDRENS SERVICES,BEANBAGBAZAAR,11/07/2022,H59620220713NGITUALBR-1, 149.95 ,OLD HALL SCHOOL-MATERIALS,"EQUIPMENT, FURNITURE, AND HOME FURNISHINGS STORES ",GPC
WALSALL COUNCIL,http://opendatacommunities.org/id/metropolitan-district-council/walsall ,30/09/2022,RESOURCES AND TRANSFORMATION,BLAKEMORE FOODSERVICE,11/07/2022,H59620220713NLHRKPNHT-1, 30.96 ,CATERING - SCHOOLS-FOOD & DRINK SUPPLIES,CATERERS,GPC
WALSALL COUNCIL,http://opendatacommunities.org/id/metropolitan-district-council/walsall ,30/09/2022,RESOURCES AND TRANSFORMATION,BLAKEMORE FOODSERVICE,11/07/2022,H59620220713NLHRKPNHT-2, 495.05 ,CATERING - SCHOOLS-FOOD & DRINK SUPPLIES,CATERERS,GPC
WALSALL COUNCIL,http://opendatacommunities.org/id/metropolitan-district-council/walsall ,30/09/2022,RESOURCES AND TRANSFORMATION,BLAKEMORE FOODSERVICE,11/07/2022,H59620220713NWSGDLYGP-1, 13.03 ,CATERING - SCHOOLS-FOOD & DRINK SUPPLIES,CATERERS,GPC
WALSALL COUNCIL,http://opendatacommunities.org/id/metropolitan-district-council/walsall ,30/09/2022,RESOURCES AND TRANSFORMATION,BLAKEMORE FOODSERVICE,11/07/2022,H59620220713NWSGDLYGP-2, 266.01 ,CATERING - SCHOOLS-FOOD & DRINK SUPPLIES,CATERERS,GPC
WALSALL COUNCIL,http://opendatacommunities.org/id/metropolitan-district-council/walsall ,30/09/2022,RESOURCES AND TRANSFORMATION,BLAKEMORE FOODSERVICE,11/07/2022,H59620220713OBPMNUFPI-1, 38.88 ,CATERING - SCHOOLS-FOOD & DRINK SUPPLIES,CATERERS,GPC
WALSALL COUNCIL,http://opendatacommunities.org/id/metropolitan-district-council/walsall ,30/09/2022,RESOURCES AND TRANSFORMATION,BLAKEMORE FOODSERVICE,11/07/2022,H59620220713OBPMNUFPI-2, 545.71 ,CATERING - SCHOOLS-FOOD & DRINK SUPPLIES,CATERERS,GPC
WALSALL COUNCIL,http://opendatacommunities.org/id/metropolitan-district-council/walsall ,30/09/2022,RESOURCES AND TRANSFORMATION,BLAKEMORE FOODSERVICE,11/07/2022,H59620220713OOEMILVXH-1, 25.92 ,CATERING - SCHOOLS-FOOD & DRINK SUPPLIES,CATERERS,GPC
WALSALL COUNCIL,http://opendatacommunities.org/id/metropolitan-district-council/walsall ,30/09/2022,RESOURCES AND TRANSFORMATION,BLAKEMORE FOODSERVICE,11/07/2022,H59620220713OOEMILVXH-2, 187.17 ,CATERING - SCHOOLS-FOOD & DRINK SUPPLIES,CATERERS,GPC
WALSALL COUNCIL,http://opendatacommunities.org/id/metropolitan-district-council/walsall ,30/09/2022,RESOURCES AND TRANSFORMATION,JOHAL DAIRIES LTD,11/07/2022,H59620220713OTDSVPULG-1, 39.27 ,CATERING - SCHOOLS-FOOD & DRINK SUPPLIES,OTHER NONDURABLE GOODS,GPC
WALSALL COUNCIL,http://opendatacommunities.org/id/metropolitan-district-council/walsall ,30/09/2022,CHILDRENS SERVICES,TRAVELODGE GB0000,11/07/2022,H59620220713OXNQZOOJN-1, 63.22 ,WALSALL CRISIS SUPPORT SCHEME-OTHER EXPENSES,TRAVELODGE,GPC
WALSALL COUNCIL,http://opendatacommunities.org/id/metropolitan-district-council/walsall ,30/09/2022,ECONOMY & ENVIRONMENT,TOOLSTATION LTD ALDRIDGE,11/07/2022,H59620220713PDUPELGCN-1, 28.78 ,INFRASTRUCTURE MAINTENANCE-MATERIALS,LUMBER & BUILDING MATERIALS STORES,GPC
WALSALL COUNCIL,http://opendatacommunities.org/id/metropolitan-district-council/walsall ,30/09/2022,CHILDRENS SERVICES,SMASH SIGNS LTD,11/07/2022,H59620220713PHDXOSCPF-1, 44.98 ,ADMINISTRATIVE SUPPLIES-MATERIALS,MISCELLANEOUS PUBLISHING AND PRINTING,GPC
WALSALL COUNCIL,http://opendatacommunities.org/id/metropolitan-district-council/walsall ,30/09/2022,RESOURCES AND TRANSFORMATION,JOHAL DAIRIES LTD,11/07/2022,H59620220713PHTCEVEQV-1, 66.64 ,CATERING - SCHOOLS-FOOD & DRINK SUPPLIES,OTHER NONDURABLE GOODS,GPC
WALSALL COUNCIL,http://opendatacommunities.org/id/metropolitan-district-council/walsall ,30/09/2022,RESOURCES AND TRANSFORMATION,BLAKEMORE FOODSERVICE,11/07/2022,H59620220713PNDWVCPJB-1, 30.96 ,CATERING - SCHOOLS-FOOD & DRINK SUPPLIES,CATERERS,GPC
WALSALL COUNCIL,http://opendatacommunities.org/id/metropolitan-district-council/walsall ,30/09/2022,RESOURCES AND TRANSFORMATION,BLAKEMORE FOODSERVICE,11/07/2022,H59620220713PNDWVCPJB-2, 544.12 ,CATERING - SCHOOLS-FOOD & DRINK SUPPLIES,CATERERS,GPC
WALSALL COUNCIL,http://opendatacommunities.org/id/metropolitan-district-council/walsall ,30/09/2022,CHILDRENS SERVICES,SP BOOKS2DOOR,11/07/2022,H59620220713PRINUBELF-1, 82.69 ,ENGLISH DEPARTMENT-LIBRARY BOOKS,BOOK STORES,GPC
WALSALL COUNCIL,http://opendatacommunities.org/id/metropolitan-district-council/walsall ,30/09/2022,CHILDRENS SERVICES,WWW.BANNERUK.COM,11/07/2022,H59620220713PRVMUUEXS-1, 90.79 ,EDGE OF CARE TEAM-STATIONERY & GENERAL OFFICE SU,"STATIONERY, OFFICE SUPPLIES AND WRITING PAPER",GPC
WALSALL COUNCIL,http://opendatacommunities.org/id/metropolitan-district-council/walsall ,30/09/2022,CHILDRENS SERVICES,AMZNMKTPLACE,11/07/2022,H59620220713QDDDKQTGL-1, 36.87 ,WATLING STREET PRIMARY SCHOOL-STATIONERY & GENERAL OFFICE SU,MISCELLANEOUS AND SPECIALTY RETAIL STORES,GPC
WALSALL COUNCIL,http://opendatacommunities.org/id/metropolitan-district-council/walsall ,30/09/2022,CHILDRENS SERVICES,POST OFFICE COUNTER,11/07/2022,H59620220713RLKKVWJLQ-1, 2.05 ,EDGE OF CARE TEAM-POSTAGES & COURIER SERVICES,POSTAL SERVICES - GOVERNMENT ONLY,GPC
WALSALL COUNCIL,http://opendatacommunities.org/id/metropolitan-district-council/walsall ,30/09/2022,RESOURCES AND TRANSFORMATION,BLAKEMORE FOODSERVICE,11/07/2022,H59620220713ROOGWWCGX-1, 194.40 ,CATERING - SCHOOLS-FOOD & DRINK SUPPLIES,CATERERS,GPC
WALSALL COUNCIL,http://opendatacommunities.org/id/metropolitan-district-council/walsall ,30/09/2022,RESOURCES AND TRANSFORMATION,BLAKEMORE FOODSERVICE,11/07/2022,H59620220713ROOGWWCGX-2," 1,185.93 ",CATERING - SCHOOLS-FOOD & DRINK SUPPLIES,CATERERS,GPC
WALSALL COUNCIL,http://opendatacommunities.org/id/metropolitan-district-council/walsall ,30/09/2022,RESOURCES AND TRANSFORMATION,JOHAL DAIRIES LTD,11/07/2022,H59620220713SKIYPWQSE-1, 16.66 ,CATERING - SCHOOLS-FOOD & DRINK SUPPLIES,OTHER NONDURABLE GOODS,GPC
WALSALL COUNCIL,http://opendatacommunities.org/id/metropolitan-district-council/walsall ,30/09/2022,CHILDRENS SERVICES,AMZNMKTPLACE,11/07/2022,H59620220713SQMGGIIXR-1, 21.97 ,CURRICULUM STOCK-MATERIALS,MISCELLANEOUS AND SPECIALTY RETAIL STORES,GPC
WALSALL COUNCIL,http://opendatacommunities.org/id/metropolitan-district-council/walsall ,30/09/2022,CHILDRENS SERVICES,WWW.JOHNLEWIS.COM,11/07/2022,H59620220713SRVZOGACU-1, 156.90 ,OAKWOOD SCHOOL-OPERATIONAL MAINTENANCE,DEPARTMENT STORES,GPC
WALSALL COUNCIL,http://opendatacommunities.org/id/metropolitan-district-council/walsall ,30/09/2022,RESOURCES AND TRANSFORMATION,BLAKEMORE FOODSERVICE,11/07/2022,H59620220713STVMHFWLU-1, 10.32 ,CATERING - SCHOOLS-FOOD & DRINK SUPPLIES,CATERERS,GPC
WALSALL COUNCIL,http://opendatacommunities.org/id/metropolitan-district-council/walsall ,30/09/2022,RESOURCES AND TRANSFORMATION,BLAKEMORE FOODSERVICE,11/07/2022,H59620220713STVMHFWLU-2, 55.25 ,CATERING - SCHOOLS-FOOD & DRINK SUPPLIES,CATERERS,GPC
WALSALL COUNCIL,http://opendatacommunities.org/id/metropolitan-district-council/walsall ,30/09/2022,CHILDRENS SERVICES,SCHOOLGATEWA*BLUE COAT AC,11/07/2022,H59620220713SVNIHUIOK-1, 10.00 ,REDRUTH ROAD-FOOD & DRINK SUPPLIES,"COLLEGES, UNIVERSITIES, PROFESSIONAL SCHOOLS",GPC
WALSALL COUNCIL,http://opendatacommunities.org/id/metropolitan-district-council/walsall ,30/09/2022,RESOURCES AND TRANSFORMATION,JOHAL DAIRIES LTD,11/07/2022,H59620220713SYXTJEEQH-1, 69.06 ,CATERING - SCHOOLS-FOOD & DRINK SUPPLIES,OTHER NONDURABLE GOODS,GPC
WALSALL COUNCIL,http://opendatacommunities.org/id/metropolitan-district-council/walsall ,30/09/2022,RESOURCES AND TRANSFORMATION,JOHAL DAIRIES LTD,11/07/2022,H59620220713TDDODMBEL-1, 23.80 ,CATERING - SCHOOLS-FOOD & DRINK SUPPLIES,OTHER NONDURABLE GOODS,GPC
WALSALL COUNCIL,http://opendatacommunities.org/id/metropolitan-district-council/walsall ,30/09/2022,RESOURCES AND TRANSFORMATION,CHICKEN JOES LTD,11/07/2022,H59620220713TFHCKMIVT-1, 76.16 ,CATERING - SCHOOLS-FOOD & DRINK SUPPLIES,CATERERS,GPC
WALSALL COUNCIL,http://opendatacommunities.org/id/metropolitan-district-council/walsall ,30/09/2022,ECONOMY & ENVIRONMENT,SP RLSS UK SHOP,11/07/2022,H59620220713THUAYOTHD-1, 257.76 ,OAK PARK ACTIVE LIVING CENTRE-MATERIALS,MENS AND WOMENS CLOTHING STORES,GPC
WALSALL COUNCIL,http://opendatacommunities.org/id/metropolitan-district-council/walsall ,30/09/2022,CHILDRENS SERVICES,WWW.NISBETS.COM,11/07/2022,H59620220713TKOJYZIPS-1, 30.54 ,ADMINISTRATIVE SUPPLIES-STATIONERY & GENERAL OFFICE SU,DIRECT MARKETING CATALOG MERCHANTS,GPC
WALSALL COUNCIL,http://opendatacommunities.org/id/metropolitan-district-council/walsall ,30/09/2022,RESOURCES AND TRANSFORMATION,JOHAL DAIRIES LTD,11/07/2022,H59620220713TZOJXEJNW-1, 3.45 ,CATERING - SCHOOLS-FOOD & DRINK SUPPLIES,OTHER NONDURABLE GOODS,GPC
WALSALL COUNCIL,http://opendatacommunities.org/id/metropolitan-district-council/walsall ,30/09/2022,CHILDRENS SERVICES,HM PASSPORT OFFICE,11/07/2022,H59620220713UIKSBUXYT-1, 75.50 ,TRANSITION AND LEAVING CARE SU-FEES & LICENCES,GOVERNMENT SERVICES,GPC
WALSALL COUNCIL,http://opendatacommunities.org/id/metropolitan-district-council/walsall ,30/09/2022,CHILDRENS SERVICES,POUNDLAND LTD,11/07/2022,H59620220713UJODFMPFB-1, 1.23 ,EDGE OF CARE TEAM-MATERIALS,DISCOUNT STORES,GPC
WALSALL COUNCIL,http://opendatacommunities.org/id/metropolitan-district-council/walsall ,30/09/2022,RESOURCES AND TRANSFORMATION,BLAKEMORE FOODSERVICE,11/07/2022,H59620220713UQAVKHVNZ-1, 30.96 ,CATERING - SCHOOLS-FOOD & DRINK SUPPLIES,CATERERS,GPC
WALSALL COUNCIL,http://opendatacommunities.org/id/metropolitan-district-council/walsall ,30/09/2022,RESOURCES AND TRANSFORMATION,BLAKEMORE FOODSERVICE,11/07/2022,H59620220713UQAVKHVNZ-2, 408.14 ,CATERING - SCHOOLS-FOOD & DRINK SUPPLIES,CATERERS,GPC
WALSALL COUNCIL,http://opendatacommunities.org/id/metropolitan-district-council/walsall ,30/09/2022,RESOURCES AND TRANSFORMATION,CHICKEN JOES LTD,11/07/2022,H59620220713UYAGOKEOO-1, 115.56 ,CATERING - SCHOOLS-FOOD & DRINK SUPPLIES,CATERERS,GPC
WALSALL COUNCIL,http://opendatacommunities.org/id/metropolitan-district-council/walsall ,30/09/2022,CHILDRENS SERVICES,POST OFFICE COUNTER,11/07/2022,H59620220713VJECXDSML-1, 79.50 ,FAMILY SAFEGUARDING WEST LOCAL-POSTAGES & COURIER SERVICES,POSTAL SERVICES - GOVERNMENT ONLY,GPC
WALSALL COUNCIL,http://opendatacommunities.org/id/metropolitan-district-council/walsall ,30/09/2022,RESOURCES AND TRANSFORMATION,BLAKEMORE FOODSERVICE,11/07/2022,H59620220713VNSYPSVIR-1,-191.20 ,CATERING - SCHOOLS-FOOD & DRINK SUPPLIES,CATERERS,GPC
WALSALL COUNCIL,http://opendatacommunities.org/id/metropolitan-district-council/walsall ,30/09/2022,CHILDRENS SERVICES,GLS EDUCATIONAL SU,11/07/2022,H59620220713VOISQCJBY-1, 117.55 ,CHUCKERY PRIMARY SCHOOL-MATERIALS,"COLLEGES, UNIVERSITIES, PROFESSIONAL SCHOOLS",GPC
WALSALL COUNCIL,http://opendatacommunities.org/id/metropolitan-district-council/walsall ,30/09/2022,RESOURCES AND TRANSFORMATION,BLAKEMORE FOODSERVICE,11/07/2022,H59620220713VRJQXXTQG-1, 20.30 ,CATERING - SCHOOLS-FOOD & DRINK SUPPLIES,CATERERS,GPC
WALSALL COUNCIL,http://opendatacommunities.org/id/metropolitan-district-council/walsall ,30/09/2022,RESOURCES AND TRANSFORMATION,BLAKEMORE FOODSERVICE,11/07/2022,H59620220713VRJQXXTQG-2, 525.75 ,CATERING - SCHOOLS-FOOD & DRINK SUPPLIES,CATERERS,GPC
WALSALL COUNCIL,http://opendatacommunities.org/id/metropolitan-district-council/walsall ,30/09/2022,RESOURCES AND TRANSFORMATION,BLAKEMORE FOODSERVICE,11/07/2022,H59620220713WBVHJLCZB-1, 20.64 ,CATERING - SCHOOLS-FOOD & DRINK SUPPLIES,CATERERS,GPC
WALSALL COUNCIL,http://opendatacommunities.org/id/metropolitan-district-council/walsall ,30/09/2022,RESOURCES AND TRANSFORMATION,BLAKEMORE FOODSERVICE,11/07/2022,H59620220713WBVHJLCZB-2, 528.97 ,CATERING - SCHOOLS-FOOD & DRINK SUPPLIES,CATERERS,GPC
WALSALL COUNCIL,http://opendatacommunities.org/id/metropolitan-district-council/walsall ,30/09/2022,RESOURCES AND TRANSFORMATION,JOHAL DAIRIES LTD,11/07/2022,H59620220713WRVMOVOGT-1, 15.78 ,CATERING - SCHOOLS-FOOD & DRINK SUPPLIES,OTHER NONDURABLE GOODS,GPC
WALSALL COUNCIL,http://opendatacommunities.org/id/metropolitan-district-council/walsall ,30/09/2022,RESOURCES AND TRANSFORMATION,JOHAL DAIRIES LTD,11/07/2022,H59620220713XJXERKFBW-1, 17.85 ,CATERING - SCHOOLS-FOOD & DRINK SUPPLIES,OTHER NONDURABLE GOODS,GPC
WALSALL COUNCIL,http://opendatacommunities.org/id/metropolitan-district-council/walsall ,30/09/2022,CHILDRENS SERVICES,ASDA GROCERIES ONLINE,11/07/2022,H59620220713XNDDEIXIL-1, 61.57 ,BREAKFAST CLUB-FOOD & DRINK SUPPLIES,GROCERY STORES AND SUPERMARKETS,GPC
WALSALL COUNCIL,http://opendatacommunities.org/id/metropolitan-district-council/walsall ,30/09/2022,ECONOMY & ENVIRONMENT,AMZNMKTPLACE,11/07/2022,H59620220713XXOEIXHFE-1, 61.96 ,HIGHWAYS MAINTENANCE GENERAL-MATERIALS,MISCELLANEOUS AND SPECIALTY RETAIL STORES,GPC
WALSALL COUNCIL,http://opendatacommunities.org/id/metropolitan-district-council/walsall ,30/09/2022,RESOURCES AND TRANSFORMATION,BLAKEMORE FOODSERVICE,11/07/2022,H59620220713YHJECRQJG-1,-3.39 ,CATERING - SCHOOLS-FOOD & DRINK SUPPLIES,CATERERS,GPC
WALSALL COUNCIL,http://opendatacommunities.org/id/metropolitan-district-council/walsall ,30/09/2022,RESOURCES AND TRANSFORMATION,JOHAL DAIRIES LTD,11/07/2022,H59620220713YPCLELGFL-1, 20.23 ,CATERING - SCHOOLS-FOOD & DRINK SUPPLIES,OTHER NONDURABLE GOODS,GPC
WALSALL COUNCIL,http://opendatacommunities.org/id/metropolitan-district-council/walsall ,30/09/2022,CHILDRENS SERVICES,ARGOS CANNOCK,11/07/2022,H59620220713YUGVSXCBA-1, 11.00 ,EARLY YEARS DEPARTMENT-MATERIALS,DISCOUNT STORES,GPC
WALSALL COUNCIL,http://opendatacommunities.org/id/metropolitan-district-council/walsall ,30/09/2022,RESOURCES AND TRANSFORMATION,JOHAL DAIRIES LTD,11/07/2022,H59620220713ZYFGLIAGU-1, 21.39 ,CATERING - SCHOOLS-FOOD & DRINK SUPPLIES,OTHER NONDURABLE GOODS,GPC
WALSALL COUNCIL,http://opendatacommunities.org/id/metropolitan-district-council/walsall ,30/09/2022,RESOURCES AND TRANSFORMATION,BLAKEMORE FOODSERVICE,11/07/2022,H59620220714FOXCFIEBW-1,-63.35 ,CATERING - SCHOOLS-FOOD & DRINK SUPPLIES,CATERERS,GPC
WALSALL COUNCIL,http://opendatacommunities.org/id/metropolitan-district-council/walsall ,30/09/2022,CHILDRENS SERVICES,PREMIER INN44533745,11/07/2022,H59620220714GUGXXTROD-1,-186.00 ,TENANCY SERVICE-ACCOMMODATION AND RELATED COST,PREMIER INN,GPC
WALSALL COUNCIL,http://opendatacommunities.org/id/metropolitan-district-council/walsall ,30/09/2022,CHILDRENS SERVICES,PREMIER INN44533745,11/07/2022,H59620220714QPEOZHGBF-1, 420.50 ,TENANCY SERVICE-ACCOMMODATION AND RELATED COST,PREMIER INN,GPC
WALSALL COUNCIL,http://opendatacommunities.org/id/metropolitan-district-council/walsall ,30/09/2022,CHILDRENS SERVICES,CPD ONLINE COLLEGE,11/07/2022,H59620220714UGFQXLCHI-1, 194.40 ,WATLING STREET PRIMARY SCHOOL-EXTERNAL TRAINING,OTHER SCHOOLS AND EDUCATIONAL SERVICES,GPC
WALSALL COUNCIL,http://opendatacommunities.org/id/metropolitan-district-council/walsall ,30/09/2022,RESOURCES AND TRANSFORMATION,BLAKEMORE FOODSERVICE,11/07/2022,H59620220714XUXETXBRD-1,-10.51 ,CATERING - SCHOOLS-FOOD & DRINK SUPPLIES,CATERERS,GPC
WALSALL COUNCIL,http://opendatacommunities.org/id/metropolitan-district-council/walsall ,30/09/2022,CHILDRENS SERVICES,PAYPAL *WORKSSTORES,11/07/2022,H59620220715DHQPLBBJF-1, 180.00 ,YEAR 5 / 6-MATERIALS,DISCOUNT STORES,GPC
WALSALL COUNCIL,http://opendatacommunities.org/id/metropolitan-district-council/walsall ,30/09/2022,CHILDRENS SERVICES,WWW.JOHNLEWIS.COM,11/07/2022,H59620221028FKIRPEKXI-1,-156.90 ,OAKWOOD SCHOOL-OPERATIONAL MAINTENANCE,,GPC
WALSALL COUNCIL,http://opendatacommunities.org/id/metropolitan-district-council/walsall ,30/09/2022,CHILDRENS SERVICES,HPI INSTANT INK UK,12/07/2022,H59620220713GWRLZIPNT-1, 9.99 ,ADMINISTRATIVE SUPPLIES-STATIONERY & GENERAL OFFICE SU,ELECTRONIC SALES,GPC
WALSALL COUNCIL,http://opendatacommunities.org/id/metropolitan-district-council/walsall ,30/09/2022,CHILDRENS SERVICES,AMAZON.CO.UK*BJ1JP3UF5,12/07/2022,H59620220714AHVOKHKMA-1, 29.46 ,ADMINISTRATIVE SUPPLIES-STATIONERY & GENERAL OFFICE SU,OTHER DIRECT MARKETING-OTHER DIRECT MARKETERS,GPC
WALSALL COUNCIL,http://opendatacommunities.org/id/metropolitan-district-council/walsall ,30/09/2022,CHILDRENS SERVICES,AMZNMKTPLACE,12/07/2022,H59620220714AKKIXTYJB-1, 199.96 ,ADMINISTRATIVE SUPPLIES-MATERIALS,MISCELLANEOUS AND SPECIALTY RETAIL STORES,GPC
WALSALL COUNCIL,http://opendatacommunities.org/id/metropolitan-district-council/walsall ,30/09/2022,RESOURCES AND TRANSFORMATION,ARTHUR BRETT CATER,12/07/2022,H59620220714APEBQUJBG-1, 34.85 ,CATERING - SCHOOLS-FOOD & DRINK SUPPLIES,MISCELLANEOUS FOOD STORES & CONVENIENCE STORES,GPC
WALSALL COUNCIL,http://opendatacommunities.org/id/metropolitan-district-council/walsall ,30/09/2022,RESOURCES AND TRANSFORMATION,ARTHUR BRETT CATER,12/07/2022,H59620220714AQSNMILLO-1, 28.92 ,CATERING - SCHOOLS-FOOD & DRINK SUPPLIES,MISCELLANEOUS FOOD STORES & CONVENIENCE STORES,GPC
WALSALL COUNCIL,http://opendatacommunities.org/id/metropolitan-district-council/walsall ,30/09/2022,RESOURCES AND TRANSFORMATION,ARTHUR BRETT CATER,12/07/2022,H59620220714BFXQTKKDW-1, 80.75 ,CATERING - SCHOOLS-FOOD & DRINK SUPPLIES,MISCELLANEOUS FOOD STORES & CONVENIENCE STORES,GPC
WALSALL COUNCIL,http://opendatacommunities.org/id/metropolitan-district-council/walsall ,30/09/2022,CHILDRENS SERVICES,CURRYS ONLINE,12/07/2022,H59620220714BKHIBUWXC-1, 239.00 ,SUPPORT UNDER SECT 23 OF THE C-SUPPORT UNDER SECTION 23 OF TH,ELECTRONIC SALES,GPC
WALSALL COUNCIL,http://opendatacommunities.org/id/metropolitan-district-council/walsall ,30/09/2022,CHILDRENS SERVICES,WM MORRISONS STORE,12/07/2022,H59620220714BMGVRXTYI-1, 0.60 ,EDGE OF CARE TEAM-FOOD & DRINK SUPPLIES,GROCERY STORES AND SUPERMARKETS,GPC
WALSALL COUNCIL,http://opendatacommunities.org/id/metropolitan-district-council/walsall ,30/09/2022,CHILDRENS SERVICES,WM MORRISONS STORE,12/07/2022,H59620220714BMGVRXTYI-2, 6.15 ,EDGE OF CARE TEAM-FOOD & DRINK SUPPLIES,GROCERY STORES AND SUPERMARKETS,GPC
WALSALL COUNCIL,http://opendatacommunities.org/id/metropolitan-district-council/walsall ,30/09/2022,ECONOMY & ENVIRONMENT,AMZNMKTPLACE,12/07/2022,H59620220714BUXYHZYRY-1, 25.92 ,NAG - TEMPORARY EXHIBITIONS-PURCHASE OF FURNITURE & EQUIPM,MISCELLANEOUS AND SPECIALTY RETAIL STORES,GPC
WALSALL COUNCIL,http://opendatacommunities.org/id/metropolitan-district-council/walsall ,30/09/2022,CHILDRENS SERVICES,ALLPAY *WALSALL HOUSING G,12/07/2022,H59620220714BYDGTRRML-1, 146.77 ,WALSALL CRISIS SUPPORT SCHEME-OTHER EXPENSES,"ORGANIZATIONS, CHARITABLE AND SOCIAL SERVICE",GPC
WALSALL COUNCIL,http://opendatacommunities.org/id/metropolitan-district-council/walsall ,30/09/2022,RESOURCES AND TRANSFORMATION,ARTHUR BRETT CATER,12/07/2022,H59620220714BYXNTNUGD-1, 65.08 ,CATERING - SCHOOLS-FOOD & DRINK SUPPLIES,MISCELLANEOUS FOOD STORES & CONVENIENCE STORES,GPC
WALSALL COUNCIL,http://opendatacommunities.org/id/metropolitan-district-council/walsall ,30/09/2022,CHILDRENS SERVICES,IKEA LTD 142 BIRMINGHAM M,12/07/2022,H59620220714CDZFAQNFP-1, 102.00 ,EARLY YEARS DEPARTMENT-MATERIALS,"EQUIPMENT, FURNITURE, AND HOME FURNISHINGS STORES ",GPC
WALSALL COUNCIL,http://opendatacommunities.org/id/metropolitan-district-council/walsall ,30/09/2022,CHILDRENS SERVICES,AMZNMKTPLACE,12/07/2022,H59620220714CKLSHOOWK-1, 13.98 ,LEARNING ENVIRONMENT-MATERIALS,MISCELLANEOUS AND SPECIALTY RETAIL STORES,GPC
WALSALL COUNCIL,http://opendatacommunities.org/id/metropolitan-district-council/walsall ,30/09/2022,RESOURCES AND TRANSFORMATION,ARTHUR BRETT CATER,12/07/2022,H59620220714DDBYDRWLM-1, 108.48 ,CATERING - SCHOOLS-FOOD & DRINK SUPPLIES,MISCELLANEOUS FOOD STORES & CONVENIENCE STORES,GPC
WALSALL COUNCIL,http://opendatacommunities.org/id/metropolitan-district-council/walsall ,30/09/2022,CHILDRENS SERVICES,AMZNMKTPLACE,12/07/2022,H59620220714DKYTDBJBL-1, 57.42 ,EDGE OF CARE TEAM-MATERIALS,MISCELLANEOUS AND SPECIALTY RETAIL STORES,GPC
WALSALL COUNCIL,http://opendatacommunities.org/id/metropolitan-district-council/walsall ,30/09/2022,CHILDRENS SERVICES,SP SPEECHSHOP,12/07/2022,H59620220714DOESOXFWK-1, 358.00 ,CHILD PROTECTION & REVIEW SERV-PURCHASE OF FURNITURE & EQUIPM,COMPUTER SOFTWARE STORES,GPC
WALSALL COUNCIL,http://opendatacommunities.org/id/metropolitan-district-council/walsall ,30/09/2022,ECONOMY & ENVIRONMENT,AMZNMKTPLACE,12/07/2022,H59620220714EBGXBYWUX-1, 55.95 ,BLOXWICH ACTIVE LIVING CENTRE-FOOD & DRINK SUPPLIES,MISCELLANEOUS AND SPECIALTY RETAIL STORES,GPC
WALSALL COUNCIL,http://opendatacommunities.org/id/metropolitan-district-council/walsall ,30/09/2022,ECONOMY & ENVIRONMENT,AMZNMKTPLACE,12/07/2022,H59620220714ECXTXMEYM-1, 3.99 ,WALSALL GALA SWIMMING AND FITN-STATIONERY & GENERAL OFFICE SU,MISCELLANEOUS AND SPECIALTY RETAIL STORES,GPC
WALSALL COUNCIL,http://opendatacommunities.org/id/metropolitan-district-council/walsall ,30/09/2022,CHILDRENS SERVICES,AMZNMKTPLACE,12/07/2022,H59620220714EQFGCMRUM-1, 18.25 ,MARY ELLIOTT SCHOOL-PURCHASE OF FURNITURE & EQUIPM,MISCELLANEOUS AND SPECIALTY RETAIL STORES,GPC
WALSALL COUNCIL,http://opendatacommunities.org/id/metropolitan-district-council/walsall ,30/09/2022,RESOURCES AND TRANSFORMATION,ARTHUR BRETT CATER,12/07/2022,H59620220714EUUWDJBYN-1, 24.75 ,CATERING - SCHOOLS-FOOD & DRINK SUPPLIES,MISCELLANEOUS FOOD STORES & CONVENIENCE STORES,GPC
WALSALL COUNCIL,http://opendatacommunities.org/id/metropolitan-district-council/walsall ,30/09/2022,CHILDRENS SERVICES,AMAZON.CO.UK*BG9617KL5,12/07/2022,H59620220714EXAGGXPWX-1, 6.48 ,E19-MATERIALS,OTHER DIRECT MARKETING-OTHER DIRECT MARKETERS,GPC
WALSALL COUNCIL,http://opendatacommunities.org/id/metropolitan-district-council/walsall ,30/09/2022,CHILDRENS SERVICES,AMAZON.CO.UK*BG9617KL5,12/07/2022,H59620220714EXAGGXPWX-2, 46.50 ,E19-MATERIALS,OTHER DIRECT MARKETING-OTHER DIRECT MARKETERS,GPC
WALSALL COUNCIL,http://opendatacommunities.org/id/metropolitan-district-council/walsall ,30/09/2022,CHILDRENS SERVICES,ARGOS LTD,12/07/2022,H59620220714FHNWPCUIO-1, 199.00 ,CARE LEAVER ENTITLEMENTS-SETTING UP HOME GRANT,DISCOUNT STORES,GPC
WALSALL COUNCIL,http://opendatacommunities.org/id/metropolitan-district-council/walsall ,30/09/2022,CHILDRENS SERVICES,ARGOS LTD,12/07/2022,H59620220714FHNWPCUIO-2, 2.95 ,CARE LEAVER ENTITLEMENTS-SETTING UP HOME GRANT,DISCOUNT STORES,GPC
WALSALL COUNCIL,http://opendatacommunities.org/id/metropolitan-district-council/walsall ,30/09/2022,CHILDRENS SERVICES,ASDA GEORGE COM LEEDS,12/07/2022,H59620220714FQHGXQTJE-1, 4.50 ,PUPIL PREMIUM-MATERIALS,GROCERY STORES AND SUPERMARKETS,GPC
WALSALL COUNCIL,http://opendatacommunities.org/id/metropolitan-district-council/walsall ,30/09/2022,CHILDRENS SERVICES,ASDA GEORGE COM LEEDS,12/07/2022,H59620220714FQHGXQTJE-2, 36.00 ,PUPIL PREMIUM-MATERIALS,GROCERY STORES AND SUPERMARKETS,GPC
WALSALL COUNCIL,http://opendatacommunities.org/id/metropolitan-district-council/walsall ,30/09/2022,ECONOMY & ENVIRONMENT,AMZNMKTPLACE,12/07/2022,H59620220714FWOZAFGIL-1, 188.64 ,AREA PARTNERSHIPS-OTHER EXPENSES,MISCELLANEOUS AND SPECIALTY RETAIL STORES,GPC
WALSALL COUNCIL,http://opendatacommunities.org/id/metropolitan-district-council/walsall ,30/09/2022,RESOURCES AND TRANSFORMATION,ARTHUR BRETT CATER,12/07/2022,H59620220714FWPZMIUWN-1, 85.20 ,CATERING - SCHOOLS-FOOD & DRINK SUPPLIES,MISCELLANEOUS FOOD STORES & CONVENIENCE STORES,GPC
WALSALL COUNCIL,http://opendatacommunities.org/id/metropolitan-district-council/walsall ,30/09/2022,CHILDRENS SERVICES,ICELAND,12/07/2022,H59620220714GBSRVCOBO-1, 21.75 ,REDRUTH ROAD-FOOD & DRINK SUPPLIES,GROCERY STORES AND SUPERMARKETS,GPC
WALSALL COUNCIL,http://opendatacommunities.org/id/metropolitan-district-council/walsall ,30/09/2022,CHILDRENS SERVICES,WESTMINSTER ABBEY,12/07/2022,H59620220714GDJGBFEVR-1, 236.00 ,CHUCKERY PRIMARY SCHOOL-MATERIALS,OTHER RECREATION SERVICES,GPC
WALSALL COUNCIL,http://opendatacommunities.org/id/metropolitan-district-council/walsall ,30/09/2022,RESOURCES AND TRANSFORMATION,ARTHUR BRETT CATER,12/07/2022,H59620220714GFPTCWMIU-1, 66.35 ,CATERING - SCHOOLS-FOOD & DRINK SUPPLIES,MISCELLANEOUS FOOD STORES & CONVENIENCE STORES,GPC
WALSALL COUNCIL,http://opendatacommunities.org/id/metropolitan-district-council/walsall ,30/09/2022,RESOURCES AND TRANSFORMATION,ARTHUR BRETT CATER,12/07/2022,H59620220714GRSTWMINB-1, 13.20 ,CATERING - SCHOOLS-FOOD & DRINK SUPPLIES,MISCELLANEOUS FOOD STORES & CONVENIENCE STORES,GPC
WALSALL COUNCIL,http://opendatacommunities.org/id/metropolitan-district-council/walsall ,30/09/2022,CHILDRENS SERVICES,POST OFFICE COUNTER,12/07/2022,H59620220714GSGCJFUMX-1, 3.35 ,ADMINISTRATIVE SUPPLIES-POSTAGES & COURIER SERVICES,POSTAL SERVICES - GOVERNMENT ONLY,GPC
WALSALL COUNCIL,http://opendatacommunities.org/id/metropolitan-district-council/walsall ,30/09/2022,RESOURCES AND TRANSFORMATION,ARTHUR BRETT CATER,12/07/2022,H59620220714HINICDYYM-1, 206.16 ,CATERING - SCHOOLS-FOOD & DRINK SUPPLIES,MISCELLANEOUS FOOD STORES & CONVENIENCE STORES,GPC
WALSALL COUNCIL,http://opendatacommunities.org/id/metropolitan-district-council/walsall ,30/09/2022,CHILDRENS SERVICES,AMZNMKTPLACE,12/07/2022,H59620220714HMOURIUUY-1, 10.59 ,HIST-MATERIALS,MISCELLANEOUS AND SPECIALTY RETAIL STORES,GPC
WALSALL COUNCIL,http://opendatacommunities.org/id/metropolitan-district-council/walsall ,30/09/2022,CHILDRENS SERVICES,AMZNMKTPLACE,12/07/2022,H59620220714HMYFQJTSF-1, 109.95 ,LEARNING ENVIRONMENT-MATERIALS,MISCELLANEOUS AND SPECIALTY RETAIL STORES,GPC
WALSALL COUNCIL,http://opendatacommunities.org/id/metropolitan-district-council/walsall ,30/09/2022,RESOURCES AND TRANSFORMATION,ARTHUR BRETT CATER,12/07/2022,H59620220714HRJJEFUCM-1, 17.60 ,CATERING - SCHOOLS-FOOD & DRINK SUPPLIES,MISCELLANEOUS FOOD STORES & CONVENIENCE STORES,GPC
WALSALL COUNCIL,http://opendatacommunities.org/id/metropolitan-district-council/walsall ,30/09/2022,CHILDRENS SERVICES,CINEWORLD,12/07/2022,H59620220714HSRPSVURO-1, 56.44 ,REWARDS-MATERIALS,MOTION PICTURE THEATERS,GPC
WALSALL COUNCIL,http://opendatacommunities.org/id/metropolitan-district-council/walsall ,30/09/2022,RESOURCES AND TRANSFORMATION,ARTHUR BRETT CATER,12/07/2022,H59620220714HWMORVELD-1, 45.23 ,CATERING - SCHOOLS-FOOD & DRINK SUPPLIES,MISCELLANEOUS FOOD STORES & CONVENIENCE STORES,GPC
WALSALL COUNCIL,http://opendatacommunities.org/id/metropolitan-district-council/walsall ,30/09/2022,ECONOMY & ENVIRONMENT,AMZNMKTPLACE,12/07/2022,H59620220714ICFFFCAWI-1, 51.96 ,WALSALL GALA SWIMMING AND FITN-MATERIALS,MISCELLANEOUS AND SPECIALTY RETAIL STORES,GPC
WALSALL COUNCIL,http://opendatacommunities.org/id/metropolitan-district-council/walsall ,30/09/2022,CHILDRENS SERVICES,RICE & CO,12/07/2022,H59620220714IOFOLVNPC-1, 288.00 ,CHUCKERY PRIMARY SCHOOL-FAIR FUNDING CORPORATE ELEMENT,"ACCOUNTING, AUDITING, AND BOOKKEEPING SERVICES",GPC
WALSALL COUNCIL,http://opendatacommunities.org/id/metropolitan-district-council/walsall ,30/09/2022,RESOURCES AND TRANSFORMATION,ARTHUR BRETT CATER,12/07/2022,H59620220714IQWDHLNPD-1, 51.75 ,CATERING - SCHOOLS-FOOD & DRINK SUPPLIES,MISCELLANEOUS FOOD STORES & CONVENIENCE STORES,GPC
WALSALL COUNCIL,http://opendatacommunities.org/id/metropolitan-district-council/walsall ,30/09/2022,RESOURCES AND TRANSFORMATION,ARTHUR BRETT CATER,12/07/2022,H59620220714IVEYSXCXW-1, 30.56 ,CATERING - SCHOOLS-FOOD & DRINK SUPPLIES,MISCELLANEOUS FOOD STORES & CONVENIENCE STORES,GPC
WALSALL COUNCIL,http://opendatacommunities.org/id/metropolitan-district-council/walsall ,30/09/2022,CHILDRENS SERVICES,EASY FLORIST SUPPLIES,12/07/2022,H59620220714JEPKKZTBH-1, 8.45 ,CHUCKERY PRIMARY SCHOOL-MATERIALS,MISCELLANEOUS AND SPECIALTY RETAIL STORES,GPC
WALSALL COUNCIL,http://opendatacommunities.org/id/metropolitan-district-council/walsall ,30/09/2022,CHILDRENS SERVICES,HOME BARGAINS,12/07/2022,H59620220714JNDVPIQJQ-1, 4.95 ,NON DEPARTMENT EXPENSES-MATERIALS,HARDWARE STORES,GPC
WALSALL COUNCIL,http://opendatacommunities.org/id/metropolitan-district-council/walsall ,30/09/2022,CHILDRENS SERVICES,IKEA LTD SHOP ONLINE,12/07/2022,H59620220714KCDDGYBLY-1, 169.00 ,SUPPORT UNDER SECT 23 OF THE C-SUPPORT UNDER SECTION 23 OF TH,"EQUIPMENT, FURNITURE, AND HOME FURNISHINGS STORES ",GPC
WALSALL COUNCIL,http://opendatacommunities.org/id/metropolitan-district-council/walsall ,30/09/2022,ECONOMY & ENVIRONMENT,AMZNMKTPLACE,12/07/2022,H59620220714KDYHQWANJ-1, 18.98 ,BLOXWICH ACTIVE LIVING CENTRE-FOOD & DRINK SUPPLIES,MISCELLANEOUS AND SPECIALTY RETAIL STORES,GPC
WALSALL COUNCIL,http://opendatacommunities.org/id/metropolitan-district-council/walsall ,30/09/2022,CHILDRENS SERVICES,AMZNMKTPLACE,12/07/2022,H59620220714LBJSNRTPL-1, 11.40 ,E19-STATIONERY & GENERAL OFFICE SU,MISCELLANEOUS AND SPECIALTY RETAIL STORES,GPC
WALSALL COUNCIL,http://opendatacommunities.org/id/metropolitan-district-council/walsall ,30/09/2022,ECONOMY & ENVIRONMENT,ASDA STORES LTD 4225,12/07/2022,H59620220714LBVEYECTV-1, 7.20 ,RESTART-CLOTHING & LAUNDRY,GROCERY STORES AND SUPERMARKETS,GPC
WALSALL COUNCIL,http://opendatacommunities.org/id/metropolitan-district-council/walsall ,30/09/2022,RESOURCES AND TRANSFORMATION,PARK PLACE SHOE REPAIRS,12/07/2022,H59620220714LKIEJSJNU-1, 5.00 ,CENTRAL OFFICE ACCOMMODATION-OPERATIONAL MAINTENANCE,"HAT CLEANING SHOPS, SHOE REPAIR SHOPS, SHOE SHINE ",GPC
WALSALL COUNCIL,http://opendatacommunities.org/id/metropolitan-district-council/walsall ,30/09/2022,RESOURCES AND TRANSFORMATION,ARTHUR BRETT CATER,12/07/2022,H59620220714LPDZKQYWD-1, 34.39 ,CATERING - SCHOOLS-FOOD & DRINK SUPPLIES,MISCELLANEOUS FOOD STORES & CONVENIENCE STORES,GPC
WALSALL COUNCIL,http://opendatacommunities.org/id/metropolitan-district-council/walsall ,30/09/2022,CHILDRENS SERVICES,TESCO STORES 5503,12/07/2022,H59620220714LVQMVNVPI-1, 100.00 ,EARLY HELP HUB-FOOD & DRINK SUPPLIES,GROCERY STORES AND SUPERMARKETS,GPC
WALSALL COUNCIL,http://opendatacommunities.org/id/metropolitan-district-council/walsall ,30/09/2022,CHILDRENS SERVICES,CURRYS ONLINE,12/07/2022,H59620220714MAFEVQEUR-1, 124.00 ,CHILD PROTECTION & REVIEW SERV-PURCHASE OF FURNITURE & EQUIPM,ELECTRONIC SALES,GPC
WALSALL COUNCIL,http://opendatacommunities.org/id/metropolitan-district-council/walsall ,30/09/2022,ECONOMY & ENVIRONMENT,AMZNMKTPLACE,12/07/2022,H59620220714MDWSBULJZ-1, 61.02 ,BLOXWICH ACTIVE LIVING CENTRE-STATIONERY & GENERAL OFFICE SU,MISCELLANEOUS AND SPECIALTY RETAIL STORES,GPC
WALSALL COUNCIL,http://opendatacommunities.org/id/metropolitan-district-council/walsall ,30/09/2022,CHILDRENS SERVICES,HOME BARGAINS,12/07/2022,H59620220714MECFHICFP-1, 51.58 ,EARLY HELP HUB-MATERIALS,HARDWARE STORES,GPC
WALSALL COUNCIL,http://opendatacommunities.org/id/metropolitan-district-council/walsall ,30/09/2022,CHILDRENS SERVICES,AMAZON.CO.UK*ZA3W438V5,12/07/2022,H59620220714MJIILXJEU-1, 6.83 ,ADMINISTRATIVE SUPPLIES-STATIONERY & GENERAL OFFICE SU,OTHER DIRECT MARKETING-OTHER DIRECT MARKETERS,GPC
WALSALL COUNCIL,http://opendatacommunities.org/id/metropolitan-district-council/walsall ,30/09/2022,ECONOMY & ENVIRONMENT,AMZNMKTPLACE,12/07/2022,H59620220714MNDLWPGOJ-1, 34.00 ,BLOXWICH ACTIVE LIVING CENTRE-FOOD & DRINK SUPPLIES,MISCELLANEOUS AND SPECIALTY RETAIL STORES,GPC
WALSALL COUNCIL,http://opendatacommunities.org/id/metropolitan-district-council/walsall ,30/09/2022,CHILDRENS SERVICES,WORD360,12/07/2022,H59620220714MVIRVODTQ-1, 48.00 ,NEW LEAF PUPIL REFERAL UNIT-PROFESSIONAL FEES & SERVICES,PROFESSIONAL SERVICES,GPC
WALSALL COUNCIL,http://opendatacommunities.org/id/metropolitan-district-council/walsall ,30/09/2022,CHILDRENS SERVICES,QUALITY GARDEN SUPPL,12/07/2022,H59620220714MYSFGQUQV-1, 335.74 ,OLD HALL SCHOOL-GROUNDS MAINTENANCE,"NURSERIES, LAWN AND GARDEN SUPPLY STORES",GPC
WALSALL COUNCIL,http://opendatacommunities.org/id/metropolitan-district-council/walsall ,30/09/2022,ECONOMY & ENVIRONMENT,SQ *T.MORGAN & SONS(LOCK,12/07/2022,H59620220714NCBZNRBNB-1, 178.20 ,INFRASTRUCTURE MAINTENANCE-MATERIALS,"GENERAL CONTRACTORS, RESIDENTIAL AND COMMERCIAL",GPC
WALSALL COUNCIL,http://opendatacommunities.org/id/metropolitan-district-council/walsall ,30/09/2022,ECONOMY & ENVIRONMENT,AMZNMKTPLACE,12/07/2022,H59620220714NDXVHELKT-1, 3.99 ,NAG - TEMPORARY EXHIBITIONS-MATERIALS,MISCELLANEOUS AND SPECIALTY RETAIL STORES,GPC
WALSALL COUNCIL,http://opendatacommunities.org/id/metropolitan-district-council/walsall ,30/09/2022,CHILDRENS SERVICES,UK.BOOKSHOP.ORG,12/07/2022,H59620220714NLNVNNOSZ-1, 63.00 ,GEOG-LIBRARY BOOKS,"DIGITAL GOODS - MEDIA, BOOKS, MOVIES, MUSIC",GPC
WALSALL COUNCIL,http://opendatacommunities.org/id/metropolitan-district-council/walsall ,30/09/2022,ECONOMY & ENVIRONMENT,AMZNMKTPLACE,12/07/2022,H59620220714NPHTETCGD-1, 2.00 ,NAG - TEMPORARY EXHIBITIONS-MATERIALS,MISCELLANEOUS AND SPECIALTY RETAIL STORES,GPC
WALSALL COUNCIL,http://opendatacommunities.org/id/metropolitan-district-council/walsall ,30/09/2022,ECONOMY & ENVIRONMENT,NET WORLD SPORTS,12/07/2022,H59620220714NYQMCRKRW-1, 665.20 ,COMMUNITY LIAISON-MATERIALS,MISCELLANEOUS AND SPECIALTY RETAIL STORES,GPC
WALSALL COUNCIL,http://opendatacommunities.org/id/metropolitan-district-council/walsall ,30/09/2022,CHILDRENS SERVICES,ICELAND WALSALL RETAIL,12/07/2022,H59620220714NZGNBIBYX-1, 15.00 ,NON DEPARTMENT EXPENSES-MATERIALS,GROCERY STORES AND SUPERMARKETS,GPC
WALSALL COUNCIL,http://opendatacommunities.org/id/metropolitan-district-council/walsall ,30/09/2022,CHILDRENS SERVICES,RADIOSWAP.CO.UK,12/07/2022,H59620220714OCSXDSHXV-1, 335.76 ,ELMWOOD SCHOOL-PURCHASE OF FURNITURE & EQUIPM,ELECTRONIC SALES,GPC
WALSALL COUNCIL,http://opendatacommunities.org/id/metropolitan-district-council/walsall ,30/09/2022,CHILDRENS SERVICES,HOWARD PLASTICS,12/07/2022,H59620220714OPYVMBFOG-1, 33.00 ,E19-MATERIALS,OTHER INDUSTRIAL SUPPLIES,GPC
WALSALL COUNCIL,http://opendatacommunities.org/id/metropolitan-district-council/walsall ,30/09/2022,ECONOMY & ENVIRONMENT,SAINSBURYS S/MKT,12/07/2022,H59620220714OQRSFCRYR-1, 4.35 ,WALSALL ARENA AND ARTS CENTRE-CLEANING MATERIALS,GROCERY STORES AND SUPERMARKETS,GPC
WALSALL COUNCIL,http://opendatacommunities.org/id/metropolitan-district-council/walsall ,30/09/2022,ECONOMY & ENVIRONMENT,AMZNMKTPLACE,12/07/2022,H59620220714OVXWQYURB-1, 5.38 ,AREA PARTNERSHIPS-STATIONERY & GENERAL OFFICE SU,MISCELLANEOUS AND SPECIALTY RETAIL STORES,GPC
WALSALL COUNCIL,http://opendatacommunities.org/id/metropolitan-district-council/walsall ,30/09/2022,CHILDRENS SERVICES,POST OFFICE COUNTER,12/07/2022,H59620220714PGDTCDYEL-1, 47.50 ,FAMILY SAFEGUARDING WEST LOCAL-POSTAGES & COURIER SERVICES,POSTAL SERVICES - GOVERNMENT ONLY,GPC
WALSALL COUNCIL,http://opendatacommunities.org/id/metropolitan-district-council/walsall ,30/09/2022,ECONOMY & ENVIRONMENT,ARGOS LTD,12/07/2022,H59620220714PMVEJUCBI-1, 40.00 ,RESTART-PURCHASE OF FURNITURE & EQUIPM,DISCOUNT STORES,GPC
WALSALL COUNCIL,http://opendatacommunities.org/id/metropolitan-district-council/walsall ,30/09/2022,CHILDRENS SERVICES,WALSALL COUNCIL,12/07/2022,H59620220714QBCKNRYUR-1, 41.00 ,LOOKED AFTER CHILDRENS SOCIAL -FEES & LICENCES,GOVERNMENT SERVICES,GPC
WALSALL COUNCIL,http://opendatacommunities.org/id/metropolitan-district-council/walsall ,30/09/2022,RESOURCES AND TRANSFORMATION,ARTHUR BRETT CATER,12/07/2022,H59620220714QKIUOADBP-1, 60.51 ,CATERING - SCHOOLS-FOOD & DRINK SUPPLIES,MISCELLANEOUS FOOD STORES & CONVENIENCE STORES,GPC
WALSALL COUNCIL,http://opendatacommunities.org/id/metropolitan-district-council/walsall ,30/09/2022,ECONOMY & ENVIRONMENT,TESCO STORES 6161,12/07/2022,H59620220714QXICFVHVD-1, 12.65 ,LEATHER MUSEUM-FOOD & DRINK SUPPLIES,GROCERY STORES AND SUPERMARKETS,GPC
WALSALL COUNCIL,http://opendatacommunities.org/id/metropolitan-district-council/walsall ,30/09/2022,CHILDRENS SERVICES,AMZNMKTPLACE,12/07/2022,H59620220714QYNWEWXYC-1, 5.98 ,FAMILY PLACEMENTS-STATIONERY & GENERAL OFFICE SU,MISCELLANEOUS AND SPECIALTY RETAIL STORES,GPC
